Body name,Directorate,Service Area Categorisation,Supplier Name,Payment Date,Card Transaction,Net Amount,Purpose of Spend,Procurement Classification: ProClass Label
Solihull MBC,Public Health & Commissioning,Central Services to the Public,(IPC) Industrial Power Cooling Ltd,22/03/2021,,4714,Grant & Subscription (SCITT),Not Yet Classified
Solihull MBC,Public Health & Commissioning,Central Services to the Public,1000 Heads Salons Ltd,04/03/2021,,4714,Grant & Subscription (SCITT),Not Yet Classified
Solihull MBC,Public Health & Commissioning,Central Services to the Public,184th Bham 1st Kingshurst Scouts,04/03/2021,,2096,Grant & Subscription (SCITT),Not Yet Classified
Solihull MBC,Public Health & Commissioning,Central Services to the Public,1st Knowle Scout Group,04/03/2021,,2096,Grant & Subscription (SCITT),Not Yet Classified
Solihull MBC,Public Health & Commissioning,Central Services to the Public,1st Marston Green Scout Group,04/03/2021,,2096,Grant & Subscription (SCITT),Not Yet Classified
Solihull MBC,Public Health & Commissioning,Central Services to the Public,1st Olton Scout Group,04/03/2021,,2096,Grant & Subscription (SCITT),Not Yet Classified
Solihull MBC,Public Health & Commissioning,Central Services to the Public,1st Salter Street Scout Group,04/03/2021,,2096,Grant & Subscription (SCITT),Not Yet Classified
Solihull MBC,Public Health & Commissioning,Central Services to the Public,1st Shirley Scout Group,04/03/2021,,2096,Grant & Subscription (SCITT),Not Yet Classified
Solihull MBC,Public Health & Commissioning,Central Services to the Public,1st Solihull Scout Group,04/03/2021,,2096,Grant & Subscription (SCITT),Not Yet Classified
Solihull MBC,Public Health & Commissioning,Central Services to the Public,1st Solihull Scout Group,04/03/2021,,2096,Grant & Subscription (SCITT),Not Yet Classified
Solihull MBC,Public Health & Commissioning,Central Services to the Public,237th Birmingham (1st Castle Bromwich) Scout Group,04/03/2021,,2096,Grant & Subscription (SCITT),Not Yet Classified
Solihull MBC,Children's Services & Skills,Children & Education Services,24X7 Ltd (Warwickshire),29/03/2021,,-2684.22,Transport-Contract Hire,Not Yet Classified
Solihull MBC,Children's Services & Skills,Children & Education Services,24X7 Ltd (Warwickshire),29/03/2021,,1464.12,Transport-Contract Hire,Not Yet Classified
Solihull MBC,Children's Services & Skills,Children & Education Services,24X7 Ltd (Warwickshire),02/03/2021,,406.7,Transport-Contract Hire,Not Yet Classified
Solihull MBC,Children's Services & Skills,Children & Education Services,24X7 Ltd (Warwickshire),02/03/2021,,1693.05,Transport-Contract Hire,Not Yet Classified
Solihull MBC,Children's Services & Skills,Children & Education Services,24X7 Ltd (Warwickshire),29/03/2021,,772.32,Transport-Contract Hire,Not Yet Classified
Solihull MBC,Children's Services & Skills,Children & Education Services,24X7 Ltd (Warwickshire),29/03/2021,,2483.14,Transport-Contract Hire,Not Yet Classified
Solihull MBC,Children's Services & Skills,Children & Education Services,24X7 Ltd (Warwickshire),29/03/2021,,3012.02,Transport-Contract Hire,Not Yet Classified
Solihull MBC,Children's Services & Skills,Children & Education Services,24X7 Ltd (Warwickshire),29/03/2021,,2277.52,Transport-Contract Hire,Not Yet Classified
Solihull MBC,Children's Services & Skills,Children & Education Services,24X7 Staffordshire Ltd,02/03/2021,,1253.88,Transport-Contract Hire,Not Yet Classified
Solihull MBC,Children's Services & Skills,Children & Education Services,3PB Barristers,02/03/2021,,4020,Other Fees,Not Yet Classified
Solihull MBC,Children's Services & Skills,Children & Education Services,3PB Barristers,17/03/2021,,500,Other Fees,Not Yet Classified
Solihull MBC,Children's Services & Skills,Children & Education Services,3PB Barristers,02/03/2021,,4225,Other Fees,Not Yet Classified
Solihull MBC,Children's Services & Skills,Children & Education Services,3PB Barristers,02/03/2021,,900,Other Fees,Not Yet Classified
Solihull MBC,Children's Services & Skills,Children & Education Services,3PB Barristers,02/03/2021,,500,Other Fees,Not Yet Classified
Solihull MBC,Children's Services & Skills,Children & Education Services,3PB Barristers,30/03/2021,,675,Other Fees,Not Yet Classified
Solihull MBC,Children's Services & Skills,Children & Education Services,3PB Barristers,17/03/2021,,650,Other Fees,Not Yet Classified
Solihull MBC,Children's Services & Skills,Children & Education Services,3PB Barristers,02/03/2021,,3900,Other Fees,Not Yet Classified
Solihull MBC,Children's Services & Skills,Children & Education Services,3PB Barristers,17/03/2021,,650,Other Fees,Not Yet Classified
Solihull MBC,Children's Services & Skills,Children & Education Services,3PB Barristers,17/03/2021,,675,Other Fees,Not Yet Classified
Solihull MBC,Children's Services & Skills,Children & Education Services,3PB Barristers,02/03/2021,,900,Other Fees,Not Yet Classified
Solihull MBC,Children's Services & Skills,Children & Education Services,3PB Barristers,02/03/2021,,650,Other Fees,Not Yet Classified
Solihull MBC,Children's Services & Skills,Children & Education Services,3PB Barristers,17/03/2021,,500,Other Fees,Not Yet Classified
Solihull MBC,Children's Services & Skills,Children & Education Services,3PB Barristers,23/03/2021,,650,Other Fees,Not Yet Classified
Solihull MBC,Children's Services & Skills,Children & Education Services,3PB Barristers,23/03/2021,,360,Other Fees,Not Yet Classified
Solihull MBC,Children's Services & Skills,Children & Education Services,3PB Barristers,02/03/2021,,900,Other Fees,Not Yet Classified
Solihull MBC,Children's Services & Skills,Children & Education Services,3PB Barristers,02/03/2021,,500,Other Fees,Not Yet Classified
Solihull MBC,Children's Services & Skills,Children & Education Services,3PB Barristers,02/03/2021,,650,Other Fees,Not Yet Classified
Solihull MBC,Resources,Central Services to the Public,3PB Barristers,17/03/2021,,750,Other Fees,Not Yet Classified
Solihull MBC,Children's Services & Skills,Children & Education Services,3PB Barristers,17/03/2021,,900,Other Fees,Not Yet Classified
Solihull MBC,Children's Services & Skills,Children & Education Services,3PB Barristers,17/03/2021,,5490,Other Fees,Not Yet Classified
Solihull MBC,Children's Services & Skills,Children & Education Services,3PB Barristers,23/03/2021,,850,Other Fees,Not Yet Classified
Solihull MBC,Children's Services & Skills,Children & Education Services,3PB Barristers,23/03/2021,,650,Other Fees,Not Yet Classified
Solihull MBC,Children's Services & Skills,Children & Education Services,3PB Barristers,23/03/2021,,3900,Other Fees,Not Yet Classified
Solihull MBC,Children's Services & Skills,Children & Education Services,3PB Barristers,23/03/2021,,900,Other Fees,Not Yet Classified
Solihull MBC,Public Health & Commissioning,Central Services to the Public,5th Solihull Scout Group,04/03/2021,,2096,Grant & Subscription (SCITT),Not Yet Classified
Solihull MBC,Public Health & Commissioning,Central Services to the Public,6th Shirley (St James) Scout Group,04/03/2021,,2096,Grant & Subscription (SCITT),Not Yet Classified
Solihull MBC,Public Health & Commissioning,Central Services to the Public,A Perfect Fit,04/03/2021,,2096,Grant & Subscription (SCITT),Not Yet Classified
Solihull MBC,Children's Services & Skills,Children & Education Services,A S C Birch,01/03/2021,,504,Clients Transport Costs,360000 - Public Transport
Solihull MBC,Children's Services & Skills,Children & Education Services,A S C Birch,23/03/2021,,828,Clients Transport Costs,360000 - Public Transport
Solihull MBC,Adult Social Care,Adult Social Care,A S C Birch,23/03/2021,,2070,Clients Transport Costs,360000 - Public Transport
Solihull MBC,Children's Services & Skills,Children & Education Services,A Wilderness Way Ltd,05/03/2021,,30344,Other Contracted Services,Not Yet Classified
Solihull MBC,Children's Services & Skills,Children & Education Services,A Wilderness Way Ltd,31/03/2021,,30344,Other Contracted Services,Not Yet Classified
Solihull MBC,Children's Services & Skills,Children & Education Services,A1 Support Limited,11/03/2021,,2760,Supported Lodgings,Not Yet Classified
Solihull MBC,Children's Services & Skills,Children & Education Services,A1 Support Limited,31/03/2021,,2760,Supported Lodgings,Not Yet Classified
Solihull MBC,Children's Services & Skills,Children & Education Services,A1 Support Limited,11/03/2021,,2760,Supported Lodgings,Not Yet Classified
Solihull MBC,Children's Services & Skills,Children & Education Services,A1 Support Limited,31/03/2021,,2760,Supported Lodgings,Not Yet Classified
Solihull MBC,Children's Services & Skills,Children & Education Services,A1 Support Limited,11/03/2021,,2760,Supported Lodgings,Not Yet Classified
Solihull MBC,Children's Services & Skills,Children & Education Services,A1 Support Limited,31/03/2021,,2760,Supported Lodgings,Not Yet Classified
Solihull MBC,Public Health & Commissioning,Central Services to the Public,A2B,15/03/2021,,1000,Grant & Subscription (SCITT),Not Yet Classified
Solihull MBC,Public Health & Commissioning,Central Services to the Public,A2B,22/03/2021,,1000,Grant & Subscription (SCITT),Not Yet Classified
Solihull MBC,Public Health & Commissioning,Central Services to the Public,A2B Private Hire Driver,22/03/2021,,1000,Grant & Subscription (SCITT),Not Yet Classified
Solihull MBC,Public Health & Commissioning,Central Services to the Public,A2B Radio Cars,22/03/2021,,1000,Grant & Subscription (SCITT),Not Yet Classified
Solihull MBC,Public Health & Commissioning,Central Services to the Public,A2B Radio Cars Ltd,22/03/2021,,1000,Grant & Subscription (SCITT),Not Yet Classified
Solihull MBC,Public Health & Commissioning,Central Services to the Public,A2B Radio Cars Ltd,15/03/2021,,1000,Grant & Subscription (SCITT),Not Yet Classified
Solihull MBC,Public Health & Commissioning,Central Services to the Public,A2B Radio Cars Ltd,22/03/2021,,1000,Grant & Subscription (SCITT),Not Yet Classified
Solihull MBC,Children's Services - DSG Central.,Children & Education Services,Abable Ltd,03/03/2021,,1899,Professional Fees,Not Yet Classified
Solihull MBC,Adult Social Care,Adult Social Care,Abbey Healthcare Homes Ltd,24/03/2021,,4234.72,ASC - Nursing Care Permanent,321000 - Social Community Care Supplies & Services - Adult
Solihull MBC,Public Health & Commissioning,Central Services to the Public,Able Personnel Uk Ltd,26/03/2021,,2096,Grant & Subscription (SCITT),Not Yet Classified
Solihull MBC,Public Health & Commissioning,Central Services to the Public,Abz Cabz,22/03/2021,,1000,Grant & Subscription (SCITT),Not Yet Classified
Solihull MBC,Children's Services & Skills,Children & Education Services,Accalia Care Services Ltd,11/03/2021,,30200,Other Contracted Services,Not Yet Classified
Solihull MBC,Adult Social Care,Adult Social Care,Accomplish Group Lifestyles Ltd,24/03/2021,,9351.16,ASC - Residential Care Permanent,Not Yet Classified
Solihull MBC,Adult Social Care,Adult Social Care,Accomplish Group Lifestyles Ltd,24/03/2021,,6936,ASC - Residential Care Permanent,Not Yet Classified
Solihull MBC,Adult Social Care,Adult Social Care,Accomplish Group Lifestyles Ltd,24/03/2021,,5547.64,ASC - Residential Care Permanent,Not Yet Classified
Solihull MBC,Adult Social Care,Adult Social Care,Accora,02/03/2021,,223,Furniture & Equipment,Not Yet Classified
Solihull MBC,Adult Social Care,Adult Social Care,Accora,03/03/2021,,1031,Furniture & Equipment,Not Yet Classified
Solihull MBC,Adult Social Care,Adult Social Care,Accora,10/03/2021,,1215,Furniture & Equipment,Not Yet Classified
Solihull MBC,Adult Social Care,Adult Social Care,Accora,12/03/2021,,1081,Furniture & Equipment,Not Yet Classified
Solihull MBC,Adult Social Care,Adult Social Care,Accora,15/03/2021,,1695,Furniture & Equipment,Not Yet Classified
Solihull MBC,Adult Social Care,Adult Social Care,Accora,15/03/2021,,1078,Furniture & Equipment,Not Yet Classified
Solihull MBC,Adult Social Care,Adult Social Care,Accord Housing Association,11/03/2021,,430.85,Block Contracts,321000 - Social Community Care Supplies & Services - Adult
Solihull MBC,Adult Social Care,Adult Social Care,Accord Housing Association,11/03/2021,,430.85,Block Contracts,321000 - Social Community Care Supplies & Services - Adult
Solihull MBC,Adult Social Care,Other Housing Services,Accord Housing Association,16/03/2021,,14155.41,Other Contracted Services,321000 - Social Community Care Supplies & Services - Adult
Solihull MBC,Adult Social Care,Other Housing Services,Accord Housing Association,16/03/2021,,14155.41,Other Contracted Services,321000 - Social Community Care Supplies & Services - Adult
Solihull MBC,Economy and Infrastructure,Other Housing Services,Accord Housing Association,22/03/2021,,33123.5,Other Contracted Services,321000 - Social Community Care Supplies & Services - Adult
Solihull MBC,Adult Social Care,Adult Social Care,Accord Housing Asssociation,08/03/2021,,9656.31,ASC - Residential Care Respite,321000 - Social Community Care Supplies & Services - Adult
Solihull MBC,Adult Social Care,Adult Social Care,Accord Housing Asssociation,08/03/2021,,8593.23,ASC - Residential Care Respite,321000 - Social Community Care Supplies & Services - Adult
Solihull MBC,Adult Social Care,Adult Social Care,Accord Housing Asssociation,08/03/2021,,16211.97,ASC - Residential Care Permanent,321000 - Social Community Care Supplies & Services - Adult
Solihull MBC,Adult Social Care,Adult Social Care,Accord Housing Asssociation,24/03/2021,,-2480.52,ASC - Residential Care Permanent,321000 - Social Community Care Supplies & Services - Adult
Solihull MBC,Adult Social Care,Adult Social Care,Accord Housing Asssociation,24/03/2021,,1240.26,ASC - Residential Care Permanent,321000 - Social Community Care Supplies & Services - Adult
Solihull MBC,Adult Social Care,Adult Social Care,Accord Housing Asssociation,24/03/2021,,1240.26,ASC - Residential Care Permanent,321000 - Social Community Care Supplies & Services - Adult
Solihull MBC,Adult Social Care,Adult Social Care,Accord Housing Asssociation,24/03/2021,,-1860.39,ASC - Residential Care Permanent,321000 - Social Community Care Supplies & Services - Adult
Solihull MBC,Adult Social Care,Adult Social Care,Accord Housing Asssociation,24/03/2021,,-2480.52,ASC - Residential Care Permanent,321000 - Social Community Care Supplies & Services - Adult
Solihull MBC,Adult Social Care,Adult Social Care,Accord Housing Asssociation,24/03/2021,,442.95,ASC - Residential Care Permanent,321000 - Social Community Care Supplies & Services - Adult
Solihull MBC,Adult Social Care,Adult Social Care,Accord Housing Asssociation,24/03/2021,,885.9,ASC - Residential Care Permanent,321000 - Social Community Care Supplies & Services - Adult
Solihull MBC,Adult Social Care,Adult Social Care,Accord Housing Asssociation,24/03/2021,,1417.44,ASC - Residential Care Permanent,321000 - Social Community Care Supplies & Services - Adult
Solihull MBC,Adult Social Care,Adult Social Care,Accord Housing Asssociation,24/03/2021,,1594.62,ASC - Residential Care Permanent,321000 - Social Community Care Supplies & Services - Adult
Solihull MBC,Adult Social Care,Adult Social Care,Accord Housing Asssociation,24/03/2021,,-1240.26,ASC - Residential Care Permanent,321000 - Social Community Care Supplies & Services - Adult
Solihull MBC,Adult Social Care,Adult Social Care,Accord Housing Asssociation,24/03/2021,,354.36,ASC - Residential Care Permanent,321000 - Social Community Care Supplies & Services - Adult
Solihull MBC,Adult Social Care,Adult Social Care,Accord Housing Asssociation,24/03/2021,,885.9,ASC - Residential Care Permanent,321000 - Social Community Care Supplies & Services - Adult
Solihull MBC,Adult Social Care,Adult Social Care,Accord Housing Asssociation,24/03/2021,,1240.26,ASC - Residential Care Respite,321000 - Social Community Care Supplies & Services - Adult
Solihull MBC,Adult Social Care,Adult Social Care,Accord Housing Asssociation,24/03/2021,,-2389.24,ASC - Residential Care Permanent,321000 - Social Community Care Supplies & Services - Adult
Solihull MBC,Adult Social Care,Adult Social Care,Accord Housing Asssociation,24/03/2021,,-1860.39,ASC - Residential Care Permanent,321000 - Social Community Care Supplies & Services - Adult
Solihull MBC,Adult Social Care,Adult Social Care,Accord Housing Asssociation,24/03/2021,,-2480.52,ASC - Residential Care Permanent,321000 - Social Community Care Supplies & Services - Adult
Solihull MBC,Adult Social Care,Adult Social Care,Accord Housing Asssociation,24/03/2021,,-2480.52,ASC - Residential Care Permanent,321000 - Social Community Care Supplies & Services - Adult
Solihull MBC,Adult Social Care,Adult Social Care,Accord Housing Asssociation,24/03/2021,,442.95,ASC - Residential Care Permanent,321000 - Social Community Care Supplies & Services - Adult
Solihull MBC,Adult Social Care,Adult Social Care,Accord Housing Asssociation,24/03/2021,,682.64,ASC - Residential Care Permanent,321000 - Social Community Care Supplies & Services - Adult
Solihull MBC,Adult Social Care,Adult Social Care,Accord Housing Asssociation,24/03/2021,,885.9,ASC - Residential Care Permanent,321000 - Social Community Care Supplies & Services - Adult
Solihull MBC,Adult Social Care,Adult Social Care,Accord Housing Asssociation,24/03/2021,,1240.26,ASC - Residential Care Permanent,321000 - Social Community Care Supplies & Services - Adult
Solihull MBC,Adult Social Care,Adult Social Care,Accord Housing Asssociation,24/03/2021,,1240.26,ASC - Residential Care Permanent,321000 - Social Community Care Supplies & Services - Adult
Solihull MBC,Adult Social Care,Adult Social Care,Accord Housing Asssociation,24/03/2021,,1417.44,ASC - Residential Care Permanent,321000 - Social Community Care Supplies & Services - Adult
Solihull MBC,Adult Social Care,Adult Social Care,Accord Housing Asssociation,24/03/2021,,1594.62,ASC - Residential Care Permanent,321000 - Social Community Care Supplies & Services - Adult
Solihull MBC,Adult Social Care,Adult Social Care,Accord Housing Asssociation,24/03/2021,,1706.6,ASC - Residential Care Permanent,321000 - Social Community Care Supplies & Services - Adult
Solihull MBC,Adult Social Care,Adult Social Care,Accord Housing Asssociation,29/03/2021,,265.77,ASC - Residential Care Respite,321000 - Social Community Care Supplies & Services - Adult
Solihull MBC,Adult Social Care,Adult Social Care,Accord Housing Asssociation,29/03/2021,,426.65,ASC - Residential Care Respite,321000 - Social Community Care Supplies & Services - Adult
Solihull MBC,Adult Social Care,Adult Social Care,Accord Housing Asssociation,29/03/2021,,853.3,ASC - Residential Care Respite,321000 - Social Community Care Supplies & Services - Adult
Solihull MBC,Adult Social Care,Adult Social Care,Accord Housing Asssociation,29/03/2021,,885.9,ASC - Residential Care Respite,321000 - Social Community Care Supplies & Services - Adult
Solihull MBC,Adult Social Care,Adult Social Care,Accord Housing Asssociation,29/03/2021,,1365.28,ASC - Residential Care Respite,321000 - Social Community Care Supplies & Services - Adult
Solihull MBC,Adult Social Care,Adult Social Care,Accord Housing Asssociation,29/03/2021,,2133.25,ASC - Residential Care Respite,321000 - Social Community Care Supplies & Services - Adult
Solihull MBC,Adult Social Care,Adult Social Care,Accord Housing Asssociation,29/03/2021,,2389.24,ASC - Residential Care Respite,321000 - Social Community Care Supplies & Services - Adult
Solihull MBC,Adult Social Care,Adult Social Care,Accord Housing Asssociation,29/03/2021,,2480.52,ASC - Residential Care Respite,321000 - Social Community Care Supplies & Services - Adult
Solihull MBC,Adult Social Care,Adult Social Care,Accord Housing Asssociation,29/03/2021,,2645.23,ASC - Residential Care Respite,321000 - Social Community Care Supplies & Services - Adult
Solihull MBC,Adult Social Care,Adult Social Care,Accord Housing Asssociation,29/03/2021,,2657.7,ASC - Residential Care Respite,321000 - Social Community Care Supplies & Services - Adult
Solihull MBC,Adult Social Care,Adult Social Care,Accord Housing Asssociation,29/03/2021,,2815.89,ASC - Residential Care Respite,321000 - Social Community Care Supplies & Services - Adult
Solihull MBC,Adult Social Care,Adult Social Care,Accord Housing Asssociation,29/03/2021,,3669.19,ASC - Residential Care Respite,321000 - Social Community Care Supplies & Services - Adult
Solihull MBC,Adult Social Care,Adult Social Care,Accord Housing Asssociation,29/03/2021,,3925.18,ASC - Residential Care Respite,321000 - Social Community Care Supplies & Services - Adult
Solihull MBC,Adult Social Care,Adult Social Care,Accord Housing Asssociation,29/03/2021,,4437.16,ASC - Residential Care Respite,321000 - Social Community Care Supplies & Services - Adult
Solihull MBC,Adult Social Care,Adult Social Care,Accord Housing Asssociation,29/03/2021,,4778.48,ASC - Residential Care Respite,321000 - Social Community Care Supplies & Services - Adult
Solihull MBC,Adult Social Care,Adult Social Care,Accord Housing Asssociation,29/03/2021,,5080.16,ASC - Residential Care Respite,321000 - Social Community Care Supplies & Services - Adult
Solihull MBC,Adult Social Care,Adult Social Care,Accord Housing Asssociation,29/03/2021,,-1328.85,ASC - Residential Care Respite,321000 - Social Community Care Supplies & Services - Adult
Solihull MBC,Adult Social Care,Adult Social Care,Accord Housing Asssociation,29/03/2021,,6201.3,ASC - Residential Care Respite,321000 - Social Community Care Supplies & Services - Adult
Solihull MBC,Adult Social Care,Adult Social Care,Accord Housing Asssociation,29/03/2021,,7352.97,ASC - Residential Care Respite,321000 - Social Community Care Supplies & Services - Adult
Solihull MBC,Adult Social Care,Adult Social Care,Accord Housing Asssociation,29/03/2021,,7441.56,ASC - Residential Care Respite,321000 - Social Community Care Supplies & Services - Adult
Solihull MBC,Adult Social Care,Adult Social Care,Accord Housing Asssociation,29/03/2021,,7441.56,ASC - Residential Care Respite,321000 - Social Community Care Supplies & Services - Adult
Solihull MBC,Adult Social Care,Adult Social Care,Accord Housing Asssociation,29/03/2021,,7530.15,ASC - Residential Care Respite,321000 - Social Community Care Supplies & Services - Adult
Solihull MBC,Adult Social Care,Adult Social Care,Accord Housing Asssociation,29/03/2021,,3189.24,ASC - Residential Care Respite,321000 - Social Community Care Supplies & Services - Adult
Solihull MBC,Adult Social Care,Adult Social Care,Accord Housing Asssociation,29/03/2021,,9301.95,ASC - Residential Care Respite,321000 - Social Community Care Supplies & Services - Adult
Solihull MBC,Adult Social Care,Adult Social Care,Accord Housing Asssociation,29/03/2021,,2480.52,ASC - Residential Care Respite,321000 - Social Community Care Supplies & Services - Adult
Solihull MBC,Adult Social Care,Adult Social Care,Accord Housing Asssociation,29/03/2021,,12048.24,ASC - Residential Care Respite,321000 - Social Community Care Supplies & Services - Adult
Solihull MBC,Adult Social Care,Adult Social Care,Accord Housing Asssociation,29/03/2021,,-5717.11,ASC - Residential Care Permanent,321000 - Social Community Care Supplies & Services - Adult
Solihull MBC,Adult Social Care,Adult Social Care,Accord Housing Asssociation,29/03/2021,,-7509.04,ASC - Residential Care Permanent,321000 - Social Community Care Supplies & Services - Adult
Solihull MBC,Adult Social Care,Adult Social Care,Accord Housing Asssociation,29/03/2021,,-6570.41,ASC - Residential Care Permanent,321000 - Social Community Care Supplies & Services - Adult
Solihull MBC,Adult Social Care,Adult Social Care,Accord Housing Asssociation,29/03/2021,,-2389.24,ASC - Residential Care Permanent,321000 - Social Community Care Supplies & Services - Adult
Solihull MBC,Adult Social Care,Adult Social Care,Accord Housing Asssociation,29/03/2021,,-1535.94,ASC - Residential Care Permanent,321000 - Social Community Care Supplies & Services - Adult
Solihull MBC,Adult Social Care,Adult Social Care,Accord Housing Asssociation,29/03/2021,,-1706.6,ASC - Residential Care Permanent,321000 - Social Community Care Supplies & Services - Adult
Solihull MBC,Adult Social Care,Adult Social Care,Accord Housing Asssociation,29/03/2021,,-4522.49,ASC - Residential Care Permanent,321000 - Social Community Care Supplies & Services - Adult
Solihull MBC,Adult Social Care,Adult Social Care,Accord Housing Asssociation,29/03/2021,,-14762.09,ASC - Residential Care Permanent,321000 - Social Community Care Supplies & Services - Adult
Solihull MBC,Adult Social Care,Adult Social Care,Accord Housing Asssociation,29/03/2021,,-17833.97,ASC - Residential Care Permanent,321000 - Social Community Care Supplies & Services - Adult
Solihull MBC,Adult Social Care,Adult Social Care,Accord Housing Asssociation,29/03/2021,,-16042.04,ASC - Residential Care Permanent,321000 - Social Community Care Supplies & Services - Adult
Solihull MBC,Adult Social Care,Adult Social Care,Accord Housing Asssociation,29/03/2021,,-20820.52,ASC - Residential Care Permanent,321000 - Social Community Care Supplies & Services - Adult
Solihull MBC,Adult Social Care,Adult Social Care,Accord Housing Asssociation,29/03/2021,,-9386.3,ASC - Residential Care Permanent,321000 - Social Community Care Supplies & Services - Adult
Solihull MBC,Adult Social Care,Adult Social Care,Accord Housing Asssociation,29/03/2021,,-8191.68,ASC - Residential Care Permanent,321000 - Social Community Care Supplies & Services - Adult
Solihull MBC,Adult Social Care,Adult Social Care,Accord Housing Asssociation,29/03/2021,,-1535.94,ASC - Residential Care Permanent,321000 - Social Community Care Supplies & Services - Adult
Solihull MBC,Adult Social Care,Adult Social Care,Accord Housing Asssociation,29/03/2021,,-6826.4,ASC - Residential Care Permanent,321000 - Social Community Care Supplies & Services - Adult
Solihull MBC,Adult Social Care,Adult Social Care,Accord Housing Asssociation,29/03/2021,,-1023.96,ASC - Residential Care Permanent,321000 - Social Community Care Supplies & Services - Adult
Solihull MBC,Adult Social Care,Adult Social Care,Accord Housing Asssociation,29/03/2021,,-2474.57,ASC - Residential Care Permanent,321000 - Social Community Care Supplies & Services - Adult
Solihull MBC,Adult Social Care,Adult Social Care,Accord Housing Asssociation,29/03/2021,,-511.98,ASC - Residential Care Permanent,321000 - Social Community Care Supplies & Services - Adult
Solihull MBC,Adult Social Care,Adult Social Care,Accord Housing Asssociation,29/03/2021,,-2047.92,ASC - Residential Care Permanent,321000 - Social Community Care Supplies & Services - Adult
Solihull MBC,Adult Social Care,Adult Social Care,Accord Housing Asssociation,29/03/2021,,-14440.17,ASC - Residential Care Permanent,321000 - Social Community Care Supplies & Services - Adult
Solihull MBC,Adult Social Care,Adult Social Care,Accord Housing Asssociation,29/03/2021,,-28171.62,ASC - Residential Care Permanent,321000 - Social Community Care Supplies & Services - Adult
Solihull MBC,Adult Social Care,Adult Social Care,Accord Housing Asssociation,29/03/2021,,-18249.54,ASC - Residential Care Permanent,321000 - Social Community Care Supplies & Services - Adult
Solihull MBC,Adult Social Care,Adult Social Care,Accord Housing Asssociation,29/03/2021,,-19312.62,ASC - Residential Care Permanent,321000 - Social Community Care Supplies & Services - Adult
Solihull MBC,Adult Social Care,Adult Social Care,Accord Housing Asssociation,29/03/2021,,-16300.56,ASC - Residential Care Permanent,321000 - Social Community Care Supplies & Services - Adult
Solihull MBC,Adult Social Care,Adult Social Care,Accord Housing Asssociation,29/03/2021,,-10453.62,ASC - Residential Care Permanent,321000 - Social Community Care Supplies & Services - Adult
Solihull MBC,Adult Social Care,Adult Social Care,Accord Housing Asssociation,29/03/2021,,-29057.52,ASC - Residential Care Permanent,321000 - Social Community Care Supplies & Services - Adult
Solihull MBC,Adult Social Care,Adult Social Care,Accord Housing Asssociation,29/03/2021,,-9213.36,ASC - Residential Care Permanent,321000 - Social Community Care Supplies & Services - Adult
Solihull MBC,Adult Social Care,Adult Social Care,Accord Housing Asssociation,29/03/2021,,-34461.51,ASC - Residential Care Permanent,321000 - Social Community Care Supplies & Services - Adult
Solihull MBC,Adult Social Care,Adult Social Care,Accord Housing Asssociation,29/03/2021,,-14617.35,ASC - Residential Care Permanent,321000 - Social Community Care Supplies & Services - Adult
Solihull MBC,Adult Social Care,Adult Social Care,Accord Housing Asssociation,29/03/2021,,-14528.76,ASC - Residential Care Permanent,321000 - Social Community Care Supplies & Services - Adult
Solihull MBC,Adult Social Care,Adult Social Care,Accord Housing Asssociation,29/03/2021,,-3455.01,ASC - Residential Care Permanent,321000 - Social Community Care Supplies & Services - Adult
Solihull MBC,Adult Social Care,Adult Social Care,Accord Housing Asssociation,29/03/2021,,-14971.71,ASC - Residential Care Permanent,321000 - Social Community Care Supplies & Services - Adult
Solihull MBC,Adult Social Care,Adult Social Care,Accord Housing Asssociation,29/03/2021,,-14351.58,ASC - Residential Care Permanent,321000 - Social Community Care Supplies & Services - Adult
Solihull MBC,Adult Social Care,Adult Social Care,Accord Housing Asssociation,29/03/2021,,-33132.66,ASC - Residential Care Permanent,321000 - Social Community Care Supplies & Services - Adult
Solihull MBC,Adult Social Care,Adult Social Care,Accord Housing Asssociation,29/03/2021,,-20552.88,ASC - Residential Care Permanent,321000 - Social Community Care Supplies & Services - Adult
Solihull MBC,Adult Social Care,Adult Social Care,Accord Housing Asssociation,29/03/2021,,-23476.35,ASC - Residential Care Permanent,321000 - Social Community Care Supplies & Services - Adult
Solihull MBC,Adult Social Care,Adult Social Care,Accord Housing Asssociation,29/03/2021,,-6201.3,ASC - Residential Care Permanent,321000 - Social Community Care Supplies & Services - Adult
Solihull MBC,Adult Social Care,Adult Social Care,Accord Housing Asssociation,29/03/2021,,341.32,ASC - Residential Care Permanent,321000 - Social Community Care Supplies & Services - Adult
Solihull MBC,Adult Social Care,Adult Social Care,Accord Housing Asssociation,29/03/2021,,-6467.07,ASC - Residential Care Permanent,321000 - Social Community Care Supplies & Services - Adult
Solihull MBC,Adult Social Care,Adult Social Care,Accord Housing Asssociation,29/03/2021,,682.64,ASC - Residential Care Permanent,321000 - Social Community Care Supplies & Services - Adult
Solihull MBC,Adult Social Care,Adult Social Care,Accord Housing Asssociation,29/03/2021,,3327.87,ASC - Residential Care Permanent,321000 - Social Community Care Supplies & Services - Adult
Solihull MBC,Adult Social Care,Adult Social Care,Accord Housing Asssociation,29/03/2021,,5034.47,ASC - Residential Care Permanent,321000 - Social Community Care Supplies & Services - Adult
Solihull MBC,Adult Social Care,Adult Social Care,Accord Housing Asssociation,29/03/2021,,5119.8,ASC - Residential Care Permanent,321000 - Social Community Care Supplies & Services - Adult
Solihull MBC,Adult Social Care,Adult Social Care,Accord Housing Asssociation,29/03/2021,,5138.22,ASC - Residential Care Permanent,321000 - Social Community Care Supplies & Services - Adult
Solihull MBC,Adult Social Care,Adult Social Care,Accord Housing Asssociation,29/03/2021,,-17833.97,ASC - Residential Care Permanent,321000 - Social Community Care Supplies & Services - Adult
Solihull MBC,Adult Social Care,Adult Social Care,Accord Housing Asssociation,29/03/2021,,5581.17,ASC - Residential Care Permanent,321000 - Social Community Care Supplies & Services - Adult
Solihull MBC,Adult Social Care,Adult Social Care,Accord Housing Asssociation,29/03/2021,,620.13,ASC - Residential Care Permanent,321000 - Social Community Care Supplies & Services - Adult
Solihull MBC,Adult Social Care,Adult Social Care,Accord Housing Asssociation,29/03/2021,,6821.43,ASC - Residential Care Permanent,321000 - Social Community Care Supplies & Services - Adult
Solihull MBC,Adult Social Care,Adult Social Care,Accord Housing Asssociation,29/03/2021,,6998.61,ASC - Residential Care Permanent,321000 - Social Community Care Supplies & Services - Adult
Solihull MBC,Adult Social Care,Adult Social Care,Accord Housing Asssociation,29/03/2021,,7618.74,ASC - Residential Care Permanent,321000 - Social Community Care Supplies & Services - Adult
Solihull MBC,Adult Social Care,Adult Social Care,Accord Housing Asssociation,29/03/2021,,7884.51,ASC - Residential Care Permanent,321000 - Social Community Care Supplies & Services - Adult
Solihull MBC,Adult Social Care,Adult Social Care,Accord Housing Asssociation,29/03/2021,,8021.02,ASC - Residential Care Permanent,321000 - Social Community Care Supplies & Services - Adult
Solihull MBC,Adult Social Care,Adult Social Care,Accord Housing Asssociation,29/03/2021,,-2389.24,ASC - Residential Care Permanent,321000 - Social Community Care Supplies & Services - Adult
Solihull MBC,Adult Social Care,Adult Social Care,Accord Housing Asssociation,29/03/2021,,9213.36,ASC - Residential Care Permanent,321000 - Social Community Care Supplies & Services - Adult
Solihull MBC,Adult Social Care,Adult Social Care,Accord Housing Asssociation,29/03/2021,,1860.39,ASC - Residential Care Permanent,321000 - Social Community Care Supplies & Services - Adult
Solihull MBC,Adult Social Care,Adult Social Care,Accord Housing Asssociation,29/03/2021,,10010.67,ASC - Residential Care Permanent,321000 - Social Community Care Supplies & Services - Adult
Solihull MBC,Adult Social Care,Adult Social Care,Accord Housing Asssociation,29/03/2021,,1860.39,ASC - Residential Care Permanent,321000 - Social Community Care Supplies & Services - Adult
Solihull MBC,Adult Social Care,Adult Social Care,Accord Housing Asssociation,29/03/2021,,11348.89,ASC - Residential Care Permanent,321000 - Social Community Care Supplies & Services - Adult
Solihull MBC,Adult Social Care,Adult Social Care,Accord Housing Asssociation,29/03/2021,,-797.31,ASC - Residential Care Permanent,321000 - Social Community Care Supplies & Services - Adult
Solihull MBC,Adult Social Care,Adult Social Care,Accord Housing Asssociation,29/03/2021,,-2389.24,ASC - Residential Care Permanent,321000 - Social Community Care Supplies & Services - Adult
Solihull MBC,Adult Social Care,Adult Social Care,Accord Housing Asssociation,29/03/2021,,2480.52,ASC - Residential Care Permanent,321000 - Social Community Care Supplies & Services - Adult
Solihull MBC,Adult Social Care,Adult Social Care,Accord Housing Asssociation,29/03/2021,,12934.14,ASC - Residential Care Permanent,321000 - Social Community Care Supplies & Services - Adult
Solihull MBC,Adult Social Care,Adult Social Care,Accord Housing Asssociation,29/03/2021,,13288.5,ASC - Residential Care Permanent,321000 - Social Community Care Supplies & Services - Adult
Solihull MBC,Adult Social Care,Adult Social Care,Accord Housing Asssociation,29/03/2021,,-2480.52,ASC - Residential Care Permanent,321000 - Social Community Care Supplies & Services - Adult
Solihull MBC,Adult Social Care,Adult Social Care,Accord Housing Asssociation,29/03/2021,,13908.63,ASC - Residential Care Permanent,321000 - Social Community Care Supplies & Services - Adult
Solihull MBC,Adult Social Care,Adult Social Care,Accord Housing Asssociation,29/03/2021,,14174.4,ASC - Residential Care Permanent,321000 - Social Community Care Supplies & Services - Adult
Solihull MBC,Adult Social Care,Adult Social Care,Accord Housing Asssociation,29/03/2021,,14351.58,ASC - Residential Care Permanent,321000 - Social Community Care Supplies & Services - Adult
Solihull MBC,Adult Social Care,Adult Social Care,Accord Housing Asssociation,29/03/2021,,14528.76,ASC - Residential Care Permanent,321000 - Social Community Care Supplies & Services - Adult
Solihull MBC,Adult Social Care,Adult Social Care,Accord Housing Asssociation,29/03/2021,,14591.43,ASC - Residential Care Permanent,321000 - Social Community Care Supplies & Services - Adult
Solihull MBC,Adult Social Care,Adult Social Care,Accord Housing Asssociation,29/03/2021,,14617.35,ASC - Residential Care Permanent,321000 - Social Community Care Supplies & Services - Adult
Solihull MBC,Adult Social Care,Adult Social Care,Accord Housing Asssociation,29/03/2021,,-2389.24,ASC - Residential Care Permanent,321000 - Social Community Care Supplies & Services - Adult
Solihull MBC,Adult Social Care,Adult Social Care,Accord Housing Asssociation,29/03/2021,,-2389.24,ASC - Residential Care Permanent,321000 - Social Community Care Supplies & Services - Adult
Solihull MBC,Adult Social Care,Adult Social Care,Accord Housing Asssociation,29/03/2021,,16300.56,ASC - Residential Care Permanent,321000 - Social Community Care Supplies & Services - Adult
Solihull MBC,Adult Social Care,Adult Social Care,Accord Housing Asssociation,29/03/2021,,17151.33,ASC - Residential Care Permanent,321000 - Social Community Care Supplies & Services - Adult
Solihull MBC,Adult Social Care,Adult Social Care,Accord Housing Asssociation,29/03/2021,,17151.33,ASC - Residential Care Permanent,321000 - Social Community Care Supplies & Services - Adult
Solihull MBC,Adult Social Care,Adult Social Care,Accord Housing Asssociation,29/03/2021,,-2389.24,ASC - Residential Care Permanent,321000 - Social Community Care Supplies & Services - Adult
Solihull MBC,Adult Social Care,Adult Social Care,Accord Housing Asssociation,29/03/2021,,18249.54,ASC - Residential Care Permanent,321000 - Social Community Care Supplies & Services - Adult
Solihull MBC,Adult Social Care,Adult Social Care,Accord Housing Asssociation,29/03/2021,,18431.28,ASC - Residential Care Permanent,321000 - Social Community Care Supplies & Services - Adult
Solihull MBC,Adult Social Care,Adult Social Care,Accord Housing Asssociation,29/03/2021,,19312.62,ASC - Residential Care Permanent,321000 - Social Community Care Supplies & Services - Adult
Solihull MBC,Adult Social Care,Adult Social Care,Accord Housing Asssociation,29/03/2021,,19578.39,ASC - Residential Care Permanent,321000 - Social Community Care Supplies & Services - Adult
Solihull MBC,Adult Social Care,Adult Social Care,Accord Housing Asssociation,29/03/2021,,20223.21,ASC - Residential Care Permanent,321000 - Social Community Care Supplies & Services - Adult
Solihull MBC,Adult Social Care,Adult Social Care,Accord Housing Asssociation,29/03/2021,,20552.88,ASC - Residential Care Permanent,321000 - Social Community Care Supplies & Services - Adult
Solihull MBC,Adult Social Care,Adult Social Care,Accord Housing Asssociation,29/03/2021,,20730.06,ASC - Residential Care Permanent,321000 - Social Community Care Supplies & Services - Adult
Solihull MBC,Adult Social Care,Adult Social Care,Accord Housing Asssociation,29/03/2021,,22697.78,ASC - Residential Care Permanent,321000 - Social Community Care Supplies & Services - Adult
Solihull MBC,Adult Social Care,Adult Social Care,Accord Housing Asssociation,29/03/2021,,-620.13,ASC - Residential Care Permanent,321000 - Social Community Care Supplies & Services - Adult
Solihull MBC,Adult Social Care,Adult Social Care,Accord Housing Asssociation,29/03/2021,,23209.76,ASC - Residential Care Permanent,321000 - Social Community Care Supplies & Services - Adult
Solihull MBC,Adult Social Care,Adult Social Care,Accord Housing Asssociation,29/03/2021,,23476.35,ASC - Residential Care Permanent,321000 - Social Community Care Supplies & Services - Adult
Solihull MBC,Adult Social Care,Adult Social Care,Accord Housing Asssociation,29/03/2021,,620.13,ASC - Residential Care Permanent,321000 - Social Community Care Supplies & Services - Adult
Solihull MBC,Adult Social Care,Adult Social Care,Accord Housing Asssociation,29/03/2021,,25513.92,ASC - Residential Care Permanent,321000 - Social Community Care Supplies & Services - Adult
Solihull MBC,Adult Social Care,Adult Social Care,Accord Housing Asssociation,29/03/2021,,5080.16,ASC - Residential Care Respite,321000 - Social Community Care Supplies & Services - Adult
Solihull MBC,Adult Social Care,Adult Social Care,Accord Housing Asssociation,29/03/2021,,5080.16,ASC - Residential Care Respite,321000 - Social Community Care Supplies & Services - Adult
Solihull MBC,Adult Social Care,Adult Social Care,Accord Housing Asssociation,29/03/2021,,5080.16,ASC - Residential Care Respite,321000 - Social Community Care Supplies & Services - Adult
Solihull MBC,Adult Social Care,Adult Social Care,Accord Housing Asssociation,29/03/2021,,5080.16,ASC - Residential Care Respite,321000 - Social Community Care Supplies & Services - Adult
Solihull MBC,Adult Social Care,Adult Social Care,Accord Housing Asssociation,29/03/2021,,442.95,ASC - Residential Care Respite,321000 - Social Community Care Supplies & Services - Adult
Solihull MBC,Adult Social Care,Adult Social Care,Accord Housing Asssociation,29/03/2021,,3100.65,ASC - Residential Care Respite,321000 - Social Community Care Supplies & Services - Adult
Solihull MBC,Adult Social Care,Adult Social Care,Accord Housing Asssociation,29/03/2021,,4961.04,ASC - Residential Care Respite,321000 - Social Community Care Supplies & Services - Adult
Solihull MBC,Adult Social Care,Adult Social Care,Accord Housing Asssociation,29/03/2021,,5669.76,ASC - Residential Care Respite,321000 - Social Community Care Supplies & Services - Adult
Solihull MBC,Adult Social Care,Adult Social Care,Accord Housing Asssociation,29/03/2021,,11073.75,ASC - Residential Care Respite,321000 - Social Community Care Supplies & Services - Adult
Solihull MBC,Adult Social Care,Adult Social Care,Accord Housing Asssociation,29/03/2021,,13642.86,ASC - Residential Care Respite,321000 - Social Community Care Supplies & Services - Adult
Solihull MBC,Adult Social Care,Adult Social Care,Accord Housing Asssociation,29/03/2021,,5080.16,ASC - Residential Care Respite,321000 - Social Community Care Supplies & Services - Adult
Solihull MBC,Adult Social Care,Adult Social Care,Accord Housing Asssociation,29/03/2021,,9124.77,ASC - Residential Care Permanent,321000 - Social Community Care Supplies & Services - Adult
Solihull MBC,Adult Social Care,Adult Social Care,Accord Housing Asssociation,29/03/2021,,-3413.2,ASC - Residential Care Permanent,321000 - Social Community Care Supplies & Services - Adult
Solihull MBC,Adult Social Care,Adult Social Care,Accord Housing Asssociation,29/03/2021,,-853.3,ASC - Residential Care Respite,321000 - Social Community Care Supplies & Services - Adult
Solihull MBC,Adult Social Care,Adult Social Care,Accord Housing Asssociation,29/03/2021,,-7973.1,ASC - Residential Care Respite,321000 - Social Community Care Supplies & Services - Adult
Solihull MBC,Adult Social Care,Adult Social Care,Accord Housing Asssociation,29/03/2021,,7087.2,ASC - Residential Care Respite,321000 - Social Community Care Supplies & Services - Adult
Solihull MBC,Adult Social Care,Adult Social Care,Accord Housing Asssociation,29/03/2021,,-341.32,ASC - Residential Care Permanent,321000 - Social Community Care Supplies & Services - Adult
Solihull MBC,Adult Social Care,Adult Social Care,Accord Housing Asssociation,29/03/2021,,-2834.88,ASC - Residential Care Permanent,321000 - Social Community Care Supplies & Services - Adult
Solihull MBC,Adult Social Care,Adult Social Care,Accord Housing Asssociation,29/03/2021,,-4961.04,ASC - Residential Care Permanent,321000 - Social Community Care Supplies & Services - Adult
Solihull MBC,Adult Social Care,Adult Social Care,Accord Housing Asssociation,29/03/2021,,-3189.24,ASC - Residential Care Permanent,321000 - Social Community Care Supplies & Services - Adult
Solihull MBC,Adult Social Care,Adult Social Care,Accord Housing Asssociation,29/03/2021,,-1771.8,ASC - Residential Care Permanent,321000 - Social Community Care Supplies & Services - Adult
Solihull MBC,Adult Social Care,Adult Social Care,Accord Housing Asssociation,29/03/2021,,-4961.04,ASC - Residential Care Permanent,321000 - Social Community Care Supplies & Services - Adult
Solihull MBC,Adult Social Care,Adult Social Care,Accord Housing Asssociation,29/03/2021,,-4961.04,ASC - Residential Care Permanent,321000 - Social Community Care Supplies & Services - Adult
Solihull MBC,Adult Social Care,Adult Social Care,Accord Housing Asssociation,29/03/2021,,-4961.04,ASC - Residential Care Permanent,321000 - Social Community Care Supplies & Services - Adult
Solihull MBC,Adult Social Care,Adult Social Care,Accord Housing Asssociation,29/03/2021,,-4961.04,ASC - Residential Care Permanent,321000 - Social Community Care Supplies & Services - Adult
Solihull MBC,Adult Social Care,Adult Social Care,Accord Housing Asssociation,29/03/2021,,-2480.52,ASC - Residential Care Permanent,321000 - Social Community Care Supplies & Services - Adult
Solihull MBC,Adult Social Care,Adult Social Care,Accord Housing Asssociation,29/03/2021,,-2480.52,ASC - Residential Care Permanent,321000 - Social Community Care Supplies & Services - Adult
Solihull MBC,Adult Social Care,Adult Social Care,Accord Housing Asssociation,29/03/2021,,-3720.78,ASC - Residential Care Permanent,321000 - Social Community Care Supplies & Services - Adult
Solihull MBC,Adult Social Care,Adult Social Care,Accord Housing Asssociation,29/03/2021,,-1240.26,ASC - Residential Care Permanent,321000 - Social Community Care Supplies & Services - Adult
Solihull MBC,Adult Social Care,Adult Social Care,Accord Housing Asssociation,29/03/2021,,-4961.04,ASC - Residential Care Permanent,321000 - Social Community Care Supplies & Services - Adult
Solihull MBC,Adult Social Care,Adult Social Care,Accord Housing Asssociation,29/03/2021,,-4961.04,ASC - Residential Care Permanent,321000 - Social Community Care Supplies & Services - Adult
Solihull MBC,Adult Social Care,Adult Social Care,Accord Housing Asssociation,29/03/2021,,-4961.04,ASC - Residential Care Permanent,321000 - Social Community Care Supplies & Services - Adult
Solihull MBC,Adult Social Care,Adult Social Care,Accord Housing Asssociation,24/03/2021,,797.31,ASC - Residential Care Permanent,321000 - Social Community Care Supplies & Services - Adult
Solihull MBC,Adult Social Care,Adult Social Care,Accord Housing Asssociation,24/03/2021,,1328.85,ASC - Residential Care Respite,321000 - Social Community Care Supplies & Services - Adult
Solihull MBC,Adult Social Care,Adult Social Care,Accord Housing Asssociation,24/03/2021,,-1860.39,ASC - Residential Care Permanent,321000 - Social Community Care Supplies & Services - Adult
Solihull MBC,Adult Social Care,Adult Social Care,Accord Housing Asssociation,24/03/2021,,620.13,ASC - Residential Care Permanent,321000 - Social Community Care Supplies & Services - Adult
Solihull MBC,Adult Social Care,Adult Social Care,Accord Housing Asssociation,24/03/2021,,1240.26,ASC - Residential Care Permanent,321000 - Social Community Care Supplies & Services - Adult
Solihull MBC,Adult Social Care,Adult Social Care,Accord Housing Asssociation,24/03/2021,,2480.52,ASC - Residential Care Permanent,321000 - Social Community Care Supplies & Services - Adult
Solihull MBC,Adult Social Care,Adult Social Care,Accord Housing Asssociation,24/03/2021,,-974.49,ASC - Residential Care Permanent,321000 - Social Community Care Supplies & Services - Adult
Solihull MBC,Adult Social Care,Adult Social Care,Accord Housing Asssociation,24/03/2021,,885.9,ASC - Residential Care Permanent,321000 - Social Community Care Supplies & Services - Adult
Solihull MBC,Adult Social Care,Adult Social Care,Accord Housing Asssociation,24/03/2021,,-1594.62,ASC - Residential Care Permanent,321000 - Social Community Care Supplies & Services - Adult
Solihull MBC,Adult Social Care,Adult Social Care,Accord Housing Asssociation,24/03/2021,,354.36,ASC - Residential Care Permanent,321000 - Social Community Care Supplies & Services - Adult
Solihull MBC,Adult Social Care,Adult Social Care,Accord Housing Asssociation,24/03/2021,,1240.26,ASC - Residential Care Permanent,321000 - Social Community Care Supplies & Services - Adult
Solihull MBC,Adult Social Care,Adult Social Care,Accord Housing Asssociation,24/03/2021,,-2389.24,ASC - Residential Care Permanent,321000 - Social Community Care Supplies & Services - Adult
Solihull MBC,Adult Social Care,Adult Social Care,Accord Housing Asssociation,24/03/2021,,-1860.39,ASC - Residential Care Permanent,321000 - Social Community Care Supplies & Services - Adult
Solihull MBC,Adult Social Care,Adult Social Care,Accord Housing Asssociation,24/03/2021,,-2480.52,ASC - Residential Care Permanent,321000 - Social Community Care Supplies & Services - Adult
Solihull MBC,Adult Social Care,Adult Social Care,Accord Housing Asssociation,24/03/2021,,-2480.52,ASC - Residential Care Permanent,321000 - Social Community Care Supplies & Services - Adult
Solihull MBC,Adult Social Care,Adult Social Care,Accord Housing Asssociation,24/03/2021,,442.95,ASC - Residential Care Permanent,321000 - Social Community Care Supplies & Services - Adult
Solihull MBC,Adult Social Care,Adult Social Care,Accord Housing Asssociation,24/03/2021,,682.64,ASC - Residential Care Permanent,321000 - Social Community Care Supplies & Services - Adult
Solihull MBC,Adult Social Care,Adult Social Care,Accord Housing Asssociation,24/03/2021,,885.9,ASC - Residential Care Permanent,321000 - Social Community Care Supplies & Services - Adult
Solihull MBC,Adult Social Care,Adult Social Care,Accord Housing Asssociation,24/03/2021,,1240.26,ASC - Residential Care Permanent,321000 - Social Community Care Supplies & Services - Adult
Solihull MBC,Adult Social Care,Adult Social Care,Accord Housing Asssociation,24/03/2021,,1240.26,ASC - Residential Care Permanent,321000 - Social Community Care Supplies & Services - Adult
Solihull MBC,Adult Social Care,Adult Social Care,Accord Housing Asssociation,24/03/2021,,1417.44,ASC - Residential Care Permanent,321000 - Social Community Care Supplies & Services - Adult
Solihull MBC,Adult Social Care,Adult Social Care,Accord Housing Asssociation,24/03/2021,,1594.62,ASC - Residential Care Permanent,321000 - Social Community Care Supplies & Services - Adult
Solihull MBC,Adult Social Care,Adult Social Care,Accord Housing Asssociation,24/03/2021,,1706.6,ASC - Residential Care Permanent,321000 - Social Community Care Supplies & Services - Adult
Solihull MBC,Adult Social Care,Adult Social Care,Accord Housing Asssociation,24/03/2021,,2480.52,ASC - Residential Care Permanent,321000 - Social Community Care Supplies & Services - Adult
Solihull MBC,Adult Social Care,Adult Social Care,Accord Housing Asssociation,24/03/2021,,-2389.24,ASC - Residential Care Permanent,321000 - Social Community Care Supplies & Services - Adult
Solihull MBC,Adult Social Care,Adult Social Care,Accord Housing Asssociation,24/03/2021,,-1860.39,ASC - Residential Care Permanent,321000 - Social Community Care Supplies & Services - Adult
Solihull MBC,Adult Social Care,Adult Social Care,Accord Housing Asssociation,24/03/2021,,-2480.52,ASC - Residential Care Permanent,321000 - Social Community Care Supplies & Services - Adult
Solihull MBC,Adult Social Care,Adult Social Care,Accord Housing Asssociation,24/03/2021,,442.95,ASC - Residential Care Permanent,321000 - Social Community Care Supplies & Services - Adult
Solihull MBC,Adult Social Care,Adult Social Care,Accord Housing Asssociation,24/03/2021,,682.64,ASC - Residential Care Permanent,321000 - Social Community Care Supplies & Services - Adult
Solihull MBC,Adult Social Care,Adult Social Care,Accord Housing Asssociation,24/03/2021,,885.9,ASC - Residential Care Permanent,321000 - Social Community Care Supplies & Services - Adult
Solihull MBC,Adult Social Care,Adult Social Care,Accord Housing Asssociation,24/03/2021,,1417.44,ASC - Residential Care Permanent,321000 - Social Community Care Supplies & Services - Adult
Solihull MBC,Adult Social Care,Adult Social Care,Accord Housing Asssociation,24/03/2021,,1594.62,ASC - Residential Care Permanent,321000 - Social Community Care Supplies & Services - Adult
Solihull MBC,Adult Social Care,Adult Social Care,Accord Housing Asssociation,24/03/2021,,1706.6,ASC - Residential Care Permanent,321000 - Social Community Care Supplies & Services - Adult
Solihull MBC,Adult Social Care,Adult Social Care,Accord Housing Asssociation,24/03/2021,,-1860.39,ASC - Residential Care Permanent,321000 - Social Community Care Supplies & Services - Adult
Solihull MBC,Adult Social Care,Adult Social Care,Accord Housing Asssociation,24/03/2021,,-2480.52,ASC - Residential Care Permanent,321000 - Social Community Care Supplies & Services - Adult
Solihull MBC,Adult Social Care,Adult Social Care,Accord Housing Asssociation,24/03/2021,,-2480.52,ASC - Residential Care Permanent,321000 - Social Community Care Supplies & Services - Adult
Solihull MBC,Adult Social Care,Adult Social Care,Accord Housing Asssociation,24/03/2021,,442.95,ASC - Residential Care Permanent,321000 - Social Community Care Supplies & Services - Adult
Solihull MBC,Adult Social Care,Adult Social Care,Accord Housing Asssociation,24/03/2021,,885.9,ASC - Residential Care Permanent,321000 - Social Community Care Supplies & Services - Adult
Solihull MBC,Adult Social Care,Adult Social Care,Accord Housing Asssociation,24/03/2021,,1240.26,ASC - Residential Care Permanent,321000 - Social Community Care Supplies & Services - Adult
Solihull MBC,Adult Social Care,Adult Social Care,Accord Housing Asssociation,24/03/2021,,1240.26,ASC - Residential Care Permanent,321000 - Social Community Care Supplies & Services - Adult
Solihull MBC,Adult Social Care,Adult Social Care,Accord Housing Asssociation,24/03/2021,,1417.44,ASC - Residential Care Permanent,321000 - Social Community Care Supplies & Services - Adult
Solihull MBC,Adult Social Care,Adult Social Care,Accord Housing Asssociation,24/03/2021,,1594.62,ASC - Residential Care Permanent,321000 - Social Community Care Supplies & Services - Adult
Solihull MBC,Adult Social Care,Adult Social Care,Accord Housing Asssociation,24/03/2021,,2480.52,ASC - Residential Care Permanent,321000 - Social Community Care Supplies & Services - Adult
Solihull MBC,Adult Social Care,Adult Social Care,Accord Housing Asssociation,24/03/2021,,-2389.24,ASC - Residential Care Permanent,321000 - Social Community Care Supplies & Services - Adult
Solihull MBC,Adult Social Care,Adult Social Care,Accord Housing Asssociation,24/03/2021,,-1860.39,ASC - Residential Care Permanent,321000 - Social Community Care Supplies & Services - Adult
Solihull MBC,Adult Social Care,Adult Social Care,Accord Housing Asssociation,24/03/2021,,-2480.52,ASC - Residential Care Permanent,321000 - Social Community Care Supplies & Services - Adult
Solihull MBC,Adult Social Care,Adult Social Care,Accord Housing Asssociation,24/03/2021,,442.95,ASC - Residential Care Permanent,321000 - Social Community Care Supplies & Services - Adult
Solihull MBC,Adult Social Care,Adult Social Care,Accord Housing Asssociation,24/03/2021,,682.64,ASC - Residential Care Permanent,321000 - Social Community Care Supplies & Services - Adult
Solihull MBC,Adult Social Care,Adult Social Care,Accord Housing Asssociation,24/03/2021,,885.9,ASC - Residential Care Permanent,321000 - Social Community Care Supplies & Services - Adult
Solihull MBC,Adult Social Care,Adult Social Care,Accord Housing Asssociation,24/03/2021,,1417.44,ASC - Residential Care Permanent,321000 - Social Community Care Supplies & Services - Adult
Solihull MBC,Adult Social Care,Adult Social Care,Accord Housing Asssociation,24/03/2021,,1594.62,ASC - Residential Care Permanent,321000 - Social Community Care Supplies & Services - Adult
Solihull MBC,Adult Social Care,Adult Social Care,Accord Housing Asssociation,24/03/2021,,1706.6,ASC - Residential Care Permanent,321000 - Social Community Care Supplies & Services - Adult
Solihull MBC,Adult Social Care,Adult Social Care,Accord Housing Asssociation,24/03/2021,,-2389.24,ASC - Residential Care Permanent,321000 - Social Community Care Supplies & Services - Adult
Solihull MBC,Adult Social Care,Adult Social Care,Accord Housing Asssociation,24/03/2021,,-1860.39,ASC - Residential Care Permanent,321000 - Social Community Care Supplies & Services - Adult
Solihull MBC,Adult Social Care,Adult Social Care,Accord Housing Asssociation,24/03/2021,,-2480.52,ASC - Residential Care Permanent,321000 - Social Community Care Supplies & Services - Adult
Solihull MBC,Adult Social Care,Adult Social Care,Accord Housing Asssociation,24/03/2021,,442.95,ASC - Residential Care Permanent,321000 - Social Community Care Supplies & Services - Adult
Solihull MBC,Adult Social Care,Adult Social Care,Accord Housing Asssociation,24/03/2021,,682.64,ASC - Residential Care Permanent,321000 - Social Community Care Supplies & Services - Adult
Solihull MBC,Adult Social Care,Adult Social Care,Accord Housing Asssociation,24/03/2021,,885.9,ASC - Residential Care Permanent,321000 - Social Community Care Supplies & Services - Adult
Solihull MBC,Adult Social Care,Adult Social Care,Accord Housing Asssociation,24/03/2021,,1417.44,ASC - Residential Care Permanent,321000 - Social Community Care Supplies & Services - Adult
Solihull MBC,Adult Social Care,Adult Social Care,Accord Housing Asssociation,24/03/2021,,1594.62,ASC - Residential Care Permanent,321000 - Social Community Care Supplies & Services - Adult
Solihull MBC,Adult Social Care,Adult Social Care,Accord Housing Asssociation,24/03/2021,,1706.6,ASC - Residential Care Permanent,321000 - Social Community Care Supplies & Services - Adult
Solihull MBC,Adult Social Care,Adult Social Care,Accord Housing Asssociation,24/03/2021,,2480.52,ASC - Residential Care Permanent,321000 - Social Community Care Supplies & Services - Adult
Solihull MBC,Adult Social Care,Adult Social Care,Accord Housing Asssociation,24/03/2021,,2480.52,ASC - Residential Care Permanent,321000 - Social Community Care Supplies & Services - Adult
Solihull MBC,Adult Social Care,Adult Social Care,Accord Housing Asssociation,24/03/2021,,-2480.52,ASC - Residential Care Permanent,321000 - Social Community Care Supplies & Services - Adult
Solihull MBC,Adult Social Care,Adult Social Care,Accord Housing Asssociation,24/03/2021,,-2480.52,ASC - Residential Care Permanent,321000 - Social Community Care Supplies & Services - Adult
Solihull MBC,Adult Social Care,Adult Social Care,Accord Housing Asssociation,24/03/2021,,-2480.52,ASC - Residential Care Permanent,321000 - Social Community Care Supplies & Services - Adult
Solihull MBC,Adult Social Care,Adult Social Care,Accord Housing Asssociation,24/03/2021,,1240.26,ASC - Residential Care Permanent,321000 - Social Community Care Supplies & Services - Adult
Solihull MBC,Adult Social Care,Adult Social Care,Accord Housing Asssociation,24/03/2021,,1240.26,ASC - Residential Care Permanent,321000 - Social Community Care Supplies & Services - Adult
Solihull MBC,Adult Social Care,Adult Social Care,Accord Housing Asssociation,24/03/2021,,2480.52,ASC - Residential Care Permanent,321000 - Social Community Care Supplies & Services - Adult
Solihull MBC,Adult Social Care,Adult Social Care,Accord Housing Asssociation,24/03/2021,,-2389.24,ASC - Residential Care Permanent,321000 - Social Community Care Supplies & Services - Adult
Solihull MBC,Adult Social Care,Adult Social Care,Accord Housing Asssociation,24/03/2021,,-1860.39,ASC - Residential Care Permanent,321000 - Social Community Care Supplies & Services - Adult
Solihull MBC,Adult Social Care,Adult Social Care,Accord Housing Asssociation,24/03/2021,,-2480.52,ASC - Residential Care Permanent,321000 - Social Community Care Supplies & Services - Adult
Solihull MBC,Adult Social Care,Adult Social Care,Accord Housing Asssociation,24/03/2021,,442.95,ASC - Residential Care Permanent,321000 - Social Community Care Supplies & Services - Adult
Solihull MBC,Adult Social Care,Adult Social Care,Accord Housing Asssociation,24/03/2021,,682.64,ASC - Residential Care Permanent,321000 - Social Community Care Supplies & Services - Adult
Solihull MBC,Adult Social Care,Adult Social Care,Accord Housing Asssociation,24/03/2021,,885.9,ASC - Residential Care Permanent,321000 - Social Community Care Supplies & Services - Adult
Solihull MBC,Adult Social Care,Adult Social Care,Accord Housing Asssociation,24/03/2021,,1417.44,ASC - Residential Care Permanent,321000 - Social Community Care Supplies & Services - Adult
Solihull MBC,Adult Social Care,Adult Social Care,Accord Housing Asssociation,24/03/2021,,1594.62,ASC - Residential Care Permanent,321000 - Social Community Care Supplies & Services - Adult
Solihull MBC,Adult Social Care,Adult Social Care,Accord Housing Asssociation,24/03/2021,,1706.6,ASC - Residential Care Permanent,321000 - Social Community Care Supplies & Services - Adult
Solihull MBC,Adult Social Care,Adult Social Care,Accord Housing Asssociation,24/03/2021,,-2389.24,ASC - Residential Care Permanent,321000 - Social Community Care Supplies & Services - Adult
Solihull MBC,Adult Social Care,Adult Social Care,Accord Housing Asssociation,24/03/2021,,-1860.39,ASC - Residential Care Permanent,321000 - Social Community Care Supplies & Services - Adult
Solihull MBC,Adult Social Care,Adult Social Care,Accord Housing Asssociation,24/03/2021,,-2480.52,ASC - Residential Care Permanent,321000 - Social Community Care Supplies & Services - Adult
Solihull MBC,Adult Social Care,Adult Social Care,Accord Housing Asssociation,24/03/2021,,442.95,ASC - Residential Care Permanent,321000 - Social Community Care Supplies & Services - Adult
Solihull MBC,Adult Social Care,Adult Social Care,Accord Housing Asssociation,24/03/2021,,682.64,ASC - Residential Care Permanent,321000 - Social Community Care Supplies & Services - Adult
Solihull MBC,Adult Social Care,Adult Social Care,Accord Housing Asssociation,24/03/2021,,885.9,ASC - Residential Care Permanent,321000 - Social Community Care Supplies & Services - Adult
Solihull MBC,Adult Social Care,Adult Social Care,Accord Housing Asssociation,24/03/2021,,1417.44,ASC - Residential Care Permanent,321000 - Social Community Care Supplies & Services - Adult
Solihull MBC,Adult Social Care,Adult Social Care,Accord Housing Asssociation,24/03/2021,,1594.62,ASC - Residential Care Permanent,321000 - Social Community Care Supplies & Services - Adult
Solihull MBC,Adult Social Care,Adult Social Care,Accord Housing Asssociation,24/03/2021,,1706.6,ASC - Residential Care Permanent,321000 - Social Community Care Supplies & Services - Adult
Solihull MBC,Adult Social Care,Adult Social Care,Accord Housing Asssociation,24/03/2021,,-2133.25,ASC - Residential Care Permanent,321000 - Social Community Care Supplies & Services - Adult
Solihull MBC,Adult Social Care,Adult Social Care,Accord Housing Asssociation,24/03/2021,,682.64,ASC - Residential Care Permanent,321000 - Social Community Care Supplies & Services - Adult
Solihull MBC,Adult Social Care,Adult Social Care,Accord Housing Asssociation,24/03/2021,,1450.61,ASC - Residential Care Permanent,321000 - Social Community Care Supplies & Services - Adult
Solihull MBC,Adult Social Care,Adult Social Care,Accord Housing Asssociation,24/03/2021,,-2389.24,ASC - Residential Care Permanent,321000 - Social Community Care Supplies & Services - Adult
Solihull MBC,Adult Social Care,Adult Social Care,Accord Housing Asssociation,24/03/2021,,-1860.39,ASC - Residential Care Permanent,321000 - Social Community Care Supplies & Services - Adult
Solihull MBC,Adult Social Care,Adult Social Care,Accord Housing Asssociation,24/03/2021,,-2480.52,ASC - Residential Care Permanent,321000 - Social Community Care Supplies & Services - Adult
Solihull MBC,Adult Social Care,Adult Social Care,Accord Housing Asssociation,24/03/2021,,-2480.52,ASC - Residential Care Permanent,321000 - Social Community Care Supplies & Services - Adult
Solihull MBC,Adult Social Care,Adult Social Care,Accord Housing Asssociation,24/03/2021,,442.95,ASC - Residential Care Permanent,321000 - Social Community Care Supplies & Services - Adult
Solihull MBC,Adult Social Care,Adult Social Care,Accord Housing Asssociation,24/03/2021,,682.64,ASC - Residential Care Permanent,321000 - Social Community Care Supplies & Services - Adult
Solihull MBC,Adult Social Care,Adult Social Care,Accord Housing Asssociation,24/03/2021,,885.9,ASC - Residential Care Permanent,321000 - Social Community Care Supplies & Services - Adult
Solihull MBC,Adult Social Care,Adult Social Care,Accord Housing Asssociation,24/03/2021,,1240.26,ASC - Residential Care Permanent,321000 - Social Community Care Supplies & Services - Adult
Solihull MBC,Adult Social Care,Adult Social Care,Accord Housing Asssociation,24/03/2021,,1240.26,ASC - Residential Care Permanent,321000 - Social Community Care Supplies & Services - Adult
Solihull MBC,Adult Social Care,Adult Social Care,Accord Housing Asssociation,24/03/2021,,1417.44,ASC - Residential Care Permanent,321000 - Social Community Care Supplies & Services - Adult
Solihull MBC,Adult Social Care,Adult Social Care,Accord Housing Asssociation,24/03/2021,,1594.62,ASC - Residential Care Permanent,321000 - Social Community Care Supplies & Services - Adult
Solihull MBC,Adult Social Care,Adult Social Care,Accord Housing Asssociation,24/03/2021,,1706.6,ASC - Residential Care Permanent,321000 - Social Community Care Supplies & Services - Adult
Solihull MBC,Adult Social Care,Adult Social Care,Accord Housing Asssociation,24/03/2021,,2480.52,ASC - Residential Care Permanent,321000 - Social Community Care Supplies & Services - Adult
Solihull MBC,Adult Social Care,Adult Social Care,Accord Housing Asssociation,24/03/2021,,-853.3,ASC - Residential Care Permanent,321000 - Social Community Care Supplies & Services - Adult
Solihull MBC,Adult Social Care,Adult Social Care,Accord Housing Asssociation,24/03/2021,,682.64,ASC - Residential Care Permanent,321000 - Social Community Care Supplies & Services - Adult
Solihull MBC,Adult Social Care,Adult Social Care,Accord Housing Asssociation,24/03/2021,,-531.54,ASC - Residential Care Permanent,321000 - Social Community Care Supplies & Services - Adult
Solihull MBC,Adult Social Care,Adult Social Care,Accord Housing Asssociation,24/03/2021,,442.95,ASC - Residential Care Permanent,321000 - Social Community Care Supplies & Services - Adult
Solihull MBC,Adult Social Care,Adult Social Care,Accord Housing Asssociation,24/03/2021,,-2389.24,ASC - Residential Care Permanent,321000 - Social Community Care Supplies & Services - Adult
Solihull MBC,Adult Social Care,Adult Social Care,Accord Housing Asssociation,24/03/2021,,682.64,ASC - Residential Care Permanent,321000 - Social Community Care Supplies & Services - Adult
Solihull MBC,Adult Social Care,Adult Social Care,Accord Housing Asssociation,24/03/2021,,1706.6,ASC - Residential Care Permanent,321000 - Social Community Care Supplies & Services - Adult
Solihull MBC,Adult Social Care,Adult Social Care,Accord Housing Asssociation,24/03/2021,,-2480.52,ASC - Residential Care Permanent,321000 - Social Community Care Supplies & Services - Adult
Solihull MBC,Adult Social Care,Adult Social Care,Accord Housing Asssociation,24/03/2021,,1240.26,ASC - Residential Care Permanent,321000 - Social Community Care Supplies & Services - Adult
Solihull MBC,Adult Social Care,Adult Social Care,Accord Housing Asssociation,24/03/2021,,1240.26,ASC - Residential Care Permanent,321000 - Social Community Care Supplies & Services - Adult
Solihull MBC,Adult Social Care,Adult Social Care,Accord Housing Asssociation,24/03/2021,,2480.52,ASC - Residential Care Permanent,321000 - Social Community Care Supplies & Services - Adult
Solihull MBC,Adult Social Care,Adult Social Care,Accord Housing Asssociation,24/03/2021,,-2389.24,ASC - Residential Care Permanent,321000 - Social Community Care Supplies & Services - Adult
Solihull MBC,Adult Social Care,Adult Social Care,Accord Housing Asssociation,24/03/2021,,-974.49,ASC - Residential Care Permanent,321000 - Social Community Care Supplies & Services - Adult
Solihull MBC,Adult Social Care,Adult Social Care,Accord Housing Asssociation,24/03/2021,,442.95,ASC - Residential Care Permanent,321000 - Social Community Care Supplies & Services - Adult
Solihull MBC,Adult Social Care,Adult Social Care,Accord Housing Asssociation,24/03/2021,,531.54,ASC - Residential Care Permanent,321000 - Social Community Care Supplies & Services - Adult
Solihull MBC,Adult Social Care,Adult Social Care,Accord Housing Asssociation,24/03/2021,,682.64,ASC - Residential Care Permanent,321000 - Social Community Care Supplies & Services - Adult
Solihull MBC,Adult Social Care,Adult Social Care,Accord Housing Asssociation,24/03/2021,,1706.6,ASC - Residential Care Permanent,321000 - Social Community Care Supplies & Services - Adult
Solihull MBC,Adult Social Care,Adult Social Care,Accord Housing Asssociation,24/03/2021,,-2389.24,ASC - Residential Care Permanent,321000 - Social Community Care Supplies & Services - Adult
Solihull MBC,Adult Social Care,Adult Social Care,Accord Housing Asssociation,24/03/2021,,-1860.39,ASC - Residential Care Permanent,321000 - Social Community Care Supplies & Services - Adult
Solihull MBC,Adult Social Care,Adult Social Care,Accord Housing Asssociation,24/03/2021,,-2480.52,ASC - Residential Care Permanent,321000 - Social Community Care Supplies & Services - Adult
Solihull MBC,Adult Social Care,Adult Social Care,Accord Housing Asssociation,24/03/2021,,-2480.52,ASC - Residential Care Permanent,321000 - Social Community Care Supplies & Services - Adult
Solihull MBC,Adult Social Care,Adult Social Care,Accord Housing Asssociation,24/03/2021,,442.95,ASC - Residential Care Permanent,321000 - Social Community Care Supplies & Services - Adult
Solihull MBC,Adult Social Care,Adult Social Care,Accord Housing Asssociation,24/03/2021,,682.64,ASC - Residential Care Permanent,321000 - Social Community Care Supplies & Services - Adult
Solihull MBC,Adult Social Care,Adult Social Care,Accord Housing Asssociation,24/03/2021,,885.9,ASC - Residential Care Permanent,321000 - Social Community Care Supplies & Services - Adult
Solihull MBC,Adult Social Care,Adult Social Care,Accord Housing Asssociation,24/03/2021,,1240.26,ASC - Residential Care Permanent,321000 - Social Community Care Supplies & Services - Adult
Solihull MBC,Adult Social Care,Adult Social Care,Accord Housing Asssociation,24/03/2021,,1240.26,ASC - Residential Care Permanent,321000 - Social Community Care Supplies & Services - Adult
Solihull MBC,Adult Social Care,Adult Social Care,Accord Housing Asssociation,24/03/2021,,1417.44,ASC - Residential Care Permanent,321000 - Social Community Care Supplies & Services - Adult
Solihull MBC,Adult Social Care,Adult Social Care,Accord Housing Asssociation,24/03/2021,,1594.62,ASC - Residential Care Permanent,321000 - Social Community Care Supplies & Services - Adult
Solihull MBC,Adult Social Care,Adult Social Care,Accord Housing Asssociation,24/03/2021,,1706.6,ASC - Residential Care Permanent,321000 - Social Community Care Supplies & Services - Adult
Solihull MBC,Adult Social Care,Adult Social Care,Accord Housing Asssociation,24/03/2021,,2480.52,ASC - Residential Care Permanent,321000 - Social Community Care Supplies & Services - Adult
Solihull MBC,Adult Social Care,Adult Social Care,Accord Housing Asssociation,24/03/2021,,2480.52,ASC - Residential Care Permanent,321000 - Social Community Care Supplies & Services - Adult
Solihull MBC,Adult Social Care,Adult Social Care,Accord Housing Asssociation,24/03/2021,,-2389.24,ASC - Residential Care Permanent,321000 - Social Community Care Supplies & Services - Adult
Solihull MBC,Adult Social Care,Adult Social Care,Accord Housing Asssociation,24/03/2021,,-1860.39,ASC - Residential Care Permanent,321000 - Social Community Care Supplies & Services - Adult
Solihull MBC,Adult Social Care,Adult Social Care,Accord Housing Asssociation,24/03/2021,,-2480.52,ASC - Residential Care Permanent,321000 - Social Community Care Supplies & Services - Adult
Solihull MBC,Adult Social Care,Adult Social Care,Accord Housing Asssociation,24/03/2021,,-2480.52,ASC - Residential Care Permanent,321000 - Social Community Care Supplies & Services - Adult
Solihull MBC,Adult Social Care,Adult Social Care,Accord Housing Asssociation,24/03/2021,,442.95,ASC - Residential Care Permanent,321000 - Social Community Care Supplies & Services - Adult
Solihull MBC,Adult Social Care,Adult Social Care,Accord Housing Asssociation,24/03/2021,,682.64,ASC - Residential Care Permanent,321000 - Social Community Care Supplies & Services - Adult
Solihull MBC,Adult Social Care,Adult Social Care,Accord Housing Asssociation,24/03/2021,,885.9,ASC - Residential Care Permanent,321000 - Social Community Care Supplies & Services - Adult
Solihull MBC,Adult Social Care,Adult Social Care,Accord Housing Asssociation,24/03/2021,,1240.26,ASC - Residential Care Permanent,321000 - Social Community Care Supplies & Services - Adult
Solihull MBC,Adult Social Care,Adult Social Care,Accord Housing Asssociation,24/03/2021,,1240.26,ASC - Residential Care Permanent,321000 - Social Community Care Supplies & Services - Adult
Solihull MBC,Adult Social Care,Adult Social Care,Accord Housing Asssociation,24/03/2021,,1417.44,ASC - Residential Care Permanent,321000 - Social Community Care Supplies & Services - Adult
Solihull MBC,Adult Social Care,Adult Social Care,Accord Housing Asssociation,24/03/2021,,1594.62,ASC - Residential Care Permanent,321000 - Social Community Care Supplies & Services - Adult
Solihull MBC,Adult Social Care,Adult Social Care,Accord Housing Asssociation,24/03/2021,,1706.6,ASC - Residential Care Permanent,321000 - Social Community Care Supplies & Services - Adult
Solihull MBC,Adult Social Care,Adult Social Care,Accord Housing Asssociation,24/03/2021,,2480.52,ASC - Residential Care Permanent,321000 - Social Community Care Supplies & Services - Adult
Solihull MBC,Adult Social Care,Adult Social Care,Accord Housing Asssociation,24/03/2021,,-2389.24,ASC - Residential Care Permanent,321000 - Social Community Care Supplies & Services - Adult
Solihull MBC,Adult Social Care,Adult Social Care,Accord Housing Asssociation,24/03/2021,,-1860.39,ASC - Residential Care Permanent,321000 - Social Community Care Supplies & Services - Adult
Solihull MBC,Adult Social Care,Adult Social Care,Accord Housing Asssociation,24/03/2021,,-2480.52,ASC - Residential Care Permanent,321000 - Social Community Care Supplies & Services - Adult
Solihull MBC,Adult Social Care,Adult Social Care,Accord Housing Asssociation,24/03/2021,,-2480.52,ASC - Residential Care Permanent,321000 - Social Community Care Supplies & Services - Adult
Solihull MBC,Adult Social Care,Adult Social Care,Accord Housing Asssociation,24/03/2021,,442.95,ASC - Residential Care Permanent,321000 - Social Community Care Supplies & Services - Adult
Solihull MBC,Adult Social Care,Adult Social Care,Accord Housing Asssociation,24/03/2021,,682.64,ASC - Residential Care Permanent,321000 - Social Community Care Supplies & Services - Adult
Solihull MBC,Adult Social Care,Adult Social Care,Accord Housing Asssociation,24/03/2021,,885.9,ASC - Residential Care Permanent,321000 - Social Community Care Supplies & Services - Adult
Solihull MBC,Adult Social Care,Adult Social Care,Accord Housing Asssociation,24/03/2021,,1240.26,ASC - Residential Care Permanent,321000 - Social Community Care Supplies & Services - Adult
Solihull MBC,Adult Social Care,Adult Social Care,Accord Housing Asssociation,24/03/2021,,1240.26,ASC - Residential Care Permanent,321000 - Social Community Care Supplies & Services - Adult
Solihull MBC,Adult Social Care,Adult Social Care,Accord Housing Asssociation,24/03/2021,,1417.44,ASC - Residential Care Permanent,321000 - Social Community Care Supplies & Services - Adult
Solihull MBC,Adult Social Care,Adult Social Care,Accord Housing Asssociation,24/03/2021,,1594.62,ASC - Residential Care Permanent,321000 - Social Community Care Supplies & Services - Adult
Solihull MBC,Adult Social Care,Adult Social Care,Accord Housing Asssociation,24/03/2021,,1706.6,ASC - Residential Care Permanent,321000 - Social Community Care Supplies & Services - Adult
Solihull MBC,Adult Social Care,Adult Social Care,Accord Housing Asssociation,24/03/2021,,-2389.24,ASC - Residential Care Permanent,321000 - Social Community Care Supplies & Services - Adult
Solihull MBC,Adult Social Care,Adult Social Care,Accord Housing Asssociation,24/03/2021,,-1860.39,ASC - Residential Care Permanent,321000 - Social Community Care Supplies & Services - Adult
Solihull MBC,Adult Social Care,Adult Social Care,Accord Housing Asssociation,24/03/2021,,-2480.52,ASC - Residential Care Permanent,321000 - Social Community Care Supplies & Services - Adult
Solihull MBC,Adult Social Care,Adult Social Care,Accord Housing Asssociation,24/03/2021,,-2480.52,ASC - Residential Care Permanent,321000 - Social Community Care Supplies & Services - Adult
Solihull MBC,Adult Social Care,Adult Social Care,Accord Housing Asssociation,24/03/2021,,442.95,ASC - Residential Care Permanent,321000 - Social Community Care Supplies & Services - Adult
Solihull MBC,Adult Social Care,Adult Social Care,Accord Housing Asssociation,24/03/2021,,682.64,ASC - Residential Care Permanent,321000 - Social Community Care Supplies & Services - Adult
Solihull MBC,Adult Social Care,Adult Social Care,Accord Housing Asssociation,24/03/2021,,885.9,ASC - Residential Care Permanent,321000 - Social Community Care Supplies & Services - Adult
Solihull MBC,Adult Social Care,Adult Social Care,Accord Housing Asssociation,24/03/2021,,1240.26,ASC - Residential Care Permanent,321000 - Social Community Care Supplies & Services - Adult
Solihull MBC,Adult Social Care,Adult Social Care,Accord Housing Asssociation,24/03/2021,,1240.26,ASC - Residential Care Permanent,321000 - Social Community Care Supplies & Services - Adult
Solihull MBC,Adult Social Care,Adult Social Care,Accord Housing Asssociation,24/03/2021,,1417.44,ASC - Residential Care Permanent,321000 - Social Community Care Supplies & Services - Adult
Solihull MBC,Adult Social Care,Adult Social Care,Accord Housing Asssociation,24/03/2021,,1594.62,ASC - Residential Care Permanent,321000 - Social Community Care Supplies & Services - Adult
Solihull MBC,Adult Social Care,Adult Social Care,Accord Housing Asssociation,24/03/2021,,1706.6,ASC - Residential Care Permanent,321000 - Social Community Care Supplies & Services - Adult
Solihull MBC,Adult Social Care,Adult Social Care,Accord Housing Asssociation,24/03/2021,,-2389.24,ASC - Residential Care Permanent,321000 - Social Community Care Supplies & Services - Adult
Solihull MBC,Adult Social Care,Adult Social Care,Accord Housing Asssociation,24/03/2021,,-1860.39,ASC - Residential Care Permanent,321000 - Social Community Care Supplies & Services - Adult
Solihull MBC,Adult Social Care,Adult Social Care,Accord Housing Asssociation,24/03/2021,,-2480.52,ASC - Residential Care Permanent,321000 - Social Community Care Supplies & Services - Adult
Solihull MBC,Adult Social Care,Adult Social Care,Accord Housing Asssociation,24/03/2021,,-2480.52,ASC - Residential Care Permanent,321000 - Social Community Care Supplies & Services - Adult
Solihull MBC,Adult Social Care,Adult Social Care,Accord Housing Asssociation,24/03/2021,,442.95,ASC - Residential Care Permanent,321000 - Social Community Care Supplies & Services - Adult
Solihull MBC,Adult Social Care,Adult Social Care,Accord Housing Asssociation,24/03/2021,,682.64,ASC - Residential Care Permanent,321000 - Social Community Care Supplies & Services - Adult
Solihull MBC,Adult Social Care,Adult Social Care,Accord Housing Asssociation,24/03/2021,,885.9,ASC - Residential Care Permanent,321000 - Social Community Care Supplies & Services - Adult
Solihull MBC,Adult Social Care,Adult Social Care,Accord Housing Asssociation,24/03/2021,,1240.26,ASC - Residential Care Permanent,321000 - Social Community Care Supplies & Services - Adult
Solihull MBC,Adult Social Care,Adult Social Care,Accord Housing Asssociation,24/03/2021,,1240.26,ASC - Residential Care Permanent,321000 - Social Community Care Supplies & Services - Adult
Solihull MBC,Adult Social Care,Adult Social Care,Accord Housing Asssociation,24/03/2021,,1417.44,ASC - Residential Care Permanent,321000 - Social Community Care Supplies & Services - Adult
Solihull MBC,Adult Social Care,Adult Social Care,Accord Housing Asssociation,24/03/2021,,1594.62,ASC - Residential Care Permanent,321000 - Social Community Care Supplies & Services - Adult
Solihull MBC,Adult Social Care,Adult Social Care,Accord Housing Asssociation,24/03/2021,,1706.6,ASC - Residential Care Permanent,321000 - Social Community Care Supplies & Services - Adult
Solihull MBC,Adult Social Care,Adult Social Care,Accord Housing Asssociation,24/03/2021,,2480.52,ASC - Residential Care Permanent,321000 - Social Community Care Supplies & Services - Adult
Solihull MBC,Adult Social Care,Adult Social Care,Accord Housing Asssociation,24/03/2021,,2480.52,ASC - Residential Care Permanent,321000 - Social Community Care Supplies & Services - Adult
Solihull MBC,Adult Social Care,Adult Social Care,Accord Housing Asssociation,24/03/2021,,-2389.24,ASC - Residential Care Permanent,321000 - Social Community Care Supplies & Services - Adult
Solihull MBC,Adult Social Care,Adult Social Care,Accord Housing Asssociation,24/03/2021,,-1860.39,ASC - Residential Care Permanent,321000 - Social Community Care Supplies & Services - Adult
Solihull MBC,Adult Social Care,Adult Social Care,Accord Housing Asssociation,24/03/2021,,-2480.52,ASC - Residential Care Permanent,321000 - Social Community Care Supplies & Services - Adult
Solihull MBC,Adult Social Care,Adult Social Care,Accord Housing Asssociation,24/03/2021,,-2480.52,ASC - Residential Care Permanent,321000 - Social Community Care Supplies & Services - Adult
Solihull MBC,Adult Social Care,Adult Social Care,Accord Housing Asssociation,24/03/2021,,442.95,ASC - Residential Care Permanent,321000 - Social Community Care Supplies & Services - Adult
Solihull MBC,Adult Social Care,Adult Social Care,Accord Housing Asssociation,24/03/2021,,682.64,ASC - Residential Care Permanent,321000 - Social Community Care Supplies & Services - Adult
Solihull MBC,Adult Social Care,Adult Social Care,Accord Housing Asssociation,24/03/2021,,885.9,ASC - Residential Care Permanent,321000 - Social Community Care Supplies & Services - Adult
Solihull MBC,Adult Social Care,Adult Social Care,Accord Housing Asssociation,24/03/2021,,1240.26,ASC - Residential Care Permanent,321000 - Social Community Care Supplies & Services - Adult
Solihull MBC,Adult Social Care,Adult Social Care,Accord Housing Asssociation,24/03/2021,,1240.26,ASC - Residential Care Permanent,321000 - Social Community Care Supplies & Services - Adult
Solihull MBC,Adult Social Care,Adult Social Care,Accord Housing Asssociation,24/03/2021,,1417.44,ASC - Residential Care Permanent,321000 - Social Community Care Supplies & Services - Adult
Solihull MBC,Adult Social Care,Adult Social Care,Accord Housing Asssociation,24/03/2021,,1594.62,ASC - Residential Care Permanent,321000 - Social Community Care Supplies & Services - Adult
Solihull MBC,Adult Social Care,Adult Social Care,Accord Housing Asssociation,24/03/2021,,1706.6,ASC - Residential Care Permanent,321000 - Social Community Care Supplies & Services - Adult
Solihull MBC,Adult Social Care,Adult Social Care,Accord Housing Asssociation,24/03/2021,,2480.52,ASC - Residential Care Permanent,321000 - Social Community Care Supplies & Services - Adult
Solihull MBC,Adult Social Care,Adult Social Care,Accord Housing Asssociation,24/03/2021,,-2389.24,ASC - Residential Care Permanent,321000 - Social Community Care Supplies & Services - Adult
Solihull MBC,Adult Social Care,Adult Social Care,Accord Housing Asssociation,24/03/2021,,-1860.39,ASC - Residential Care Permanent,321000 - Social Community Care Supplies & Services - Adult
Solihull MBC,Adult Social Care,Adult Social Care,Accord Housing Asssociation,24/03/2021,,-2480.52,ASC - Residential Care Permanent,321000 - Social Community Care Supplies & Services - Adult
Solihull MBC,Adult Social Care,Adult Social Care,Accord Housing Asssociation,24/03/2021,,-2480.52,ASC - Residential Care Permanent,321000 - Social Community Care Supplies & Services - Adult
Solihull MBC,Adult Social Care,Adult Social Care,Accord Housing Asssociation,24/03/2021,,442.95,ASC - Residential Care Permanent,321000 - Social Community Care Supplies & Services - Adult
Solihull MBC,Adult Social Care,Adult Social Care,Accord Housing Asssociation,24/03/2021,,682.64,ASC - Residential Care Permanent,321000 - Social Community Care Supplies & Services - Adult
Solihull MBC,Adult Social Care,Adult Social Care,Accord Housing Asssociation,24/03/2021,,885.9,ASC - Residential Care Permanent,321000 - Social Community Care Supplies & Services - Adult
Solihull MBC,Adult Social Care,Adult Social Care,Accord Housing Asssociation,24/03/2021,,1240.26,ASC - Residential Care Permanent,321000 - Social Community Care Supplies & Services - Adult
Solihull MBC,Adult Social Care,Adult Social Care,Accord Housing Asssociation,24/03/2021,,1240.26,ASC - Residential Care Permanent,321000 - Social Community Care Supplies & Services - Adult
Solihull MBC,Adult Social Care,Adult Social Care,Accord Housing Asssociation,24/03/2021,,1417.44,ASC - Residential Care Permanent,321000 - Social Community Care Supplies & Services - Adult
Solihull MBC,Adult Social Care,Adult Social Care,Accord Housing Asssociation,24/03/2021,,1594.62,ASC - Residential Care Permanent,321000 - Social Community Care Supplies & Services - Adult
Solihull MBC,Adult Social Care,Adult Social Care,Accord Housing Asssociation,24/03/2021,,1706.6,ASC - Residential Care Permanent,321000 - Social Community Care Supplies & Services - Adult
Solihull MBC,Adult Social Care,Adult Social Care,Accord Housing Asssociation,24/03/2021,,2480.52,ASC - Residential Care Permanent,321000 - Social Community Care Supplies & Services - Adult
Solihull MBC,Adult Social Care,Adult Social Care,Accord Housing Asssociation,24/03/2021,,-2389.24,ASC - Residential Care Permanent,321000 - Social Community Care Supplies & Services - Adult
Solihull MBC,Adult Social Care,Adult Social Care,Accord Housing Asssociation,24/03/2021,,682.64,ASC - Residential Care Permanent,321000 - Social Community Care Supplies & Services - Adult
Solihull MBC,Adult Social Care,Adult Social Care,Accord Housing Asssociation,24/03/2021,,1706.6,ASC - Residential Care Permanent,321000 - Social Community Care Supplies & Services - Adult
Solihull MBC,Adult Social Care,Adult Social Care,Accord Housing Asssociation,24/03/2021,,-2389.24,ASC - Residential Care Permanent,321000 - Social Community Care Supplies & Services - Adult
Solihull MBC,Adult Social Care,Adult Social Care,Accord Housing Asssociation,24/03/2021,,-1860.39,ASC - Residential Care Permanent,321000 - Social Community Care Supplies & Services - Adult
Solihull MBC,Adult Social Care,Adult Social Care,Accord Housing Asssociation,24/03/2021,,-2480.52,ASC - Residential Care Permanent,321000 - Social Community Care Supplies & Services - Adult
Solihull MBC,Adult Social Care,Adult Social Care,Accord Housing Asssociation,24/03/2021,,-2480.52,ASC - Residential Care Permanent,321000 - Social Community Care Supplies & Services - Adult
Solihull MBC,Adult Social Care,Adult Social Care,Accord Housing Asssociation,24/03/2021,,442.95,ASC - Residential Care Permanent,321000 - Social Community Care Supplies & Services - Adult
Solihull MBC,Adult Social Care,Adult Social Care,Accord Housing Asssociation,24/03/2021,,682.64,ASC - Residential Care Permanent,321000 - Social Community Care Supplies & Services - Adult
Solihull MBC,Adult Social Care,Adult Social Care,Accord Housing Asssociation,24/03/2021,,885.9,ASC - Residential Care Permanent,321000 - Social Community Care Supplies & Services - Adult
Solihull MBC,Adult Social Care,Adult Social Care,Accord Housing Asssociation,24/03/2021,,1240.26,ASC - Residential Care Permanent,321000 - Social Community Care Supplies & Services - Adult
Solihull MBC,Adult Social Care,Adult Social Care,Accord Housing Asssociation,24/03/2021,,1240.26,ASC - Residential Care Permanent,321000 - Social Community Care Supplies & Services - Adult
Solihull MBC,Adult Social Care,Adult Social Care,Accord Housing Asssociation,24/03/2021,,1417.44,ASC - Residential Care Permanent,321000 - Social Community Care Supplies & Services - Adult
Solihull MBC,Adult Social Care,Adult Social Care,Accord Housing Asssociation,24/03/2021,,1594.62,ASC - Residential Care Permanent,321000 - Social Community Care Supplies & Services - Adult
Solihull MBC,Adult Social Care,Adult Social Care,Accord Housing Asssociation,24/03/2021,,1706.6,ASC - Residential Care Permanent,321000 - Social Community Care Supplies & Services - Adult
Solihull MBC,Adult Social Care,Adult Social Care,Accord Housing Asssociation,24/03/2021,,2480.52,ASC - Residential Care Permanent,321000 - Social Community Care Supplies & Services - Adult
Solihull MBC,Adult Social Care,Adult Social Care,Accord Housing Asssociation,24/03/2021,,-2389.24,ASC - Residential Care Permanent,321000 - Social Community Care Supplies & Services - Adult
Solihull MBC,Adult Social Care,Adult Social Care,Accord Housing Asssociation,24/03/2021,,-1860.39,ASC - Residential Care Permanent,321000 - Social Community Care Supplies & Services - Adult
Solihull MBC,Adult Social Care,Adult Social Care,Accord Housing Asssociation,24/03/2021,,-2480.52,ASC - Residential Care Permanent,321000 - Social Community Care Supplies & Services - Adult
Solihull MBC,Adult Social Care,Adult Social Care,Accord Housing Asssociation,24/03/2021,,-2480.52,ASC - Residential Care Permanent,321000 - Social Community Care Supplies & Services - Adult
Solihull MBC,Adult Social Care,Adult Social Care,Accord Housing Asssociation,24/03/2021,,442.95,ASC - Residential Care Permanent,321000 - Social Community Care Supplies & Services - Adult
Solihull MBC,Adult Social Care,Adult Social Care,Accord Housing Asssociation,24/03/2021,,682.64,ASC - Residential Care Permanent,321000 - Social Community Care Supplies & Services - Adult
Solihull MBC,Adult Social Care,Adult Social Care,Accord Housing Asssociation,24/03/2021,,885.9,ASC - Residential Care Permanent,321000 - Social Community Care Supplies & Services - Adult
Solihull MBC,Adult Social Care,Adult Social Care,Accord Housing Asssociation,24/03/2021,,1240.26,ASC - Residential Care Permanent,321000 - Social Community Care Supplies & Services - Adult
Solihull MBC,Adult Social Care,Adult Social Care,Accord Housing Asssociation,24/03/2021,,1240.26,ASC - Residential Care Permanent,321000 - Social Community Care Supplies & Services - Adult
Solihull MBC,Adult Social Care,Adult Social Care,Accord Housing Asssociation,24/03/2021,,1417.44,ASC - Residential Care Permanent,321000 - Social Community Care Supplies & Services - Adult
Solihull MBC,Adult Social Care,Adult Social Care,Accord Housing Asssociation,24/03/2021,,1594.62,ASC - Residential Care Permanent,321000 - Social Community Care Supplies & Services - Adult
Solihull MBC,Adult Social Care,Adult Social Care,Accord Housing Asssociation,24/03/2021,,1706.6,ASC - Residential Care Permanent,321000 - Social Community Care Supplies & Services - Adult
Solihull MBC,Adult Social Care,Adult Social Care,Accord Housing Asssociation,24/03/2021,,2480.52,ASC - Residential Care Permanent,321000 - Social Community Care Supplies & Services - Adult
Solihull MBC,Adult Social Care,Adult Social Care,Accord Housing Asssociation,24/03/2021,,2480.52,ASC - Residential Care Permanent,321000 - Social Community Care Supplies & Services - Adult
Solihull MBC,Adult Social Care,Adult Social Care,Accord Housing Asssociation,24/03/2021,,-2389.24,ASC - Residential Care Permanent,321000 - Social Community Care Supplies & Services - Adult
Solihull MBC,Adult Social Care,Adult Social Care,Accord Housing Asssociation,24/03/2021,,-1860.39,ASC - Residential Care Permanent,321000 - Social Community Care Supplies & Services - Adult
Solihull MBC,Adult Social Care,Adult Social Care,Accord Housing Asssociation,24/03/2021,,-2480.52,ASC - Residential Care Permanent,321000 - Social Community Care Supplies & Services - Adult
Solihull MBC,Adult Social Care,Adult Social Care,Accord Housing Asssociation,24/03/2021,,-2480.52,ASC - Residential Care Permanent,321000 - Social Community Care Supplies & Services - Adult
Solihull MBC,Adult Social Care,Adult Social Care,Accord Housing Asssociation,24/03/2021,,442.95,ASC - Residential Care Permanent,321000 - Social Community Care Supplies & Services - Adult
Solihull MBC,Adult Social Care,Adult Social Care,Accord Housing Asssociation,24/03/2021,,682.64,ASC - Residential Care Permanent,321000 - Social Community Care Supplies & Services - Adult
Solihull MBC,Adult Social Care,Adult Social Care,Accord Housing Asssociation,24/03/2021,,885.9,ASC - Residential Care Permanent,321000 - Social Community Care Supplies & Services - Adult
Solihull MBC,Adult Social Care,Adult Social Care,Accord Housing Asssociation,24/03/2021,,1240.26,ASC - Residential Care Permanent,321000 - Social Community Care Supplies & Services - Adult
Solihull MBC,Adult Social Care,Adult Social Care,Accord Housing Asssociation,24/03/2021,,1240.26,ASC - Residential Care Permanent,321000 - Social Community Care Supplies & Services - Adult
Solihull MBC,Adult Social Care,Adult Social Care,Accord Housing Asssociation,24/03/2021,,1417.44,ASC - Residential Care Permanent,321000 - Social Community Care Supplies & Services - Adult
Solihull MBC,Adult Social Care,Adult Social Care,Accord Housing Asssociation,24/03/2021,,1594.62,ASC - Residential Care Permanent,321000 - Social Community Care Supplies & Services - Adult
Solihull MBC,Adult Social Care,Adult Social Care,Accord Housing Asssociation,24/03/2021,,1706.6,ASC - Residential Care Permanent,321000 - Social Community Care Supplies & Services - Adult
Solihull MBC,Adult Social Care,Adult Social Care,Accord Housing Asssociation,24/03/2021,,2480.52,ASC - Residential Care Permanent,321000 - Social Community Care Supplies & Services - Adult
Solihull MBC,Adult Social Care,Adult Social Care,Accord Housing Asssociation,24/03/2021,,-1506.03,ASC - Residential Care Permanent,321000 - Social Community Care Supplies & Services - Adult
Solihull MBC,Adult Social Care,Adult Social Care,Accord Housing Asssociation,24/03/2021,,620.13,ASC - Residential Care Permanent,321000 - Social Community Care Supplies & Services - Adult
Solihull MBC,Adult Social Care,Adult Social Care,Accord Housing Asssociation,24/03/2021,,885.9,ASC - Residential Care Permanent,321000 - Social Community Care Supplies & Services - Adult
Solihull MBC,Adult Social Care,Adult Social Care,Accord Housing Asssociation,24/03/2021,,2480.52,ASC - Residential Care Permanent,321000 - Social Community Care Supplies & Services - Adult
Solihull MBC,Adult Social Care,Adult Social Care,Accord Housing Asssociation,24/03/2021,,-2389.24,ASC - Residential Care Permanent,321000 - Social Community Care Supplies & Services - Adult
Solihull MBC,Adult Social Care,Adult Social Care,Accord Housing Asssociation,24/03/2021,,-1860.39,ASC - Residential Care Permanent,321000 - Social Community Care Supplies & Services - Adult
Solihull MBC,Adult Social Care,Adult Social Care,Accord Housing Asssociation,24/03/2021,,-2480.52,ASC - Residential Care Permanent,321000 - Social Community Care Supplies & Services - Adult
Solihull MBC,Adult Social Care,Adult Social Care,Accord Housing Asssociation,24/03/2021,,-2480.52,ASC - Residential Care Permanent,321000 - Social Community Care Supplies & Services - Adult
Solihull MBC,Adult Social Care,Adult Social Care,Accord Housing Asssociation,24/03/2021,,442.95,ASC - Residential Care Permanent,321000 - Social Community Care Supplies & Services - Adult
Solihull MBC,Adult Social Care,Adult Social Care,Accord Housing Asssociation,24/03/2021,,682.64,ASC - Residential Care Permanent,321000 - Social Community Care Supplies & Services - Adult
Solihull MBC,Adult Social Care,Adult Social Care,Accord Housing Asssociation,24/03/2021,,885.9,ASC - Residential Care Permanent,321000 - Social Community Care Supplies & Services - Adult
Solihull MBC,Adult Social Care,Adult Social Care,Accord Housing Asssociation,24/03/2021,,1240.26,ASC - Residential Care Permanent,321000 - Social Community Care Supplies & Services - Adult
Solihull MBC,Adult Social Care,Adult Social Care,Accord Housing Asssociation,24/03/2021,,1240.26,ASC - Residential Care Permanent,321000 - Social Community Care Supplies & Services - Adult
Solihull MBC,Adult Social Care,Adult Social Care,Accord Housing Asssociation,24/03/2021,,1417.44,ASC - Residential Care Permanent,321000 - Social Community Care Supplies & Services - Adult
Solihull MBC,Adult Social Care,Adult Social Care,Accord Housing Asssociation,24/03/2021,,1594.62,ASC - Residential Care Permanent,321000 - Social Community Care Supplies & Services - Adult
Solihull MBC,Adult Social Care,Adult Social Care,Accord Housing Asssociation,24/03/2021,,1706.6,ASC - Residential Care Permanent,321000 - Social Community Care Supplies & Services - Adult
Solihull MBC,Adult Social Care,Adult Social Care,Accord Housing Asssociation,24/03/2021,,2480.52,ASC - Residential Care Permanent,321000 - Social Community Care Supplies & Services - Adult
Solihull MBC,Adult Social Care,Adult Social Care,Accord Housing Asssociation,24/03/2021,,-2389.24,ASC - Residential Care Permanent,321000 - Social Community Care Supplies & Services - Adult
Solihull MBC,Adult Social Care,Adult Social Care,Accord Housing Asssociation,24/03/2021,,-1860.39,ASC - Residential Care Permanent,321000 - Social Community Care Supplies & Services - Adult
Solihull MBC,Adult Social Care,Adult Social Care,Accord Housing Asssociation,24/03/2021,,-2480.52,ASC - Residential Care Permanent,321000 - Social Community Care Supplies & Services - Adult
Solihull MBC,Adult Social Care,Adult Social Care,Accord Housing Asssociation,24/03/2021,,442.95,ASC - Residential Care Permanent,321000 - Social Community Care Supplies & Services - Adult
Solihull MBC,Adult Social Care,Adult Social Care,Accord Housing Asssociation,24/03/2021,,682.64,ASC - Residential Care Permanent,321000 - Social Community Care Supplies & Services - Adult
Solihull MBC,Adult Social Care,Adult Social Care,Accord Housing Asssociation,24/03/2021,,885.9,ASC - Residential Care Permanent,321000 - Social Community Care Supplies & Services - Adult
Solihull MBC,Adult Social Care,Adult Social Care,Accord Housing Asssociation,24/03/2021,,1417.44,ASC - Residential Care Permanent,321000 - Social Community Care Supplies & Services - Adult
Solihull MBC,Adult Social Care,Adult Social Care,Accord Housing Asssociation,24/03/2021,,1594.62,ASC - Residential Care Permanent,321000 - Social Community Care Supplies & Services - Adult
Solihull MBC,Adult Social Care,Adult Social Care,Accord Housing Asssociation,24/03/2021,,1706.6,ASC - Residential Care Permanent,321000 - Social Community Care Supplies & Services - Adult
Solihull MBC,Adult Social Care,Adult Social Care,Accord Housing Asssociation,24/03/2021,,-1860.39,ASC - Residential Care Permanent,321000 - Social Community Care Supplies & Services - Adult
Solihull MBC,Adult Social Care,Adult Social Care,Accord Housing Asssociation,24/03/2021,,442.95,ASC - Residential Care Permanent,321000 - Social Community Care Supplies & Services - Adult
Solihull MBC,Adult Social Care,Adult Social Care,Accord Housing Asssociation,24/03/2021,,1417.44,ASC - Residential Care Permanent,321000 - Social Community Care Supplies & Services - Adult
Solihull MBC,Adult Social Care,Adult Social Care,Accord Housing Asssociation,24/03/2021,,-2389.24,ASC - Residential Care Permanent,321000 - Social Community Care Supplies & Services - Adult
Solihull MBC,Adult Social Care,Adult Social Care,Accord Housing Asssociation,24/03/2021,,-1860.39,ASC - Residential Care Permanent,321000 - Social Community Care Supplies & Services - Adult
Solihull MBC,Adult Social Care,Adult Social Care,Accord Housing Asssociation,24/03/2021,,442.95,ASC - Residential Care Permanent,321000 - Social Community Care Supplies & Services - Adult
Solihull MBC,Adult Social Care,Adult Social Care,Accord Housing Asssociation,24/03/2021,,682.64,ASC - Residential Care Permanent,321000 - Social Community Care Supplies & Services - Adult
Solihull MBC,Adult Social Care,Adult Social Care,Accord Housing Asssociation,24/03/2021,,1417.44,ASC - Residential Care Permanent,321000 - Social Community Care Supplies & Services - Adult
Solihull MBC,Adult Social Care,Adult Social Care,Accord Housing Asssociation,24/03/2021,,1706.6,ASC - Residential Care Permanent,321000 - Social Community Care Supplies & Services - Adult
Solihull MBC,Adult Social Care,Adult Social Care,Accord Housing Asssociation,24/03/2021,,-2389.24,ASC - Residential Care Permanent,321000 - Social Community Care Supplies & Services - Adult
Solihull MBC,Adult Social Care,Adult Social Care,Accord Housing Asssociation,24/03/2021,,-1860.39,ASC - Residential Care Permanent,321000 - Social Community Care Supplies & Services - Adult
Solihull MBC,Adult Social Care,Adult Social Care,Accord Housing Asssociation,24/03/2021,,-2480.52,ASC - Residential Care Permanent,321000 - Social Community Care Supplies & Services - Adult
Solihull MBC,Adult Social Care,Adult Social Care,Accord Housing Asssociation,24/03/2021,,442.95,ASC - Residential Care Permanent,321000 - Social Community Care Supplies & Services - Adult
Solihull MBC,Adult Social Care,Adult Social Care,Accord Housing Asssociation,24/03/2021,,682.64,ASC - Residential Care Permanent,321000 - Social Community Care Supplies & Services - Adult
Solihull MBC,Adult Social Care,Adult Social Care,Accord Housing Asssociation,24/03/2021,,885.9,ASC - Residential Care Permanent,321000 - Social Community Care Supplies & Services - Adult
Solihull MBC,Adult Social Care,Adult Social Care,Accord Housing Asssociation,24/03/2021,,1417.44,ASC - Residential Care Permanent,321000 - Social Community Care Supplies & Services - Adult
Solihull MBC,Adult Social Care,Adult Social Care,Accord Housing Asssociation,24/03/2021,,1594.62,ASC - Residential Care Permanent,321000 - Social Community Care Supplies & Services - Adult
Solihull MBC,Adult Social Care,Adult Social Care,Accord Housing Asssociation,24/03/2021,,1706.6,ASC - Residential Care Permanent,321000 - Social Community Care Supplies & Services - Adult
Solihull MBC,Adult Social Care,Adult Social Care,Accord Housing Asssociation,24/03/2021,,-2389.24,ASC - Residential Care Permanent,321000 - Social Community Care Supplies & Services - Adult
Solihull MBC,Adult Social Care,Adult Social Care,Accord Housing Asssociation,24/03/2021,,-1860.39,ASC - Residential Care Permanent,321000 - Social Community Care Supplies & Services - Adult
Solihull MBC,Adult Social Care,Adult Social Care,Accord Housing Asssociation,24/03/2021,,442.95,ASC - Residential Care Permanent,321000 - Social Community Care Supplies & Services - Adult
Solihull MBC,Adult Social Care,Adult Social Care,Accord Housing Asssociation,24/03/2021,,682.64,ASC - Residential Care Permanent,321000 - Social Community Care Supplies & Services - Adult
Solihull MBC,Adult Social Care,Adult Social Care,Accord Housing Asssociation,24/03/2021,,1417.44,ASC - Residential Care Permanent,321000 - Social Community Care Supplies & Services - Adult
Solihull MBC,Adult Social Care,Adult Social Care,Accord Housing Asssociation,24/03/2021,,1706.6,ASC - Residential Care Permanent,321000 - Social Community Care Supplies & Services - Adult
Solihull MBC,Adult Social Care,Adult Social Care,Accord Housing Asssociation,24/03/2021,,-2389.24,ASC - Residential Care Permanent,321000 - Social Community Care Supplies & Services - Adult
Solihull MBC,Adult Social Care,Adult Social Care,Accord Housing Asssociation,24/03/2021,,-1860.39,ASC - Residential Care Permanent,321000 - Social Community Care Supplies & Services - Adult
Solihull MBC,Adult Social Care,Adult Social Care,Accord Housing Asssociation,24/03/2021,,-2480.52,ASC - Residential Care Permanent,321000 - Social Community Care Supplies & Services - Adult
Solihull MBC,Adult Social Care,Adult Social Care,Accord Housing Asssociation,24/03/2021,,442.95,ASC - Residential Care Permanent,321000 - Social Community Care Supplies & Services - Adult
Solihull MBC,Adult Social Care,Adult Social Care,Accord Housing Asssociation,24/03/2021,,682.64,ASC - Residential Care Permanent,321000 - Social Community Care Supplies & Services - Adult
Solihull MBC,Adult Social Care,Adult Social Care,Accord Housing Asssociation,24/03/2021,,885.9,ASC - Residential Care Permanent,321000 - Social Community Care Supplies & Services - Adult
Solihull MBC,Adult Social Care,Adult Social Care,Accord Housing Asssociation,24/03/2021,,1417.44,ASC - Residential Care Permanent,321000 - Social Community Care Supplies & Services - Adult
Solihull MBC,Adult Social Care,Adult Social Care,Accord Housing Asssociation,24/03/2021,,1594.62,ASC - Residential Care Permanent,321000 - Social Community Care Supplies & Services - Adult
Solihull MBC,Adult Social Care,Adult Social Care,Accord Housing Asssociation,24/03/2021,,1706.6,ASC - Residential Care Permanent,321000 - Social Community Care Supplies & Services - Adult
Solihull MBC,Adult Social Care,Adult Social Care,Accord Housing Asssociation,24/03/2021,,-1860.39,ASC - Residential Care Permanent,321000 - Social Community Care Supplies & Services - Adult
Solihull MBC,Adult Social Care,Adult Social Care,Accord Housing Asssociation,24/03/2021,,-2480.52,ASC - Residential Care Permanent,321000 - Social Community Care Supplies & Services - Adult
Solihull MBC,Adult Social Care,Adult Social Care,Accord Housing Asssociation,24/03/2021,,442.95,ASC - Residential Care Permanent,321000 - Social Community Care Supplies & Services - Adult
Solihull MBC,Adult Social Care,Adult Social Care,Accord Housing Asssociation,24/03/2021,,885.9,ASC - Residential Care Permanent,321000 - Social Community Care Supplies & Services - Adult
Solihull MBC,Adult Social Care,Adult Social Care,Accord Housing Asssociation,24/03/2021,,1417.44,ASC - Residential Care Permanent,321000 - Social Community Care Supplies & Services - Adult
Solihull MBC,Adult Social Care,Adult Social Care,Accord Housing Asssociation,24/03/2021,,1594.62,ASC - Residential Care Permanent,321000 - Social Community Care Supplies & Services - Adult
Solihull MBC,Adult Social Care,Adult Social Care,Accord Housing Asssociation,24/03/2021,,885.9,ASC - Residential Care Permanent,321000 - Social Community Care Supplies & Services - Adult
Solihull MBC,Adult Social Care,Adult Social Care,Accord Housing Asssociation,24/03/2021,,2480.52,ASC - Residential Care Permanent,321000 - Social Community Care Supplies & Services - Adult
Solihull MBC,Adult Social Care,Adult Social Care,Accord Housing Asssociation,24/03/2021,,-2480.52,ASC - Residential Care Respite,321000 - Social Community Care Supplies & Services - Adult
Solihull MBC,Adult Social Care,Adult Social Care,Accord Housing Asssociation,24/03/2021,,-885.9,ASC - Residential Care Respite,321000 - Social Community Care Supplies & Services - Adult
Solihull MBC,Adult Social Care,Adult Social Care,Accord Housing Asssociation,24/03/2021,,2480.52,ASC - Residential Care Permanent,321000 - Social Community Care Supplies & Services - Adult
Solihull MBC,Adult Social Care,Adult Social Care,Accord Housing Asssociation,24/03/2021,,-2480.52,ASC - Residential Care Permanent,321000 - Social Community Care Supplies & Services - Adult
Solihull MBC,Adult Social Care,Adult Social Care,Accord Housing Asssociation,24/03/2021,,1240.26,ASC - Residential Care Permanent,321000 - Social Community Care Supplies & Services - Adult
Solihull MBC,Adult Social Care,Adult Social Care,Accord Housing Asssociation,24/03/2021,,1240.26,ASC - Residential Care Permanent,321000 - Social Community Care Supplies & Services - Adult
Solihull MBC,Adult Social Care,Adult Social Care,Accord Housing Asssociation,24/03/2021,,2480.52,ASC - Residential Care Permanent,321000 - Social Community Care Supplies & Services - Adult
Solihull MBC,Adult Social Care,Adult Social Care,Accord Housing Asssociation,24/03/2021,,620.13,ASC - Residential Care Permanent,321000 - Social Community Care Supplies & Services - Adult
Solihull MBC,Adult Social Care,Adult Social Care,Accord Housing Asssociation,24/03/2021,,2480.52,ASC - Residential Care Permanent,321000 - Social Community Care Supplies & Services - Adult
Solihull MBC,Adult Social Care,Adult Social Care,Accord Housing Asssociation,24/03/2021,,-2480.52,ASC - Residential Care Permanent,321000 - Social Community Care Supplies & Services - Adult
Solihull MBC,Adult Social Care,Adult Social Care,Accord Housing Asssociation,24/03/2021,,-2480.52,ASC - Residential Care Permanent,321000 - Social Community Care Supplies & Services - Adult
Solihull MBC,Adult Social Care,Adult Social Care,Accord Housing Asssociation,24/03/2021,,1240.26,ASC - Residential Care Permanent,321000 - Social Community Care Supplies & Services - Adult
Solihull MBC,Adult Social Care,Adult Social Care,Accord Housing Asssociation,24/03/2021,,1240.26,ASC - Residential Care Permanent,321000 - Social Community Care Supplies & Services - Adult
Solihull MBC,Adult Social Care,Adult Social Care,Accord Housing Asssociation,24/03/2021,,-620.13,ASC - Residential Care Permanent,321000 - Social Community Care Supplies & Services - Adult
Solihull MBC,Adult Social Care,Adult Social Care,Accord Housing Asssociation,24/03/2021,,2480.52,ASC - Residential Care Permanent,321000 - Social Community Care Supplies & Services - Adult
Solihull MBC,Adult Social Care,Adult Social Care,Accord Housing Asssociation,24/03/2021,,-2389.24,ASC - Residential Care Permanent,321000 - Social Community Care Supplies & Services - Adult
Solihull MBC,Adult Social Care,Adult Social Care,Accord Housing Asssociation,24/03/2021,,-1860.39,ASC - Residential Care Permanent,321000 - Social Community Care Supplies & Services - Adult
Solihull MBC,Adult Social Care,Adult Social Care,Accord Housing Asssociation,24/03/2021,,-2480.52,ASC - Residential Care Permanent,321000 - Social Community Care Supplies & Services - Adult
Solihull MBC,Adult Social Care,Adult Social Care,Accord Housing Asssociation,24/03/2021,,-2480.52,ASC - Residential Care Permanent,321000 - Social Community Care Supplies & Services - Adult
Solihull MBC,Adult Social Care,Adult Social Care,Accord Housing Asssociation,24/03/2021,,442.95,ASC - Residential Care Permanent,321000 - Social Community Care Supplies & Services - Adult
Solihull MBC,Adult Social Care,Adult Social Care,Accord Housing Asssociation,24/03/2021,,682.64,ASC - Residential Care Permanent,321000 - Social Community Care Supplies & Services - Adult
Solihull MBC,Adult Social Care,Adult Social Care,Accord Housing Asssociation,24/03/2021,,885.9,ASC - Residential Care Permanent,321000 - Social Community Care Supplies & Services - Adult
Solihull MBC,Adult Social Care,Adult Social Care,Accord Housing Asssociation,24/03/2021,,1240.26,ASC - Residential Care Permanent,321000 - Social Community Care Supplies & Services - Adult
Solihull MBC,Adult Social Care,Adult Social Care,Accord Housing Asssociation,24/03/2021,,1240.26,ASC - Residential Care Permanent,321000 - Social Community Care Supplies & Services - Adult
Solihull MBC,Adult Social Care,Adult Social Care,Accord Housing Asssociation,24/03/2021,,1417.44,ASC - Residential Care Permanent,321000 - Social Community Care Supplies & Services - Adult
Solihull MBC,Adult Social Care,Adult Social Care,Accord Housing Asssociation,24/03/2021,,1594.62,ASC - Residential Care Permanent,321000 - Social Community Care Supplies & Services - Adult
Solihull MBC,Adult Social Care,Adult Social Care,Accord Housing Asssociation,24/03/2021,,1706.6,ASC - Residential Care Permanent,321000 - Social Community Care Supplies & Services - Adult
Solihull MBC,Adult Social Care,Adult Social Care,Accord Housing Asssociation,24/03/2021,,2480.52,ASC - Residential Care Permanent,321000 - Social Community Care Supplies & Services - Adult
Solihull MBC,Adult Social Care,Adult Social Care,Accord Housing Asssociation,24/03/2021,,-2389.24,ASC - Residential Care Permanent,321000 - Social Community Care Supplies & Services - Adult
Solihull MBC,Adult Social Care,Adult Social Care,Accord Housing Asssociation,24/03/2021,,-1860.39,ASC - Residential Care Permanent,321000 - Social Community Care Supplies & Services - Adult
Solihull MBC,Adult Social Care,Adult Social Care,Accord Housing Asssociation,24/03/2021,,-2480.52,ASC - Residential Care Permanent,321000 - Social Community Care Supplies & Services - Adult
Solihull MBC,Adult Social Care,Adult Social Care,Accord Housing Asssociation,24/03/2021,,-2480.52,ASC - Residential Care Permanent,321000 - Social Community Care Supplies & Services - Adult
Solihull MBC,Adult Social Care,Adult Social Care,Accord Housing Asssociation,24/03/2021,,442.95,ASC - Residential Care Permanent,321000 - Social Community Care Supplies & Services - Adult
Solihull MBC,Adult Social Care,Adult Social Care,Accord Housing Asssociation,24/03/2021,,682.64,ASC - Residential Care Permanent,321000 - Social Community Care Supplies & Services - Adult
Solihull MBC,Adult Social Care,Adult Social Care,Accord Housing Asssociation,24/03/2021,,885.9,ASC - Residential Care Permanent,321000 - Social Community Care Supplies & Services - Adult
Solihull MBC,Adult Social Care,Adult Social Care,Accord Housing Asssociation,24/03/2021,,1240.26,ASC - Residential Care Permanent,321000 - Social Community Care Supplies & Services - Adult
Solihull MBC,Adult Social Care,Adult Social Care,Accord Housing Asssociation,24/03/2021,,1240.26,ASC - Residential Care Permanent,321000 - Social Community Care Supplies & Services - Adult
Solihull MBC,Adult Social Care,Adult Social Care,Accord Housing Asssociation,24/03/2021,,1417.44,ASC - Residential Care Permanent,321000 - Social Community Care Supplies & Services - Adult
Solihull MBC,Adult Social Care,Adult Social Care,Accord Housing Asssociation,24/03/2021,,1594.62,ASC - Residential Care Permanent,321000 - Social Community Care Supplies & Services - Adult
Solihull MBC,Adult Social Care,Adult Social Care,Accord Housing Asssociation,24/03/2021,,1706.6,ASC - Residential Care Permanent,321000 - Social Community Care Supplies & Services - Adult
Solihull MBC,Adult Social Care,Adult Social Care,Accord Housing Asssociation,24/03/2021,,2480.52,ASC - Residential Care Permanent,321000 - Social Community Care Supplies & Services - Adult
Solihull MBC,Adult Social Care,Adult Social Care,Accord Housing Asssociation,24/03/2021,,-2480.52,ASC - Residential Care Permanent,321000 - Social Community Care Supplies & Services - Adult
Solihull MBC,Adult Social Care,Adult Social Care,Accord Housing Asssociation,24/03/2021,,1240.26,ASC - Residential Care Permanent,321000 - Social Community Care Supplies & Services - Adult
Solihull MBC,Adult Social Care,Adult Social Care,Accord Housing Asssociation,24/03/2021,,1240.26,ASC - Residential Care Permanent,321000 - Social Community Care Supplies & Services - Adult
Solihull MBC,Adult Social Care,Adult Social Care,Accord Housing Asssociation,24/03/2021,,2480.52,ASC - Residential Care Permanent,321000 - Social Community Care Supplies & Services - Adult
Solihull MBC,Adult Social Care,Adult Social Care,Accord Housing Asssociation,24/03/2021,,-1860.39,ASC - Residential Care Respite,321000 - Social Community Care Supplies & Services - Adult
Solihull MBC,Adult Social Care,Adult Social Care,Accord Housing Asssociation,24/03/2021,,442.95,ASC - Residential Care Respite,321000 - Social Community Care Supplies & Services - Adult
Solihull MBC,Adult Social Care,Adult Social Care,Accord Housing Asssociation,24/03/2021,,1417.44,ASC - Residential Care Respite,321000 - Social Community Care Supplies & Services - Adult
Solihull MBC,Adult Social Care,Adult Social Care,Accord Housing Asssociation,24/03/2021,,-1860.39,ASC - Residential Care Permanent,321000 - Social Community Care Supplies & Services - Adult
Solihull MBC,Adult Social Care,Adult Social Care,Accord Housing Asssociation,24/03/2021,,442.95,ASC - Residential Care Permanent,321000 - Social Community Care Supplies & Services - Adult
Solihull MBC,Adult Social Care,Adult Social Care,Accord Housing Asssociation,24/03/2021,,1417.44,ASC - Residential Care Permanent,321000 - Social Community Care Supplies & Services - Adult
Solihull MBC,Adult Social Care,Adult Social Care,Accord Housing Asssociation,24/03/2021,,-2214.75,ASC - Residential Care Respite,321000 - Social Community Care Supplies & Services - Adult
Solihull MBC,Adult Social Care,Adult Social Care,Accord Housing Asssociation,24/03/2021,,-2389.24,ASC - Residential Care Permanent,321000 - Social Community Care Supplies & Services - Adult
Solihull MBC,Adult Social Care,Adult Social Care,Accord Housing Asssociation,24/03/2021,,-1860.39,ASC - Residential Care Permanent,321000 - Social Community Care Supplies & Services - Adult
Solihull MBC,Adult Social Care,Adult Social Care,Accord Housing Asssociation,24/03/2021,,-2480.52,ASC - Residential Care Permanent,321000 - Social Community Care Supplies & Services - Adult
Solihull MBC,Adult Social Care,Adult Social Care,Accord Housing Asssociation,24/03/2021,,-2480.52,ASC - Residential Care Permanent,321000 - Social Community Care Supplies & Services - Adult
Solihull MBC,Adult Social Care,Adult Social Care,Accord Housing Asssociation,24/03/2021,,442.95,ASC - Residential Care Permanent,321000 - Social Community Care Supplies & Services - Adult
Solihull MBC,Adult Social Care,Adult Social Care,Accord Housing Asssociation,24/03/2021,,682.64,ASC - Residential Care Permanent,321000 - Social Community Care Supplies & Services - Adult
Solihull MBC,Adult Social Care,Adult Social Care,Accord Housing Asssociation,24/03/2021,,885.9,ASC - Residential Care Permanent,321000 - Social Community Care Supplies & Services - Adult
Solihull MBC,Adult Social Care,Adult Social Care,Accord Housing Asssociation,24/03/2021,,1240.26,ASC - Residential Care Permanent,321000 - Social Community Care Supplies & Services - Adult
Solihull MBC,Adult Social Care,Adult Social Care,Accord Housing Asssociation,24/03/2021,,1240.26,ASC - Residential Care Permanent,321000 - Social Community Care Supplies & Services - Adult
Solihull MBC,Adult Social Care,Adult Social Care,Accord Housing Asssociation,24/03/2021,,1417.44,ASC - Residential Care Permanent,321000 - Social Community Care Supplies & Services - Adult
Solihull MBC,Adult Social Care,Adult Social Care,Accord Housing Asssociation,24/03/2021,,1594.62,ASC - Residential Care Permanent,321000 - Social Community Care Supplies & Services - Adult
Solihull MBC,Adult Social Care,Adult Social Care,Accord Housing Asssociation,24/03/2021,,1706.6,ASC - Residential Care Permanent,321000 - Social Community Care Supplies & Services - Adult
Solihull MBC,Adult Social Care,Adult Social Care,Accord Housing Asssociation,24/03/2021,,2480.52,ASC - Residential Care Permanent,321000 - Social Community Care Supplies & Services - Adult
Solihull MBC,Adult Social Care,Adult Social Care,Accord Housing Asssociation,24/03/2021,,2480.52,ASC - Residential Care Respite,321000 - Social Community Care Supplies & Services - Adult
Solihull MBC,Adult Social Care,Adult Social Care,Accord Housing Asssociation,24/03/2021,,-1860.39,ASC - Residential Care Respite,321000 - Social Community Care Supplies & Services - Adult
Solihull MBC,Adult Social Care,Adult Social Care,Accord Housing Asssociation,24/03/2021,,442.95,ASC - Residential Care Respite,321000 - Social Community Care Supplies & Services - Adult
Solihull MBC,Adult Social Care,Adult Social Care,Accord Housing Asssociation,24/03/2021,,1417.44,ASC - Residential Care Respite,321000 - Social Community Care Supplies & Services - Adult
Solihull MBC,Adult Social Care,Adult Social Care,Accord Housing Asssociation,24/03/2021,,-2389.24,ASC - Residential Care Permanent,321000 - Social Community Care Supplies & Services - Adult
Solihull MBC,Adult Social Care,Adult Social Care,Accord Housing Asssociation,24/03/2021,,-1860.39,ASC - Residential Care Permanent,321000 - Social Community Care Supplies & Services - Adult
Solihull MBC,Adult Social Care,Adult Social Care,Accord Housing Asssociation,24/03/2021,,-2480.52,ASC - Residential Care Permanent,321000 - Social Community Care Supplies & Services - Adult
Solihull MBC,Adult Social Care,Adult Social Care,Accord Housing Asssociation,24/03/2021,,442.95,ASC - Residential Care Permanent,321000 - Social Community Care Supplies & Services - Adult
Solihull MBC,Adult Social Care,Adult Social Care,Accord Housing Asssociation,24/03/2021,,682.64,ASC - Residential Care Permanent,321000 - Social Community Care Supplies & Services - Adult
Solihull MBC,Adult Social Care,Adult Social Care,Accord Housing Asssociation,24/03/2021,,885.9,ASC - Residential Care Permanent,321000 - Social Community Care Supplies & Services - Adult
Solihull MBC,Adult Social Care,Adult Social Care,Accord Housing Asssociation,24/03/2021,,1417.44,ASC - Residential Care Permanent,321000 - Social Community Care Supplies & Services - Adult
Solihull MBC,Adult Social Care,Adult Social Care,Accord Housing Asssociation,24/03/2021,,1594.62,ASC - Residential Care Permanent,321000 - Social Community Care Supplies & Services - Adult
Solihull MBC,Adult Social Care,Adult Social Care,Accord Housing Asssociation,24/03/2021,,1706.6,ASC - Residential Care Permanent,321000 - Social Community Care Supplies & Services - Adult
Solihull MBC,Adult Social Care,Adult Social Care,Accord Housing Asssociation,24/03/2021,,-2389.24,ASC - Residential Care Permanent,321000 - Social Community Care Supplies & Services - Adult
Solihull MBC,Adult Social Care,Adult Social Care,Accord Housing Asssociation,24/03/2021,,-1860.39,ASC - Residential Care Permanent,321000 - Social Community Care Supplies & Services - Adult
Solihull MBC,Adult Social Care,Adult Social Care,Accord Housing Asssociation,24/03/2021,,-2480.52,ASC - Residential Care Permanent,321000 - Social Community Care Supplies & Services - Adult
Solihull MBC,Adult Social Care,Adult Social Care,Accord Housing Asssociation,24/03/2021,,-2480.52,ASC - Residential Care Permanent,321000 - Social Community Care Supplies & Services - Adult
Solihull MBC,Adult Social Care,Adult Social Care,Accord Housing Asssociation,24/03/2021,,442.95,ASC - Residential Care Permanent,321000 - Social Community Care Supplies & Services - Adult
Solihull MBC,Adult Social Care,Adult Social Care,Accord Housing Asssociation,24/03/2021,,682.64,ASC - Residential Care Permanent,321000 - Social Community Care Supplies & Services - Adult
Solihull MBC,Adult Social Care,Adult Social Care,Accord Housing Asssociation,24/03/2021,,885.9,ASC - Residential Care Permanent,321000 - Social Community Care Supplies & Services - Adult
Solihull MBC,Adult Social Care,Adult Social Care,Accord Housing Asssociation,24/03/2021,,1240.26,ASC - Residential Care Permanent,321000 - Social Community Care Supplies & Services - Adult
Solihull MBC,Adult Social Care,Adult Social Care,Accord Housing Asssociation,24/03/2021,,1240.26,ASC - Residential Care Permanent,321000 - Social Community Care Supplies & Services - Adult
Solihull MBC,Adult Social Care,Adult Social Care,Accord Housing Asssociation,24/03/2021,,1417.44,ASC - Residential Care Permanent,321000 - Social Community Care Supplies & Services - Adult
Solihull MBC,Adult Social Care,Adult Social Care,Accord Housing Asssociation,24/03/2021,,1594.62,ASC - Residential Care Permanent,321000 - Social Community Care Supplies & Services - Adult
Solihull MBC,Adult Social Care,Adult Social Care,Accord Housing Asssociation,24/03/2021,,1706.6,ASC - Residential Care Permanent,321000 - Social Community Care Supplies & Services - Adult
Solihull MBC,Adult Social Care,Adult Social Care,Accord Housing Asssociation,24/03/2021,,2480.52,ASC - Residential Care Permanent,321000 - Social Community Care Supplies & Services - Adult
Solihull MBC,Adult Social Care,Adult Social Care,Accord Housing Asssociation,24/03/2021,,2303.34,ASC - Residential Care Permanent,321000 - Social Community Care Supplies & Services - Adult
Solihull MBC,Adult Social Care,Adult Social Care,Accord Housing Asssociation,24/03/2021,,2480.52,ASC - Residential Care Permanent,321000 - Social Community Care Supplies & Services - Adult
Solihull MBC,Adult Social Care,Adult Social Care,Accord Housing Asssociation,24/03/2021,,-2480.52,ASC - Residential Care Respite,321000 - Social Community Care Supplies & Services - Adult
Solihull MBC,Adult Social Care,Adult Social Care,Accord Housing Asssociation,24/03/2021,,-2303.34,ASC - Residential Care Respite,321000 - Social Community Care Supplies & Services - Adult
Solihull MBC,Adult Social Care,Adult Social Care,Accord Housing Asssociation,24/03/2021,,2480.52,ASC - Residential Care Permanent,321000 - Social Community Care Supplies & Services - Adult
Solihull MBC,Adult Social Care,Adult Social Care,Accord Housing Asssociation,24/03/2021,,-2480.52,ASC - Residential Care Permanent,321000 - Social Community Care Supplies & Services - Adult
Solihull MBC,Adult Social Care,Adult Social Care,Accord Housing Asssociation,24/03/2021,,1240.26,ASC - Residential Care Permanent,321000 - Social Community Care Supplies & Services - Adult
Solihull MBC,Adult Social Care,Adult Social Care,Accord Housing Asssociation,24/03/2021,,1240.26,ASC - Residential Care Permanent,321000 - Social Community Care Supplies & Services - Adult
Solihull MBC,Adult Social Care,Adult Social Care,Accord Housing Asssociation,24/03/2021,,2480.52,ASC - Residential Care Permanent,321000 - Social Community Care Supplies & Services - Adult
Solihull MBC,Adult Social Care,Adult Social Care,Accord Housing Asssociation,24/03/2021,,-2389.24,ASC - Residential Care Permanent,321000 - Social Community Care Supplies & Services - Adult
Solihull MBC,Adult Social Care,Adult Social Care,Accord Housing Asssociation,24/03/2021,,682.64,ASC - Residential Care Permanent,321000 - Social Community Care Supplies & Services - Adult
Solihull MBC,Adult Social Care,Adult Social Care,Accord Housing Asssociation,24/03/2021,,1706.6,ASC - Residential Care Permanent,321000 - Social Community Care Supplies & Services - Adult
Solihull MBC,Children's Services - DSG Central.,Children & Education Services,Ace Education LLP,03/03/2021,,250,Professional Fees,Not Yet Classified
Solihull MBC,Children's Services & Skills,Children & Education Services,Achill House,05/03/2021,,1295,Clients Expenses,Not Yet Classified
Solihull MBC,Public Health & Commissioning,Central Services to the Public,Acorns Childrens H,25/03/2021,,2000,Grant & Subscription (SCITT),Not Yet Classified
Solihull MBC,Public Health & Commissioning,Central Services to the Public,Acorns Childrens H,30/03/2021,,3143,Grant & Subscription (SCITT),Not Yet Classified
Solihull MBC,Public Health & Commissioning,Central Services to the Public,Acorns Childrens H,30/03/2021,,6000,Grant & Subscription (SCITT),Not Yet Classified
Solihull MBC,Public Health & Commissioning,Central Services to the Public,Acorns Childrens H,30/03/2021,,357,Grant & Subscription (SCITT),Not Yet Classified
Solihull MBC,Public Health & Commissioning,Central Services to the Public,Acorns Childrens H,30/03/2021,,3000,Grant & Subscription (SCITT),Not Yet Classified
Solihull MBC,Public Health & Commissioning,Central Services to the Public,Acorns Childrens H,25/03/2021,,2000,Grant & Subscription (SCITT),Not Yet Classified
Solihull MBC,Public Health & Commissioning,Central Services to the Public,Acorns Childrens H,30/03/2021,,3143,Grant & Subscription (SCITT),Not Yet Classified
Solihull MBC,Public Health & Commissioning,Central Services to the Public,Acorns Childrens H,30/03/2021,,6000,Grant & Subscription (SCITT),Not Yet Classified
Solihull MBC,Public Health & Commissioning,Central Services to the Public,Acorns Childrens H,30/03/2021,,357,Grant & Subscription (SCITT),Not Yet Classified
Solihull MBC,Public Health & Commissioning,Central Services to the Public,Acorns Childrens H,30/03/2021,,3000,Grant & Subscription (SCITT),Not Yet Classified
Solihull MBC,Public Health & Commissioning,Central Services to the Public,Acorns Childrens H,25/03/2021,,2000,Grant & Subscription (SCITT),Not Yet Classified
Solihull MBC,Public Health & Commissioning,Central Services to the Public,Acorns Childrens H,30/03/2021,,3143,Grant & Subscription (SCITT),Not Yet Classified
Solihull MBC,Public Health & Commissioning,Central Services to the Public,Acorns Childrens H,30/03/2021,,6000,Grant & Subscription (SCITT),Not Yet Classified
Solihull MBC,Public Health & Commissioning,Central Services to the Public,Acorns Childrens H,30/03/2021,,357,Grant & Subscription (SCITT),Not Yet Classified
Solihull MBC,Public Health & Commissioning,Central Services to the Public,Acorns Childrens H,30/03/2021,,3000,Grant & Subscription (SCITT),Not Yet Classified
Solihull MBC,Covid-19,Central Services to the Public,Acorns To Mighty Oaks Ltd,19/03/2021,,5441.33,Furniture & Equipment,321100 - Social Community Care Supplies & Services - Children
Solihull MBC,Adult Social Care,Adult Social Care,Activate For Kids Ltd,29/03/2021,,1192.75,Furniture & Equipment,Not Yet Classified
Solihull MBC,Children's Services - DSG Central.,Children & Education Services,Active Angels,18/03/2021,,1915.2,Grant & Subscription (SCITT),321100 - Social Community Care Supplies & Services - Children
Solihull MBC,Children's Services - DSG Central.,Children & Education Services,Active Angels,15/03/2021,,2394,Grant & Subscription (SCITT),321100 - Social Community Care Supplies & Services - Children
Solihull MBC,Children's Services - DSG Central.,Children & Education Services,Active Angels,18/03/2021,,2746.2,Grant & Subscription (SCITT),321100 - Social Community Care Supplies & Services - Children
Solihull MBC,Children's Services - DSG Central.,Children & Education Services,Active Angels,15/03/2021,,15386.8,Grant & Subscription (SCITT),321100 - Social Community Care Supplies & Services - Children
Solihull MBC,Economy and Infrastructure,Planning & Development Services,Active Informatics Ltd,02/03/2021,,8215,Other Contracted Services,Not Yet Classified
Solihull MBC,Public Health & Commissioning,Central Services to the Public,Acts And Entertainment Limited,22/03/2021,,2096,Grant & Subscription (SCITT),Not Yet Classified
Solihull MBC,Public Health & Commissioning,Central Services to the Public,AD07 Trading Ltd,04/03/2021,,3143,Grant & Subscription (SCITT),Not Yet Classified
Solihull MBC,Economy and Infrastructure,Planning & Development Services,Adecoe Ltd,29/03/2021,,8100,Professional Fees,Not Yet Classified
Solihull MBC,Public Health & Commissioning,Central Services to the Public,Adrian Court T/A Clippers Barbers,04/03/2021,,2096,Grant & Subscription (SCITT),Not Yet Classified
Solihull MBC,Public Health & Commissioning,Central Services to the Public,Adrianswheels,22/03/2021,,2096,Grant & Subscription (SCITT),Not Yet Classified
Solihull MBC,Adult Social Care,Adult Social Care,Advanced Caring Ltd,24/03/2021,,6439.72,ASC - Residential Care Permanent,Not Yet Classified
Solihull MBC,Children's Services & Skills,Children & Education Services,Advanced Child Care Assessments Ltd,17/03/2021,,1648.2,Professional Fees,Not Yet Classified
Solihull MBC,Public Health & Commissioning,Central Services to the Public,Aerospa Revive Ltd,22/03/2021,,2096,Grant & Subscription (SCITT),Not Yet Classified
Solihull MBC,Public Health & Commissioning,Central Services to the Public,Aesthetics Ltd,04/03/2021,,3143,Grant & Subscription (SCITT),Not Yet Classified
Solihull MBC,Public Health & Commissioning,Central Services to the Public,AFH Stores UK Ltd,04/03/2021,,4714,Grant & Subscription (SCITT),Not Yet Classified
Solihull MBC,Public Health & Commissioning,Central Services to the Public,AFH Stores UK Ltd,11/03/2021,,9000,Grant & Subscription (SCITT),Not Yet Classified
Solihull MBC,Public Health & Commissioning,Central Services to the Public,AFH Stores UK Ltd,11/03/2021,,536,Grant & Subscription (SCITT),Not Yet Classified
Solihull MBC,Public Health & Commissioning,Central Services to the Public,AFH Stores UK Ltd,11/03/2021,,4500,Grant & Subscription (SCITT),Not Yet Classified
Solihull MBC,Economy and Infrastructure,Highways & Transport Services,AFI Group Of Companies,03/03/2021,,69,Transport-Contract Hire,Not Yet Classified
Solihull MBC,Economy and Infrastructure,Highways & Transport Services,AFI Group Of Companies,03/03/2021,,345,Transport-Contract Hire,Not Yet Classified
Solihull MBC,Children's Services & Skills,Children & Education Services,AFJ Ltd,04/03/2021,,1080,Transport-Contract Hire,Not Yet Classified
Solihull MBC,Public Health & Commissioning,Central Services to the Public,Age Concern Solihull,04/03/2021,,2096,Grant & Subscription (SCITT),Not Yet Classified
Solihull MBC,Public Health & Commissioning,Central Services to the Public,Age Concern Solihull,04/03/2021,,2096,Grant & Subscription (SCITT),Not Yet Classified
Solihull MBC,Public Health & Commissioning,Central Services to the Public,Age UK,26/03/2021,,2000,Grant & Subscription (SCITT),Not Yet Classified
Solihull MBC,Adult Social Care,Adult Social Care,Age UK Solihull,01/03/2021,,37513.26,Other Contracted Services,321000 - Social Community Care Supplies & Services - Adult
Solihull MBC,Adult Social Care,Adult Social Care,Age UK Solihull,01/03/2021,,169850.49,Other Contracted Services,321000 - Social Community Care Supplies & Services - Adult
Solihull MBC,Adult Social Care,Adult Social Care,Age UK Solihull,01/03/2021,,20250,Other Contracted Services,321000 - Social Community Care Supplies & Services - Adult
Solihull MBC,Covid-19,Central Services to the Public,Age UK Solihull,12/03/2021,,18500,Furniture & Equipment,321000 - Social Community Care Supplies & Services - Adult
Solihull MBC,Adult Social Care,Adult Social Care,Aidapt Bathrooms Ltd,29/03/2021,,502.5,Furniture & Equipment,321000 - Social Community Care Supplies & Services - Adult
Solihull MBC,Adult Social Care,Adult Social Care,Aidapt Bathrooms Ltd,29/03/2021,,2300,Furniture & Equipment,321000 - Social Community Care Supplies & Services - Adult
Solihull MBC,Adult Social Care,Adult Social Care,Aidapt Bathrooms Ltd,29/03/2021,,898.5,Furniture & Equipment,321000 - Social Community Care Supplies & Services - Adult
Solihull MBC,Adult Social Care,Adult Social Care,Aidapt Bathrooms Ltd,29/03/2021,,90,Furniture & Equipment,321000 - Social Community Care Supplies & Services - Adult
Solihull MBC,Adult Social Care,Adult Social Care,Aidapt Bathrooms Ltd,29/03/2021,,275,Furniture & Equipment,321000 - Social Community Care Supplies & Services - Adult
Solihull MBC,Adult Social Care,Adult Social Care,Aidapt Bathrooms Ltd,22/03/2021,,510,Furniture & Equipment,321000 - Social Community Care Supplies & Services - Adult
Solihull MBC,Adult Social Care,Adult Social Care,Aidapt Bathrooms Ltd,05/03/2021,,2805,Furniture & Equipment,321000 - Social Community Care Supplies & Services - Adult
Solihull MBC,Adult Social Care,Adult Social Care,Aidapt Bathrooms Ltd,11/03/2021,,6678,Furniture & Equipment,321000 - Social Community Care Supplies & Services - Adult
Solihull MBC,Adult Social Care,Adult Social Care,Aidapt Bathrooms Ltd,11/03/2021,,870,Furniture & Equipment,321000 - Social Community Care Supplies & Services - Adult
Solihull MBC,Adult Social Care,Adult Social Care,Aidapt Bathrooms Ltd,25/03/2021,,652.5,Furniture & Equipment,321000 - Social Community Care Supplies & Services - Adult
Solihull MBC,Public Health & Commissioning,Central Services to the Public,Aim Professional Services Ltd,22/03/2021,,2096,Grant & Subscription (SCITT),Not Yet Classified
Solihull MBC,Public Health & Commissioning,Central Services to the Public,Airline Connect Transport Services,22/03/2021,,2096,Grant & Subscription (SCITT),Not Yet Classified
Solihull MBC,Public Health & Commissioning,Central Services to the Public,AJ Chauffeurs Limited,22/03/2021,,2096,Grant & Subscription (SCITT),Not Yet Classified
Solihull MBC,Public Health & Commissioning,Central Services to the Public,AJBD Ltd,04/03/2021,,3143,Grant & Subscription (SCITT),Not Yet Classified
Solihull MBC,Public Health & Commissioning,Central Services to the Public,AK Fitted Interiors T/A Affordable Kitchens Ltd,04/03/2021,,2096,Grant & Subscription (SCITT),Not Yet Classified
Solihull MBC,Public Health & Commissioning,Central Services to the Public,Akala Beauty Ltd,04/03/2021,,2096,Grant & Subscription (SCITT),Not Yet Classified
Solihull MBC,Public Health & Commissioning,Central Services to the Public,Akamba,04/03/2021,,2096,Grant & Subscription (SCITT),Not Yet Classified
Solihull MBC,Adult Social Care,Adult Social Care,Akari Care Ltd,24/03/2021,,2779.28,ASC - Nursing Care Permanent,Not Yet Classified
Solihull MBC,Adult Social Care,Adult Social Care,Akari Care Ltd,24/03/2021,,2779.28,ASC - Nursing Care Permanent,Not Yet Classified
Solihull MBC,Adult Social Care,Adult Social Care,Akari Care Ltd,24/03/2021,,2468,ASC - Nursing Care Permanent,Not Yet Classified
Solihull MBC,Adult Social Care,Adult Social Care,Akari Care Ltd,24/03/2021,,2779.28,ASC - Nursing Care Permanent,Not Yet Classified
Solihull MBC,Public Health & Commissioning,Central Services to the Public,AKD Nurseries Ltd,22/03/2021,,3143,Grant & Subscription (SCITT),Not Yet Classified
Solihull MBC,Public Health & Commissioning,Central Services to the Public,Akuma Sports Ltd,22/03/2021,,3143,Grant & Subscription (SCITT),Not Yet Classified
Solihull MBC,Economy and Infrastructure,Planning & Development Services,Alcium Software Ltd,26/03/2021,,250,Advertising/Publicity/Promotion,270000 - Information Communication Technology
Solihull MBC,Children's Services & Skills,Children & Education Services,Alderbrook School,10/03/2021,,6593.44,Contractors,171011 - Education - School Services
Solihull MBC,Resources,Children & Education Services,Alderbrook School,19/03/2021,,11828.8,Other Fees,171011 - Education - School Services
Solihull MBC,Public Health & Commissioning,Central Services to the Public,Ale Hub Limited,04/03/2021,,762,Grant & Subscription (SCITT),Not Yet Classified
Solihull MBC,Public Health & Commissioning,Central Services to the Public,Ale Hub Limited,04/03/2021,,2096,Grant & Subscription (SCITT),Not Yet Classified
Solihull MBC,Public Health & Commissioning,Central Services to the Public,Ale Rooms Ltd,04/03/2021,,2096,Grant & Subscription (SCITT),Not Yet Classified
Solihull MBC,Adult Social Care,Adult Social Care,Alexandra House - SJMT,03/03/2021,,382.12,ASC - Residential Care Respite,Not Yet Classified
Solihull MBC,Adult Social Care,Adult Social Care,Alexandra House - SJMT,03/03/2021,,-573.18,ASC - Residential Care Respite,Not Yet Classified
Solihull MBC,Adult Social Care,Adult Social Care,Alexandra House - SJMT,03/03/2021,,2292.72,ASC - Residential Care Respite,Not Yet Classified
Solihull MBC,Adult Social Care,Adult Social Care,Alexandra House - SJMT,24/03/2021,,2380,ASC - Residential Care Permanent,Not Yet Classified
Solihull MBC,Adult Social Care,Adult Social Care,Alexandra House - SJMT,24/03/2021,,2380,ASC - Residential Care Permanent,Not Yet Classified
Solihull MBC,Adult Social Care,Adult Social Care,Alexandra House - SJMT,24/03/2021,,1360,ASC - Residential Care Permanent,Not Yet Classified
Solihull MBC,Adult Social Care,Adult Social Care,Alexandra House - SJMT,29/03/2021,,668.71,ASC - Residential Care Respite,Not Yet Classified
Solihull MBC,Adult Social Care,Adult Social Care,Alexandra House - SJMT,24/03/2021,,668.71,ASC - Residential Care Respite,Not Yet Classified
Solihull MBC,Adult Social Care,Adult Social Care,Alexandra House - SJMT,24/03/2021,,2674.84,ASC - Residential Care Respite,Not Yet Classified
Solihull MBC,Adult Social Care,Adult Social Care,Alexandra House - SJMT,24/03/2021,,2380,ASC - Residential Care Permanent,Not Yet Classified
Solihull MBC,Adult Social Care,Adult Social Care,Alexandra House - SJMT,24/03/2021,,2674.84,ASC - Residential Care Respite,Not Yet Classified
Solihull MBC,Adult Social Care,Adult Social Care,Alexandra House - SJMT,24/03/2021,,2674.84,ASC - Residential Care Respite,Not Yet Classified
Solihull MBC,Adult Social Care,Adult Social Care,Alexandra House - SJMT,24/03/2021,,2391.2,ASC - Residential Care Permanent,Not Yet Classified
Solihull MBC,Adult Social Care,Adult Social Care,Alexandra House - SJMT,24/03/2021,,1337.42,ASC - Residential Care Respite,Not Yet Classified
Solihull MBC,Adult Social Care,Adult Social Care,Alexandra House - SJMT,24/03/2021,,2331,ASC - Residential Care Permanent,Not Yet Classified
Solihull MBC,Adult Social Care,Adult Social Care,Alexandra House - SJMT,24/03/2021,,2374.68,ASC - Residential Care Permanent,Not Yet Classified
Solihull MBC,Adult Social Care,Adult Social Care,Alexandra House - SJMT,24/03/2021,,2380,ASC - Residential Care Permanent,Not Yet Classified
Solihull MBC,Adult Social Care,Adult Social Care,Alexandra House - SJMT,24/03/2021,,2347.24,ASC - Residential Care Permanent,Not Yet Classified
Solihull MBC,Adult Social Care,Adult Social Care,Alexandra House - SJMT,24/03/2021,,-1785,ASC - Residential Care Permanent,Not Yet Classified
Solihull MBC,Adult Social Care,Adult Social Care,Alexandra House - SJMT,24/03/2021,,-2380,ASC - Residential Care Permanent,Not Yet Classified
Solihull MBC,Adult Social Care,Adult Social Care,Alexandra House - SJMT,24/03/2021,,-765,ASC - Residential Care Permanent,Not Yet Classified
Solihull MBC,Public Health & Commissioning,Central Services to the Public,All Wanda Company Ltd,04/03/2021,,3143,Grant & Subscription (SCITT),Not Yet Classified
Solihull MBC,Children's Services - DSG Central.,Children & Education Services,Allens Croft Primary School,22/03/2021,,6558.34,Other Contracted Services,Not Yet Classified
Solihull MBC,Resources,Children & Education Services,Allesley Hall Primary School,19/03/2021,,856.67,Other Fees,Not Yet Classified
Solihull MBC,Adult Social Care,Central Services to the Public,Allied Publicity Services (Manchester) Ltd,08/03/2021,,808.84,General Office Expenses,Not Yet Classified
Solihull MBC,Adult Social Care,Adult Social Care,Alophonsus Services Ltd,24/03/2021,,11056.08,ASC - Residential Care Permanent,321000 - Social Community Care Supplies & Services - Adult
Solihull MBC,Children's Services & Skills,Children & Education Services,Alpha Biolaboratories Ltd,05/03/2021,,1259,Professional Fees,Not Yet Classified
Solihull MBC,Adult Social Care,Adult Social Care,Alphabet GB Ltd,08/03/2021,,438.76,Transport-Contract Hire,Not Yet Classified
Solihull MBC,Adult Social Care,Adult Social Care,Alphabet GB Ltd,08/03/2021,,297.08,Transport-Contract Hire,Not Yet Classified
Solihull MBC,Adult Social Care,Adult Social Care,Alphabet GB Ltd,08/03/2021,,143.64,Transport-Contract Hire,Not Yet Classified
Solihull MBC,Adult Social Care,Adult Social Care,Alphabet GB Ltd,08/03/2021,,-291.2,Transport-Contract Hire,Not Yet Classified
Solihull MBC,Adult Social Care,Adult Social Care,Amberley Court Nursing Home,24/03/2021,,4404.4,ASC - Nursing Care Permanent,321000 - Social Community Care Supplies & Services - Adult
Solihull MBC,Public Health & Commissioning,Central Services to the Public,Ambleside Bistro And Garden Centre Limited,04/03/2021,,3143,Grant & Subscription (SCITT),Not Yet Classified
Solihull MBC,Public Health & Commissioning,Central Services to the Public,Ambleside Bistro And Garden Centre Limited,11/03/2021,,6000,Grant & Subscription (SCITT),Not Yet Classified
Solihull MBC,Public Health & Commissioning,Central Services to the Public,Ambleside Bistro And Garden Centre Limited,11/03/2021,,357,Grant & Subscription (SCITT),Not Yet Classified
Solihull MBC,Public Health & Commissioning,Central Services to the Public,Ambleside Bistro And Garden Centre Limited,11/03/2021,,3000,Grant & Subscription (SCITT),Not Yet Classified
Solihull MBC,Adult Social Care,Central Services to the Public,Amznmktplace Amazon.co.uk,25/02/2021,Card Transaction,269.83,Materials,161000 - Domestic Goods - Commercial
Solihull MBC,Children's Services & Skills,Children & Education Services,Anchor Fostercare,05/03/2021,,1980.96,External Fostering,Not Yet Classified
Solihull MBC,Children's Services & Skills,Children & Education Services,Anchor Fostercare,05/03/2021,,2950.2,External Fostering,Not Yet Classified
Solihull MBC,Children's Services & Skills,Children & Education Services,Anchor Fostercare,31/03/2021,,1980.96,External Fostering,Not Yet Classified
Solihull MBC,Children's Services & Skills,Children & Education Services,Anchor Fostercare,31/03/2021,,2950.2,External Fostering,Not Yet Classified
Solihull MBC,Adult Social Care,Adult Social Care,Anchor Trust,24/03/2021,,2789.24,ASC - Residential Care Permanent,321000 - Social Community Care Supplies & Services - Adult
Solihull MBC,Adult Social Care,Adult Social Care,Anchor Trust,24/03/2021,,2590.01,ASC - Residential Care Respite,321000 - Social Community Care Supplies & Services - Adult
Solihull MBC,Adult Social Care,Adult Social Care,Anchor Trust,24/03/2021,,3200,ASC - Residential Care Permanent,321000 - Social Community Care Supplies & Services - Adult
Solihull MBC,Public Health & Commissioning,Central Services to the Public,Andara Enterprises Limited,04/03/2021,,2096,Grant & Subscription (SCITT),Not Yet Classified
Solihull MBC,Public Health & Commissioning,Central Services to the Public,Angela Reasbeck Travel Counsellors,22/03/2021,,2096,Grant & Subscription (SCITT),Not Yet Classified
Solihull MBC,Children's Services - DSG Central.,Children & Education Services,Angels Daycare,15/03/2021,,2811.87,Grant & Subscription (SCITT),321100 - Social Community Care Supplies & Services - Children
Solihull MBC,Adult Social Care,Adult Social Care,Angels Healthcare Ltd,04/03/2021,,604.89,ASC - Domiciliary Care,321000 - Social Community Care Supplies & Services - Adult
Solihull MBC,Adult Social Care,Adult Social Care,Angels Healthcare Ltd,04/03/2021,,604.89,ASC - Domiciliary Care,321000 - Social Community Care Supplies & Services - Adult
Solihull MBC,Adult Social Care,Adult Social Care,Angels Healthcare Ltd,04/03/2021,,697.95,ASC - Domiciliary Care,321000 - Social Community Care Supplies & Services - Adult
Solihull MBC,Adult Social Care,Adult Social Care,Angels Healthcare Ltd,04/03/2021,,697.95,ASC - Domiciliary Care,321000 - Social Community Care Supplies & Services - Adult
Solihull MBC,Adult Social Care,Adult Social Care,Angels Healthcare Ltd,31/03/2021,,1302.84,ASC - Domiciliary Care,321000 - Social Community Care Supplies & Services - Adult
Solihull MBC,Adult Social Care,Adult Social Care,Angels Healthcare Ltd,31/03/2021,,1302.84,ASC - Domiciliary Care,321000 - Social Community Care Supplies & Services - Adult
Solihull MBC,Adult Social Care,Adult Social Care,Angels Healthcare Ltd,04/03/2021,,1133.64,ASC - Domiciliary Care,321000 - Social Community Care Supplies & Services - Adult
Solihull MBC,Adult Social Care,Adult Social Care,Angels Healthcare Ltd,31/03/2021,,1133.64,ASC - Domiciliary Care,321000 - Social Community Care Supplies & Services - Adult
Solihull MBC,Adult Social Care,Adult Social Care,Angels Healthcare Ltd,04/03/2021,,947.52,ASC - Domiciliary Care,321000 - Social Community Care Supplies & Services - Adult
Solihull MBC,Adult Social Care,Adult Social Care,Angels Healthcare Ltd,31/03/2021,,947.52,ASC - Domiciliary Care,321000 - Social Community Care Supplies & Services - Adult
Solihull MBC,Adult Social Care,Adult Social Care,Angels Healthcare Ltd,31/03/2021,,1027.89,ASC - Domiciliary Care,321000 - Social Community Care Supplies & Services - Adult
Solihull MBC,Adult Social Care,Adult Social Care,Angels Healthcare Ltd,31/03/2021,,1027.89,ASC - Domiciliary Care,321000 - Social Community Care Supplies & Services - Adult
Solihull MBC,Adult Social Care,Adult Social Care,Angels Healthcare Ltd,04/03/2021,,710.64,ASC - Domiciliary Care,321000 - Social Community Care Supplies & Services - Adult
Solihull MBC,Adult Social Care,Adult Social Care,Angels Healthcare Ltd,31/03/2021,,710.64,ASC - Domiciliary Care,321000 - Social Community Care Supplies & Services - Adult
Solihull MBC,Adult Social Care,Adult Social Care,Angels Healthcare Ltd,04/03/2021,,964.44,ASC - Domiciliary Care,321000 - Social Community Care Supplies & Services - Adult
Solihull MBC,Adult Social Care,Adult Social Care,Angels Healthcare Ltd,04/03/2021,,964.44,ASC - Domiciliary Care,321000 - Social Community Care Supplies & Services - Adult
Solihull MBC,Adult Social Care,Adult Social Care,Angels Healthcare Ltd,31/03/2021,,964.44,ASC - Domiciliary Care,321000 - Social Community Care Supplies & Services - Adult
Solihull MBC,Adult Social Care,Adult Social Care,Angels Healthcare Ltd,31/03/2021,,964.44,ASC - Domiciliary Care,321000 - Social Community Care Supplies & Services - Adult
Solihull MBC,Adult Social Care,Adult Social Care,Angels Healthcare Ltd,04/03/2021,,2131.92,ASC - Domiciliary Care,321000 - Social Community Care Supplies & Services - Adult
Solihull MBC,Adult Social Care,Adult Social Care,Angels Healthcare Ltd,31/03/2021,,2131.92,ASC - Domiciliary Care,321000 - Social Community Care Supplies & Services - Adult
Solihull MBC,Adult Social Care,Adult Social Care,Angels Healthcare Ltd,04/03/2021,,592.2,ASC - Domiciliary Care,321000 - Social Community Care Supplies & Services - Adult
Solihull MBC,Adult Social Care,Adult Social Care,Angels Healthcare Ltd,31/03/2021,,592.2,ASC - Domiciliary Care,321000 - Social Community Care Supplies & Services - Adult
Solihull MBC,Adult Social Care,Adult Social Care,Angels Healthcare Ltd,04/03/2021,,473.76,ASC - Domiciliary Care,321000 - Social Community Care Supplies & Services - Adult
Solihull MBC,Adult Social Care,Adult Social Care,Angels Healthcare Ltd,31/03/2021,,473.76,ASC - Domiciliary Care,321000 - Social Community Care Supplies & Services - Adult
Solihull MBC,Adult Social Care,Adult Social Care,Angels Healthcare Ltd,04/03/2021,,600.66,ASC - Domiciliary Care,321000 - Social Community Care Supplies & Services - Adult
Solihull MBC,Adult Social Care,Adult Social Care,Angels Healthcare Ltd,04/03/2021,,600.66,ASC - Domiciliary Care,321000 - Social Community Care Supplies & Services - Adult
Solihull MBC,Adult Social Care,Adult Social Care,Angels Healthcare Ltd,04/03/2021,,279.18,ASC - Domiciliary Care,321000 - Social Community Care Supplies & Services - Adult
Solihull MBC,Adult Social Care,Adult Social Care,Angels Healthcare Ltd,04/03/2021,,279.18,ASC - Domiciliary Care,321000 - Social Community Care Supplies & Services - Adult
Solihull MBC,Adult Social Care,Adult Social Care,Angels Healthcare Ltd,04/03/2021,,507.6,ASC - Domiciliary Care,321000 - Social Community Care Supplies & Services - Adult
Solihull MBC,Adult Social Care,Adult Social Care,Angels Healthcare Ltd,04/03/2021,,507.6,ASC - Domiciliary Care,321000 - Social Community Care Supplies & Services - Adult
Solihull MBC,Adult Social Care,Adult Social Care,Angels Healthcare Ltd,31/03/2021,,896.76,ASC - Domiciliary Care,321000 - Social Community Care Supplies & Services - Adult
Solihull MBC,Adult Social Care,Adult Social Care,Angels Healthcare Ltd,31/03/2021,,896.76,ASC - Domiciliary Care,321000 - Social Community Care Supplies & Services - Adult
Solihull MBC,Adult Social Care,Adult Social Care,Angels Healthcare Ltd,04/03/2021,,592.2,ASC - Domiciliary Care,321000 - Social Community Care Supplies & Services - Adult
Solihull MBC,Adult Social Care,Adult Social Care,Angels Healthcare Ltd,04/03/2021,,355.32,ASC - Domiciliary Care,321000 - Social Community Care Supplies & Services - Adult
Solihull MBC,Adult Social Care,Adult Social Care,Angels Healthcare Ltd,31/03/2021,,592.2,ASC - Domiciliary Care,321000 - Social Community Care Supplies & Services - Adult
Solihull MBC,Adult Social Care,Adult Social Care,Angels Healthcare Ltd,31/03/2021,,355.32,ASC - Domiciliary Care,321000 - Social Community Care Supplies & Services - Adult
Solihull MBC,Adult Social Care,Adult Social Care,Angels Healthcare Ltd,04/03/2021,,710.64,ASC - Domiciliary Care,321000 - Social Community Care Supplies & Services - Adult
Solihull MBC,Adult Social Care,Adult Social Care,Angels Healthcare Ltd,31/03/2021,,710.64,ASC - Domiciliary Care,321000 - Social Community Care Supplies & Services - Adult
Solihull MBC,Adult Social Care,Adult Social Care,Angels Healthcare Ltd,04/03/2021,,507.6,ASC - Domiciliary Care,321000 - Social Community Care Supplies & Services - Adult
Solihull MBC,Adult Social Care,Adult Social Care,Angels Healthcare Ltd,31/03/2021,,507.6,ASC - Domiciliary Care,321000 - Social Community Care Supplies & Services - Adult
Solihull MBC,Adult Social Care,Adult Social Care,Angels Healthcare Ltd,04/03/2021,,947.52,ASC - Domiciliary Care,321000 - Social Community Care Supplies & Services - Adult
Solihull MBC,Adult Social Care,Adult Social Care,Angels Healthcare Ltd,04/03/2021,,947.52,ASC - Domiciliary Care,321000 - Social Community Care Supplies & Services - Adult
Solihull MBC,Adult Social Care,Adult Social Care,Angels Healthcare Ltd,31/03/2021,,609.12,ASC - Domiciliary Care,321000 - Social Community Care Supplies & Services - Adult
Solihull MBC,Adult Social Care,Adult Social Care,Angels Healthcare Ltd,31/03/2021,,609.12,ASC - Domiciliary Care,321000 - Social Community Care Supplies & Services - Adult
Solihull MBC,Adult Social Care,Adult Social Care,Angels Healthcare Ltd,04/03/2021,,829.08,ASC - Domiciliary Care,321000 - Social Community Care Supplies & Services - Adult
Solihull MBC,Adult Social Care,Adult Social Care,Angels Healthcare Ltd,04/03/2021,,423,ASC - Domiciliary Care,321000 - Social Community Care Supplies & Services - Adult
Solihull MBC,Adult Social Care,Adult Social Care,Angels Healthcare Ltd,31/03/2021,,626.04,ASC - Domiciliary Care,321000 - Social Community Care Supplies & Services - Adult
Solihull MBC,Adult Social Care,Adult Social Care,Angels Healthcare Ltd,31/03/2021,,626.04,ASC - Domiciliary Care,321000 - Social Community Care Supplies & Services - Adult
Solihull MBC,Adult Social Care,Adult Social Care,Angels Healthcare Ltd,04/03/2021,,829.08,ASC - Domiciliary Care,321000 - Social Community Care Supplies & Services - Adult
Solihull MBC,Adult Social Care,Adult Social Care,Angels Healthcare Ltd,31/03/2021,,829.08,ASC - Domiciliary Care,321000 - Social Community Care Supplies & Services - Adult
Solihull MBC,Adult Social Care,Adult Social Care,Angels Healthcare Ltd,04/03/2021,,1895.04,ASC - Domiciliary Care,321000 - Social Community Care Supplies & Services - Adult
Solihull MBC,Adult Social Care,Adult Social Care,Angels Healthcare Ltd,31/03/2021,,1895.04,ASC - Domiciliary Care,321000 - Social Community Care Supplies & Services - Adult
Solihull MBC,Adult Social Care,Adult Social Care,Angels Healthcare Ltd,04/03/2021,,659.88,ASC - Domiciliary Care,321000 - Social Community Care Supplies & Services - Adult
Solihull MBC,Adult Social Care,Adult Social Care,Angels Healthcare Ltd,31/03/2021,,1027.89,ASC - Domiciliary Care,321000 - Social Community Care Supplies & Services - Adult
Solihull MBC,Adult Social Care,Adult Social Care,Angels Healthcare Ltd,04/03/2021,,710.64,ASC - Domiciliary Care,321000 - Social Community Care Supplies & Services - Adult
Solihull MBC,Adult Social Care,Adult Social Care,Angels Healthcare Ltd,31/03/2021,,710.64,ASC - Domiciliary Care,321000 - Social Community Care Supplies & Services - Adult
Solihull MBC,Adult Social Care,Adult Social Care,Angels Healthcare Ltd,04/03/2021,,2047.32,ASC - Domiciliary Care,321000 - Social Community Care Supplies & Services - Adult
Solihull MBC,Adult Social Care,Adult Social Care,Angels Healthcare Ltd,31/03/2021,,1903.5,ASC - Domiciliary Care,321000 - Social Community Care Supplies & Services - Adult
Solihull MBC,Adult Social Care,Adult Social Care,Angels Healthcare Ltd,04/03/2021,,947.52,ASC - Domiciliary Care,321000 - Social Community Care Supplies & Services - Adult
Solihull MBC,Adult Social Care,Adult Social Care,Angels Healthcare Ltd,31/03/2021,,947.52,ASC - Domiciliary Care,321000 - Social Community Care Supplies & Services - Adult
Solihull MBC,Adult Social Care,Adult Social Care,Angels Healthcare Ltd,04/03/2021,,1015.2,ASC - Domiciliary Care,321000 - Social Community Care Supplies & Services - Adult
Solihull MBC,Adult Social Care,Adult Social Care,Angels Healthcare Ltd,31/03/2021,,1015.2,ASC - Domiciliary Care,321000 - Social Community Care Supplies & Services - Adult
Solihull MBC,Covid-19,Central Services to the Public,Angels Healthcare Ltd,12/03/2021,,15296,Furniture & Equipment,321000 - Social Community Care Supplies & Services - Adult
Solihull MBC,Adult Social Care,Adult Social Care,Anita Stone Court,24/03/2021,,2996.28,ASC - Nursing Care Permanent,Not Yet Classified
Solihull MBC,Children's Services - DSG Central.,Children & Education Services,Ann Arbor Publishers Ltd,11/03/2021,,394.99,Materials,171100 - Education - Supplies
Solihull MBC,Resources,Central Services to the Public,Annodata Business Communications,19/03/2021,,65571.14,General Office Expenses,Not Yet Classified
Solihull MBC,Public Health & Commissioning,Central Services to the Public,Annora Consulting Limited,22/03/2021,,2096,Grant & Subscription (SCITT),Not Yet Classified
Solihull MBC,Public Health & Commissioning,Central Services to the Public,Antela Ltd,22/03/2021,,2096,Grant & Subscription (SCITT),Not Yet Classified
Solihull MBC,Economy and Infrastructure,Planning & Development Services,Anthesis (UK) Ltd,29/03/2021,,25253.33,Professional Fees,Not Yet Classified
Solihull MBC,Children's Services & Skills,Children & Education Services,Anthony Collins Solicitors LLP,16/03/2021,,695,Order Allowances,321100 - Social Community Care Supplies & Services - Children
Solihull MBC,Public Health & Commissioning,Central Services to the Public,Anthonyjohnhairsalon,04/03/2021,,2096,Grant & Subscription (SCITT),Not Yet Classified
Solihull MBC,Public Health & Commissioning,Central Services to the Public,Antonio Barbieri T/A Toni,04/03/2021,,2096,Grant & Subscription (SCITT),Not Yet Classified
Solihull MBC,Public Health & Commissioning,Central Services to the Public,APC Enterprises (Midlands) Ltd,04/03/2021,,2096,Grant & Subscription (SCITT),Not Yet Classified
Solihull MBC,Children's Services & Skills,Children & Education Services,Apollo Home Healthcare Ltd,04/03/2021,,474.24,Clients Expenses,Not Yet Classified
Solihull MBC,Children's Services & Skills,Children & Education Services,Apollo Home Healthcare Ltd,11/03/2021,,474.24,Clients Expenses,Not Yet Classified
Solihull MBC,Children's Services & Skills,Children & Education Services,Apollo Home Healthcare Ltd,18/03/2021,,474.24,Clients Expenses,Not Yet Classified
Solihull MBC,Children's Services & Skills,Children & Education Services,Apollo Home Healthcare Ltd,26/03/2021,,504.7,Clients Expenses,Not Yet Classified
Solihull MBC,Children's Services & Skills,Children & Education Services,Apollo Home Healthcare Ltd,26/03/2021,,474.24,Clients Expenses,Not Yet Classified
Solihull MBC,Economy and Infrastructure,Highways & Transport Services,Aquam Water Services Ltd,22/03/2021,,2816.43,Water,Not Yet Classified
Solihull MBC,Economy and Infrastructure,Highways & Transport Services,Aquam Water Services Ltd,22/03/2021,,873.57,Water,Not Yet Classified
Solihull MBC,Public Health & Commissioning,Central Services to the Public,Aquasport Midlands,04/03/2021,,2096,Grant & Subscription (SCITT),Not Yet Classified
Solihull MBC,Economy and Infrastructure,Environmental and Regulatory Services,Arboricultural Association,11/03/2021,,660,Training,Not Yet Classified
Solihull MBC,Public Health & Commissioning,Central Services to the Public,Arden Hotel Ltd,04/03/2021,,4714,Grant & Subscription (SCITT),Not Yet Classified
Solihull MBC,Public Health & Commissioning,Central Services to the Public,Arden House Hotel,04/03/2021,,2096,Grant & Subscription (SCITT),Not Yet Classified
Solihull MBC,Adult Social Care,Adult Social Care,Ardenlea Court,24/03/2021,,2503.2,ASC - Nursing Care Permanent,321000 - Social Community Care Supplies & Services - Adult
Solihull MBC,Adult Social Care,Adult Social Care,Ardenlea Court,24/03/2021,,2736.72,ASC - Nursing Care Permanent,321000 - Social Community Care Supplies & Services - Adult
Solihull MBC,Adult Social Care,Adult Social Care,Ardenlea Grove Nursing Home,24/03/2021,,2503.2,ASC - Nursing Care Permanent,321000 - Social Community Care Supplies & Services - Adult
Solihull MBC,Adult Social Care,Adult Social Care,Ardenlea Grove Nursing Home,24/03/2021,,349.75,ASC - Nursing Care Permanent,321000 - Social Community Care Supplies & Services - Adult
Solihull MBC,Adult Social Care,Adult Social Care,Ardenlea Grove Nursing Home,24/03/2021,,3264.32,ASC - Nursing Care Permanent,321000 - Social Community Care Supplies & Services - Adult
Solihull MBC,Adult Social Care,Adult Social Care,Ardenlea Grove Nursing Home,24/03/2021,,3264.32,ASC - Nursing Care Permanent,321000 - Social Community Care Supplies & Services - Adult
Solihull MBC,Adult Social Care,Adult Social Care,Ardenlea Grove Nursing Home,24/03/2021,,3421.6,ASC - Nursing Care Permanent,321000 - Social Community Care Supplies & Services - Adult
Solihull MBC,Adult Social Care,Adult Social Care,Ardenlea Grove Nursing Home,24/03/2021,,3734.08,ASC - Nursing Care Permanent,321000 - Social Community Care Supplies & Services - Adult
Solihull MBC,Adult Social Care,Adult Social Care,Ardenlea Grove Nursing Home,24/03/2021,,3026.24,ASC - Nursing Care Permanent,321000 - Social Community Care Supplies & Services - Adult
Solihull MBC,Adult Social Care,Adult Social Care,Ardenlea Grove Nursing Home,24/03/2021,,3993.44,ASC - Nursing Care Permanent,321000 - Social Community Care Supplies & Services - Adult
Solihull MBC,Children's Services & Skills,Children & Education Services,Argos Ltd,24/03/2021,Card Transaction,226.95,Purchase Card Statement Summary,169999 - Domestic Goods - Not Elsewhere Classified
Solihull MBC,Public Health & Commissioning,Central Services to the Public,Aries Entertainment Limited,22/03/2021,,2096,Grant & Subscription (SCITT),Not Yet Classified
Solihull MBC,Public Health & Commissioning,Central Services to the Public,Aristocraft Kitchens And Bedrooms Ltd,04/03/2021,,2096,Grant & Subscription (SCITT),Not Yet Classified
Solihull MBC,Adult Social Care,Adult Social Care,Arjo Ltd,15/03/2021,,450,Furniture & Equipment,321000 - Social Community Care Supplies & Services - Adult
Solihull MBC,Adult Social Care,Adult Social Care,Arjo Ltd,15/03/2021,,7750,Furniture & Equipment,321000 - Social Community Care Supplies & Services - Adult
Solihull MBC,Public Health & Commissioning,Central Services to the Public,Aroma Widney Road Ltd,04/03/2021,,2096,Grant & Subscription (SCITT),Not Yet Classified
Solihull MBC,Children's Services - DSG Central.,Children & Education Services,Arrow County Supplies,04/03/2021,,50.4,Cleaning,130000 - Cleaning & Janitorial
Solihull MBC,Children's Services - DSG Central.,Children & Education Services,Arrow County Supplies,04/03/2021,,37.62,Cleaning,130000 - Cleaning & Janitorial
Solihull MBC,Children's Services - DSG Central.,Children & Education Services,Arrow County Supplies,04/03/2021,,25,Cleaning,130000 - Cleaning & Janitorial
Solihull MBC,Children's Services - DSG Central.,Children & Education Services,Arrow County Supplies,04/03/2021,,140.9,Cleaning,130000 - Cleaning & Janitorial
Solihull MBC,Children's Services - DSG Central.,Children & Education Services,Arrow County Supplies,04/03/2021,,221.4,Cleaning,130000 - Cleaning & Janitorial
Solihull MBC,Children's Services - DSG Central.,Children & Education Services,Arrow County Supplies,04/03/2021,,714,Cleaning,130000 - Cleaning & Janitorial
Solihull MBC,Children's Services - DSG Central.,Children & Education Services,Arrow County Supplies,04/03/2021,,444,Cleaning,130000 - Cleaning & Janitorial
Solihull MBC,Children's Services - DSG Central.,Children & Education Services,Arrow County Supplies,04/03/2021,,510.6,Cleaning,130000 - Cleaning & Janitorial
Solihull MBC,Children's Services - DSG Central.,Children & Education Services,Arrow County Supplies,04/03/2021,,112,Cleaning,130000 - Cleaning & Janitorial
Solihull MBC,Children's Services - DSG Central.,Children & Education Services,Arrow County Supplies,04/03/2021,,267.2,Cleaning,130000 - Cleaning & Janitorial
Solihull MBC,Children's Services - DSG Central.,Children & Education Services,Arrow County Supplies,04/03/2021,,102.72,Cleaning,130000 - Cleaning & Janitorial
Solihull MBC,Children's Services - DSG Central.,Children & Education Services,Arrow County Supplies,04/03/2021,,103.92,Cleaning,130000 - Cleaning & Janitorial
Solihull MBC,Children's Services - DSG Central.,Children & Education Services,Arrow County Supplies,04/03/2021,,465.6,Cleaning,130000 - Cleaning & Janitorial
Solihull MBC,Children's Services - DSG Central.,Children & Education Services,Arrow County Supplies,04/03/2021,,74.4,Cleaning,130000 - Cleaning & Janitorial
Solihull MBC,Children's Services - DSG Central.,Children & Education Services,Arrow County Supplies,04/03/2021,,188.8,Cleaning,130000 - Cleaning & Janitorial
Solihull MBC,Children's Services - DSG Central.,Children & Education Services,Arrow County Supplies,04/03/2021,,576,Cleaning,130000 - Cleaning & Janitorial
Solihull MBC,Children's Services - DSG Central.,Children & Education Services,Arrow County Supplies,01/03/2021,,51,Cleaning,130000 - Cleaning & Janitorial
Solihull MBC,Children's Services - DSG Central.,Children & Education Services,Arrow County Supplies,01/03/2021,,141,Cleaning,130000 - Cleaning & Janitorial
Solihull MBC,Children's Services - DSG Central.,Children & Education Services,Arrow County Supplies,01/03/2021,,112,Cleaning,130000 - Cleaning & Janitorial
Solihull MBC,Children's Services - DSG Central.,Children & Education Services,Arrow County Supplies,05/03/2021,,14.16,Cleaning,130000 - Cleaning & Janitorial
Solihull MBC,Children's Services - DSG Central.,Children & Education Services,Arrow County Supplies,05/03/2021,,12.5,Cleaning,130000 - Cleaning & Janitorial
Solihull MBC,Children's Services - DSG Central.,Children & Education Services,Arrow County Supplies,05/03/2021,,70.45,Cleaning,130000 - Cleaning & Janitorial
Solihull MBC,Children's Services - DSG Central.,Children & Education Services,Arrow County Supplies,05/03/2021,,36.32,Cleaning,130000 - Cleaning & Janitorial
Solihull MBC,Children's Services - DSG Central.,Children & Education Services,Arrow County Supplies,05/03/2021,,142.8,Cleaning,130000 - Cleaning & Janitorial
Solihull MBC,Children's Services - DSG Central.,Children & Education Services,Arrow County Supplies,05/03/2021,,148,Cleaning,130000 - Cleaning & Janitorial
Solihull MBC,Children's Services - DSG Central.,Children & Education Services,Arrow County Supplies,05/03/2021,,148.96,Cleaning,130000 - Cleaning & Janitorial
Solihull MBC,Children's Services - DSG Central.,Children & Education Services,Arrow County Supplies,05/03/2021,,21,Cleaning,130000 - Cleaning & Janitorial
Solihull MBC,Children's Services - DSG Central.,Children & Education Services,Arrow County Supplies,05/03/2021,,21,Cleaning,130000 - Cleaning & Janitorial
Solihull MBC,Children's Services - DSG Central.,Children & Education Services,Arrow County Supplies,05/03/2021,,62.4,Cleaning,130000 - Cleaning & Janitorial
Solihull MBC,Children's Services - DSG Central.,Children & Education Services,Arrow County Supplies,05/03/2021,,83.2,Cleaning,130000 - Cleaning & Janitorial
Solihull MBC,Children's Services - DSG Central.,Children & Education Services,Arrow County Supplies,05/03/2021,,105.75,Cleaning,130000 - Cleaning & Janitorial
Solihull MBC,Children's Services - DSG Central.,Children & Education Services,Arrow County Supplies,05/03/2021,,343.2,Cleaning,130000 - Cleaning & Janitorial
Solihull MBC,Children's Services - DSG Central.,Children & Education Services,Arrow County Supplies,05/03/2021,,51.36,Cleaning,130000 - Cleaning & Janitorial
Solihull MBC,Children's Services - DSG Central.,Children & Education Services,Arrow County Supplies,05/03/2021,,53.97,Cleaning,130000 - Cleaning & Janitorial
Solihull MBC,Children's Services - DSG Central.,Children & Education Services,Arrow County Supplies,05/03/2021,,173.2,Cleaning,130000 - Cleaning & Janitorial
Solihull MBC,Children's Services - DSG Central.,Children & Education Services,Arrow County Supplies,05/03/2021,,30.92,Cleaning,130000 - Cleaning & Janitorial
Solihull MBC,Children's Services - DSG Central.,Children & Education Services,Arrow County Supplies,05/03/2021,,206.55,Cleaning,130000 - Cleaning & Janitorial
Solihull MBC,Children's Services - DSG Central.,Children & Education Services,Arrow County Supplies,05/03/2021,,188.8,Cleaning,130000 - Cleaning & Janitorial
Solihull MBC,Children's Services - DSG Central.,Children & Education Services,Arrow County Supplies,05/03/2021,,129.2,Cleaning,130000 - Cleaning & Janitorial
Solihull MBC,Children's Services - DSG Central.,Children & Education Services,Arrow County Supplies,05/03/2021,,288,Cleaning,130000 - Cleaning & Janitorial
Solihull MBC,Children's Services - DSG Central.,Children & Education Services,Arrow County Supplies,05/03/2021,,666,Cleaning,130000 - Cleaning & Janitorial
Solihull MBC,Children's Services - DSG Central.,Children & Education Services,Arrow County Supplies,05/03/2021,,423,Cleaning,130000 - Cleaning & Janitorial
Solihull MBC,Children's Services - DSG Central.,Children & Education Services,Arrow County Supplies,05/03/2021,,686.4,Cleaning,130000 - Cleaning & Janitorial
Solihull MBC,Children's Services - DSG Central.,Children & Education Services,Arrow County Supplies,12/03/2021,,64,Cleaning,130000 - Cleaning & Janitorial
Solihull MBC,Children's Services - DSG Central.,Children & Education Services,Arrow County Supplies,12/03/2021,,88.56,Cleaning,130000 - Cleaning & Janitorial
Solihull MBC,Children's Services - DSG Central.,Children & Education Services,Arrow County Supplies,12/03/2021,,34.08,Cleaning,130000 - Cleaning & Janitorial
Solihull MBC,Children's Services - DSG Central.,Children & Education Services,Arrow County Supplies,12/03/2021,,116.08,Cleaning,130000 - Cleaning & Janitorial
Solihull MBC,Children's Services - DSG Central.,Children & Education Services,Arrow County Supplies,12/03/2021,,42,Cleaning,130000 - Cleaning & Janitorial
Solihull MBC,Children's Services - DSG Central.,Children & Education Services,Arrow County Supplies,12/03/2021,,10.5,Cleaning,130000 - Cleaning & Janitorial
Solihull MBC,Children's Services - DSG Central.,Children & Education Services,Arrow County Supplies,12/03/2021,,77.94,Cleaning,130000 - Cleaning & Janitorial
Solihull MBC,Children's Services - DSG Central.,Children & Education Services,Arrow County Supplies,12/03/2021,,33.48,Cleaning,130000 - Cleaning & Janitorial
Solihull MBC,Children's Services - DSG Central.,Children & Education Services,Arrow County Supplies,12/03/2021,,56,Cleaning,130000 - Cleaning & Janitorial
Solihull MBC,Children's Services - DSG Central.,Children & Education Services,Arrow County Supplies,16/03/2021,,128,Cleaning,130000 - Cleaning & Janitorial
Solihull MBC,Children's Services - DSG Central.,Children & Education Services,Arrow County Supplies,16/03/2021,,512,Cleaning,130000 - Cleaning & Janitorial
Solihull MBC,Children's Services - DSG Central.,Children & Education Services,Arrow County Supplies,16/03/2021,,142.8,Cleaning,130000 - Cleaning & Janitorial
Solihull MBC,Children's Services - DSG Central.,Children & Education Services,Arrow County Supplies,16/03/2021,,170.2,Cleaning,130000 - Cleaning & Janitorial
Solihull MBC,Children's Services - DSG Central.,Children & Education Services,Arrow County Supplies,16/03/2021,,115.65,Cleaning,130000 - Cleaning & Janitorial
Solihull MBC,Children's Services - DSG Central.,Children & Education Services,Arrow County Supplies,16/03/2021,,97,Cleaning,130000 - Cleaning & Janitorial
Solihull MBC,Children's Services - DSG Central.,Children & Education Services,Arrow County Supplies,16/03/2021,,55.4,Cleaning,130000 - Cleaning & Janitorial
Solihull MBC,Children's Services - DSG Central.,Children & Education Services,Arrow County Supplies,16/03/2021,,18.6,Cleaning,130000 - Cleaning & Janitorial
Solihull MBC,Children's Services - DSG Central.,Children & Education Services,Arrow County Supplies,16/03/2021,,20.88,Cleaning,130000 - Cleaning & Janitorial
Solihull MBC,Children's Services - DSG Central.,Children & Education Services,Arrow County Supplies,16/03/2021,,20.88,Cleaning,130000 - Cleaning & Janitorial
Solihull MBC,Children's Services - DSG Central.,Children & Education Services,Arrow County Supplies,16/03/2021,,288,Cleaning,130000 - Cleaning & Janitorial
Solihull MBC,Children's Services - DSG Central.,Children & Education Services,Arrow County Supplies,19/03/2021,,221.4,Cleaning,130000 - Cleaning & Janitorial
Solihull MBC,Children's Services - DSG Central.,Children & Education Services,Arrow County Supplies,19/03/2021,,148,Cleaning,130000 - Cleaning & Janitorial
Solihull MBC,Children's Services - DSG Central.,Children & Education Services,Arrow County Supplies,19/03/2021,,122.1,Cleaning,130000 - Cleaning & Janitorial
Solihull MBC,Children's Services - DSG Central.,Children & Education Services,Arrow County Supplies,19/03/2021,,193.8,Cleaning,130000 - Cleaning & Janitorial
Solihull MBC,Children's Services - DSG Central.,Children & Education Services,Arrow County Supplies,19/03/2021,,109.2,Cleaning,130000 - Cleaning & Janitorial
Solihull MBC,Children's Services - DSG Central.,Children & Education Services,Arrow County Supplies,22/03/2021,,512,Cleaning,130000 - Cleaning & Janitorial
Solihull MBC,Children's Services - DSG Central.,Children & Education Services,Arrow County Supplies,22/03/2021,,192,Cleaning,130000 - Cleaning & Janitorial
Solihull MBC,Children's Services - DSG Central.,Children & Education Services,Arrow County Supplies,22/03/2021,,12.02,Cleaning,130000 - Cleaning & Janitorial
Solihull MBC,Children's Services - DSG Central.,Children & Education Services,Arrow County Supplies,22/03/2021,,147.6,Cleaning,130000 - Cleaning & Janitorial
Solihull MBC,Children's Services - DSG Central.,Children & Education Services,Arrow County Supplies,22/03/2021,,45.48,Cleaning,130000 - Cleaning & Janitorial
Solihull MBC,Children's Services - DSG Central.,Children & Education Services,Arrow County Supplies,22/03/2021,,142.8,Cleaning,130000 - Cleaning & Janitorial
Solihull MBC,Children's Services - DSG Central.,Children & Education Services,Arrow County Supplies,22/03/2021,,148,Cleaning,130000 - Cleaning & Janitorial
Solihull MBC,Children's Services - DSG Central.,Children & Education Services,Arrow County Supplies,22/03/2021,,111.72,Cleaning,130000 - Cleaning & Janitorial
Solihull MBC,Children's Services - DSG Central.,Children & Education Services,Arrow County Supplies,22/03/2021,,10.5,Cleaning,130000 - Cleaning & Janitorial
Solihull MBC,Children's Services - DSG Central.,Children & Education Services,Arrow County Supplies,22/03/2021,,21,Cleaning,130000 - Cleaning & Janitorial
Solihull MBC,Children's Services - DSG Central.,Children & Education Services,Arrow County Supplies,22/03/2021,,212,Cleaning,130000 - Cleaning & Janitorial
Solihull MBC,Children's Services - DSG Central.,Children & Education Services,Arrow County Supplies,22/03/2021,,170.2,Cleaning,130000 - Cleaning & Janitorial
Solihull MBC,Children's Services - DSG Central.,Children & Education Services,Arrow County Supplies,22/03/2021,,93.6,Cleaning,130000 - Cleaning & Janitorial
Solihull MBC,Children's Services - DSG Central.,Children & Education Services,Arrow County Supplies,22/03/2021,,141,Cleaning,130000 - Cleaning & Janitorial
Solihull MBC,Children's Services - DSG Central.,Children & Education Services,Arrow County Supplies,22/03/2021,,15.74,Cleaning,130000 - Cleaning & Janitorial
Solihull MBC,Children's Services - DSG Central.,Children & Education Services,Arrow County Supplies,22/03/2021,,114.4,Cleaning,130000 - Cleaning & Janitorial
Solihull MBC,Children's Services - DSG Central.,Children & Education Services,Arrow County Supplies,22/03/2021,,43.5,Cleaning,130000 - Cleaning & Janitorial
Solihull MBC,Children's Services - DSG Central.,Children & Education Services,Arrow County Supplies,22/03/2021,,51.36,Cleaning,130000 - Cleaning & Janitorial
Solihull MBC,Children's Services - DSG Central.,Children & Education Services,Arrow County Supplies,22/03/2021,,36.24,Cleaning,130000 - Cleaning & Janitorial
Solihull MBC,Children's Services - DSG Central.,Children & Education Services,Arrow County Supplies,22/03/2021,,275.4,Cleaning,130000 - Cleaning & Janitorial
Solihull MBC,Children's Services - DSG Central.,Children & Education Services,Arrow County Supplies,22/03/2021,,288,Cleaning,130000 - Cleaning & Janitorial
Solihull MBC,Children's Services - DSG Central.,Children & Education Services,Arrow County Supplies,22/03/2021,,-512,Cleaning,130000 - Cleaning & Janitorial
Solihull MBC,Economy and Infrastructure,Cultural & Related Services,Art At The Heart CIC,05/03/2021,,282.24,General Receipts In Advance,Not Yet Classified
Solihull MBC,Economy and Infrastructure,Cultural & Related Services,Art At The Heart CIC,10/03/2021,,3382.14,Other Fees,Not Yet Classified
Solihull MBC,Economy and Infrastructure,Cultural & Related Services,Art At The Heart CIC,05/03/2021,,1821.16,Other Fees,Not Yet Classified
Solihull MBC,Resources,Children & Education Services,Arthur Brett Catering Ltd,23/03/2021,,272.18,Catering Provisions,110000 - Catering
Solihull MBC,Resources,Children & Education Services,Arthur Brett Catering Ltd,29/03/2021,,-272.18,Catering Provisions,110000 - Catering
Solihull MBC,Public Health & Commissioning,Central Services to the Public,Artico Hair Limited,04/03/2021,,2096,Grant & Subscription (SCITT),Not Yet Classified
Solihull MBC,Public Health & Commissioning,Central Services to the Public,Artico Salon Ltd,04/03/2021,,3143,Grant & Subscription (SCITT),Not Yet Classified
Solihull MBC,Public Health & Commissioning,Central Services to the Public,Arvin Ltd,22/03/2021,,4714,Grant & Subscription (SCITT),Not Yet Classified
Solihull MBC,Public Health & Commissioning,Central Services to the Public,Ash And Bailey,04/03/2021,,2096,Grant & Subscription (SCITT),Not Yet Classified
Solihull MBC,Children's Services - DSG Central.,Children & Education Services,Ash Green School,22/03/2021,,850,Other Contracted Services,Not Yet Classified
Solihull MBC,Public Health & Commissioning,Central Services to the Public,Ash Heating Limites,22/03/2021,,2096,Grant & Subscription (SCITT),Not Yet Classified
Solihull MBC,Adult Social Care,Adult Social Care,Ashbourne Care Ltd,24/03/2021,,2191.28,ASC - Residential Care Permanent,Not Yet Classified
Solihull MBC,Adult Social Care,Adult Social Care,Ashdale Care Homes Ltd,24/03/2021,,2554.72,ASC - Residential Care Permanent,321000 - Social Community Care Supplies & Services - Adult
Solihull MBC,Adult Social Care,Adult Social Care,Ashdale Care Homes Ltd,24/03/2021,,2954.84,ASC - Residential Care Permanent,321000 - Social Community Care Supplies & Services - Adult
Solihull MBC,Public Health & Commissioning,Central Services to the Public,Ask Outlets Ltd,04/03/2021,,3143,Grant & Subscription (SCITT),Not Yet Classified
Solihull MBC,Economy and Infrastructure,Cultural & Related Services,Askews Library Services Ltd,05/03/2021,,187.96,Materials,170000 - Education
Solihull MBC,Economy and Infrastructure,Cultural & Related Services,Askews Library Services Ltd,05/03/2021,,100,Materials,170000 - Education
Solihull MBC,Economy and Infrastructure,Cultural & Related Services,Askews Library Services Ltd,05/03/2021,,54.03,Materials,170000 - Education
Solihull MBC,Economy and Infrastructure,Cultural & Related Services,Askews Library Services Ltd,05/03/2021,,-22.56,Materials,170000 - Education
Solihull MBC,Adult Social Care,Adult Social Care,Aspects Care Ltd,10/03/2021,,989.52,ASC - Supported Living Care Costs,Not Yet Classified
Solihull MBC,Adult Social Care,Adult Social Care,Aspects Care Ltd,10/03/2021,,1979.04,ASC - Supported Living Care Costs,Not Yet Classified
Solihull MBC,Adult Social Care,Adult Social Care,Aspects Care Ltd,10/03/2021,,280,ASC - Supported Living Care Costs,Not Yet Classified
Solihull MBC,Adult Social Care,Adult Social Care,Aspects Care Ltd,10/03/2021,,1468.32,ASC - Supported Living Care Costs,Not Yet Classified
Solihull MBC,Adult Social Care,Adult Social Care,Aspects Care Ltd,10/03/2021,,1340.64,ASC - Supported Living Care Costs,Not Yet Classified
Solihull MBC,Adult Social Care,Adult Social Care,Aspects Care Ltd,10/03/2021,,1324.68,ASC - Supported Living Care Costs,Not Yet Classified
Solihull MBC,Adult Social Care,Adult Social Care,Aspects Care Ltd,18/03/2021,,2489.76,ASC - Supported Living Care Costs,Not Yet Classified
Solihull MBC,Adult Social Care,Adult Social Care,Aspects Care Ltd,18/03/2021,,2320.76,ASC - Supported Living Care Costs,Not Yet Classified
Solihull MBC,Adult Social Care,Adult Social Care,Aspects Care Ltd,10/03/2021,,1881.6,ASC - Domiciliary Care,Not Yet Classified
Solihull MBC,Adult Social Care,Adult Social Care,Aspects Care Ltd,10/03/2021,,2298.24,ASC - Supported Living Care Costs,Not Yet Classified
Solihull MBC,Adult Social Care,Adult Social Care,Aspects Care Ltd,10/03/2021,,845.88,ASC - Supported Living Care Costs,Not Yet Classified
Solihull MBC,Adult Social Care,Adult Social Care,Aspects Care Ltd,10/03/2021,,989.52,ASC - Supported Living Care Costs,Not Yet Classified
Solihull MBC,Adult Social Care,Adult Social Care,Aspects Care Ltd,10/03/2021,,1596,ASC - Supported Living Care Costs,Not Yet Classified
Solihull MBC,Adult Social Care,Adult Social Care,Aspects Care Ltd,10/03/2021,,989.52,ASC - Supported Living Care Costs,Not Yet Classified
Solihull MBC,Adult Social Care,Adult Social Care,Aspects Care Ltd,10/03/2021,,3798.48,ASC - Supported Living Care Costs,Not Yet Classified
Solihull MBC,Adult Social Care,Adult Social Care,Aspects Care Ltd,10/03/2021,,280,ASC - Supported Living Care Costs,Not Yet Classified
Solihull MBC,Adult Social Care,Adult Social Care,Aspects Care Ltd,10/03/2021,,1212.96,ASC - Supported Living Care Costs,Not Yet Classified
Solihull MBC,Adult Social Care,Adult Social Care,Aspects Care Ltd,10/03/2021,,6703.2,ASC - Supported Living Care Costs,Not Yet Classified
Solihull MBC,Adult Social Care,Adult Social Care,Aspects Care Ltd,10/03/2021,,4021.92,ASC - Supported Living Care Costs,Not Yet Classified
Solihull MBC,Adult Social Care,Adult Social Care,Aspects Care Ltd,10/03/2021,,500.08,ASC - Supported Living Care Costs,Not Yet Classified
Solihull MBC,Adult Social Care,Adult Social Care,Aspects Care Ltd,10/03/2021,,1883.28,ASC - Supported Living Care Costs,Not Yet Classified
Solihull MBC,Adult Social Care,Adult Social Care,Aspects Care Ltd,10/03/2021,,2170.56,ASC - Supported Living Care Costs,Not Yet Classified
Solihull MBC,Adult Social Care,Adult Social Care,Aspects Care Ltd,10/03/2021,,414.96,ASC - Supported Living Care Costs,Not Yet Classified
Solihull MBC,Adult Social Care,Adult Social Care,Aspects Care Ltd,10/03/2021,,383.04,ASC - Domiciliary Care,Not Yet Classified
Solihull MBC,Adult Social Care,Adult Social Care,Aspects Care Ltd,10/03/2021,,319.2,ASC - Supported Living Care Costs,Not Yet Classified
Solihull MBC,Adult Social Care,Adult Social Care,Aspects Care Ltd,10/03/2021,,1117.2,ASC - Supported Living Care Costs,Not Yet Classified
Solihull MBC,Adult Social Care,Adult Social Care,Aspects Care Ltd,10/03/2021,,1021.44,ASC - Supported Living Care Costs,Not Yet Classified
Solihull MBC,Adult Social Care,Adult Social Care,Aspects Care Ltd,10/03/2021,,829.92,ASC - Supported Living Care Costs,Not Yet Classified
Solihull MBC,Adult Social Care,Adult Social Care,Aspects Care Ltd,10/03/2021,,1691.76,ASC - Supported Living Care Costs,Not Yet Classified
Solihull MBC,Adult Social Care,Adult Social Care,Aspects Care Ltd,10/03/2021,,500.08,ASC - Supported Living Care Costs,Not Yet Classified
Solihull MBC,Adult Social Care,Adult Social Care,Aspects Care Ltd,10/03/2021,,3814.44,ASC - Supported Living Care Costs,Not Yet Classified
Solihull MBC,Adult Social Care,Adult Social Care,Aspects Care Ltd,10/03/2021,,766.08,ASC - Supported Living Care Costs,Not Yet Classified
Solihull MBC,Adult Social Care,Adult Social Care,Aspects Care Ltd,10/03/2021,,1340.64,ASC - Supported Living Care Costs,Not Yet Classified
Solihull MBC,Adult Social Care,Adult Social Care,Aspects Care Ltd,10/03/2021,,500.08,ASC - Supported Living Care Costs,Not Yet Classified
Solihull MBC,Adult Social Care,Adult Social Care,Aspects Care Ltd,10/03/2021,,3016.44,ASC - Supported Living Care Costs,Not Yet Classified
Solihull MBC,Adult Social Care,Adult Social Care,Aspects Care Ltd,10/03/2021,,1340.64,ASC - Supported Living Care Costs,Not Yet Classified
Solihull MBC,Adult Social Care,Adult Social Care,Aspects Care Ltd,10/03/2021,,2298.24,ASC - Supported Living Care Costs,Not Yet Classified
Solihull MBC,Adult Social Care,Adult Social Care,Aspects Care Ltd,10/03/2021,,989.52,ASC - Supported Living Care Costs,Not Yet Classified
Solihull MBC,Adult Social Care,Adult Social Care,Aspects Care Ltd,10/03/2021,,989.52,ASC - Supported Living Care Costs,Not Yet Classified
Solihull MBC,Adult Social Care,Adult Social Care,Aspects Care Ltd,10/03/2021,,845.88,ASC - Supported Living Care Costs,Not Yet Classified
Solihull MBC,Adult Social Care,Adult Social Care,Aspects Care Ltd,10/03/2021,,2042.88,ASC - Supported Living Care Costs,Not Yet Classified
Solihull MBC,Adult Social Care,Adult Social Care,Aspects Care Ltd,10/03/2021,,989.52,ASC - Supported Living Care Costs,Not Yet Classified
Solihull MBC,Adult Social Care,Adult Social Care,Aspects Care Ltd,10/03/2021,,1181.04,ASC - Supported Living Care Costs,Not Yet Classified
Solihull MBC,Children's Services & Skills,Children & Education Services,Aspire Supported Living CIC,11/03/2021,,3200,Supported Lodgings,Not Yet Classified
Solihull MBC,Children's Services & Skills,Children & Education Services,Aspire Supported Living CIC,31/03/2021,,3200,Supported Lodgings,Not Yet Classified
Solihull MBC,Children's Services & Skills,Children & Education Services,Aspire Supported Living CIC,11/03/2021,,3200,Supported Lodgings,Not Yet Classified
Solihull MBC,Children's Services & Skills,Children & Education Services,Aspire Supported Living CIC,11/03/2021,,-571.43,Supported Lodgings,Not Yet Classified
Solihull MBC,Children's Services & Skills,Children & Education Services,Aston Childrens Care,11/03/2021,,17200,Other Contracted Services,Not Yet Classified
Solihull MBC,Children's Services & Skills,Children & Education Services,Aston Childrens Care,11/03/2021,,3118.8,Other Contracted Services,Not Yet Classified
Solihull MBC,Children's Services & Skills,Children & Education Services,Aston Childrens Care,11/03/2021,,3528.57,Other Contracted Services,Not Yet Classified
Solihull MBC,Children's Services & Skills,Children & Education Services,Aston Childrens Care,11/03/2021,,17200,Other Contracted Services,Not Yet Classified
Solihull MBC,Children's Services & Skills,Children & Education Services,Aston Childrens Care,11/03/2021,,952.71,Other Contracted Services,Not Yet Classified
Solihull MBC,Children's Services & Skills,Children & Education Services,Aston Childrens Care,11/03/2021,,-952.71,Other Contracted Services,Not Yet Classified
Solihull MBC,Children's Services & Skills,Children & Education Services,Aston Childrens Care,05/03/2021,,16800,Other Contracted Services,Not Yet Classified
Solihull MBC,Children's Services & Skills,Children & Education Services,Aston Childrens Care,05/03/2021,,16800,Other Contracted Services,Not Yet Classified
Solihull MBC,Children's Services & Skills,Children & Education Services,Aston Childrens Care,05/03/2021,,16800,Other Contracted Services,Not Yet Classified
Solihull MBC,Children's Services & Skills,Children & Education Services,Aston Childrens Care,05/03/2021,,16800,Other Contracted Services,Not Yet Classified
Solihull MBC,Children's Services & Skills,Children & Education Services,Aston Childrens Care,11/03/2021,,14400,Other Contracted Services,Not Yet Classified
Solihull MBC,Children's Services & Skills,Children & Education Services,Aston Childrens Care,11/03/2021,,-8742.86,Other Contracted Services,Not Yet Classified
Solihull MBC,Children's Services & Skills,Children & Education Services,Aston Childrens Care,11/03/2021,,513.55,Other Contracted Services,Not Yet Classified
Solihull MBC,Children's Services & Skills,Children & Education Services,Aston Childrens Care,11/03/2021,,14400,Other Contracted Services,Not Yet Classified
Solihull MBC,Children's Services & Skills,Children & Education Services,Aston Childrens Care,11/03/2021,,-14400,Other Contracted Services,Not Yet Classified
Solihull MBC,Children's Services & Skills,Children & Education Services,Aston Childrens Care,11/03/2021,,-513.55,Other Contracted Services,Not Yet Classified
Solihull MBC,Resources,Central Services to the Public,AT&F Solutions Limited,08/03/2021,,495,Grant & Subscription (SCITT),Not Yet Classified
Solihull MBC,Economy and Infrastructure,Planning & Development Services,Atkins,22/03/2021,,-10770.14,Agency Staff,150000 - Consultancy
Solihull MBC,Economy and Infrastructure,Planning & Development Services,Atkins,22/03/2021,,-9788.84,Agency Staff,150000 - Consultancy
Solihull MBC,Economy and Infrastructure,Highways & Transport Services,Atkins,04/03/2021,,26134.87,Agency Staff,150000 - Consultancy
Solihull MBC,Economy and Infrastructure,Planning & Development Services,Atkins,05/03/2021,,12325.12,Agency Staff,150000 - Consultancy
Solihull MBC,Economy and Infrastructure,Highways & Transport Services,Atkins,04/03/2021,,11795.43,Contractors,150000 - Consultancy
Solihull MBC,Economy and Infrastructure,Highways & Transport Services,Atkins,05/03/2021,,2000,Contractors,150000 - Consultancy
Solihull MBC,Economy and Infrastructure,Planning & Development Services,Atkins,22/03/2021,,21540.29,Agency Staff,150000 - Consultancy
Solihull MBC,Economy and Infrastructure,Planning & Development Services,Atkins,22/03/2021,,-10770.15,Agency Staff,150000 - Consultancy
Solihull MBC,Economy and Infrastructure,Highways & Transport Services,Atkins,18/03/2021,,5455.29,Agency Staff,150000 - Consultancy
Solihull MBC,Economy and Infrastructure,Highways & Transport Services,Atkins,16/03/2021,,12648,Contractors,150000 - Consultancy
Solihull MBC,Economy and Infrastructure,Planning & Development Services,Atkins,22/03/2021,,9788.84,Agency Staff,150000 - Consultancy
Solihull MBC,Economy and Infrastructure,Highways & Transport Services,Atkins,22/03/2021,,4333.28,Agency Staff,150000 - Consultancy
Solihull MBC,Economy and Infrastructure,Highways & Transport Services,Atkins,19/03/2021,,9822.52,Contractors,150000 - Consultancy
Solihull MBC,Economy and Infrastructure,Highways & Transport Services,Atkins,16/03/2021,,4282,Agency Staff,150000 - Consultancy
Solihull MBC,Economy and Infrastructure,Highways & Transport Services,Atkins,25/03/2021,,28009.35,Agency Staff,150000 - Consultancy
Solihull MBC,Economy and Infrastructure,Highways & Transport Services,Atkins,23/03/2021,,31575.04,Agency Staff,150000 - Consultancy
Solihull MBC,Economy and Infrastructure,Planning & Development Services,Atkins,19/03/2021,,5488.96,Agency Staff,150000 - Consultancy
Solihull MBC,Economy and Infrastructure,Planning & Development Services,Atkins,22/03/2021,,4681.76,Agency Staff,150000 - Consultancy
Solihull MBC,Economy and Infrastructure,Planning & Development Services,Atkins Ltd,09/03/2021,,5735.9,Professional Fees,150000 - Consultancy
Solihull MBC,Economy and Infrastructure,Planning & Development Services,Atkins Ltd,04/03/2021,,503.75,Professional Fees,150000 - Consultancy
Solihull MBC,Economy and Infrastructure,Planning & Development Services,Atkins Ltd,04/03/2021,,503.75,Professional Fees,150000 - Consultancy
Solihull MBC,Economy and Infrastructure,Planning & Development Services,Atkins Ltd,04/03/2021,,503.75,Professional Fees,150000 - Consultancy
Solihull MBC,Economy and Infrastructure,Planning & Development Services,Atkins Ltd,04/03/2021,,503.75,Professional Fees,150000 - Consultancy
Solihull MBC,Economy and Infrastructure,Planning & Development Services,Atkins Ltd,05/03/2021,,11685,Professional Fees,150000 - Consultancy
Solihull MBC,Economy and Infrastructure,Planning & Development Services,Atkins Ltd,05/03/2021,,1641.56,Professional Fees,150000 - Consultancy
Solihull MBC,Economy and Infrastructure,Planning & Development Services,Atkins Ltd,05/03/2021,,1641.56,Professional Fees,150000 - Consultancy
Solihull MBC,Economy and Infrastructure,Planning & Development Services,Atkins Ltd,05/03/2021,,1641.56,Professional Fees,150000 - Consultancy
Solihull MBC,Economy and Infrastructure,Planning & Development Services,Atkins Ltd,05/03/2021,,1641.56,Professional Fees,150000 - Consultancy
Solihull MBC,Economy and Infrastructure,Planning & Development Services,Atkins Ltd,04/03/2021,,1040,Professional Fees,150000 - Consultancy
Solihull MBC,Economy and Infrastructure,Planning & Development Services,Atkins Ltd,04/03/2021,,1040,Professional Fees,150000 - Consultancy
Solihull MBC,Economy and Infrastructure,Planning & Development Services,Atkins Ltd,04/03/2021,,1040,Professional Fees,150000 - Consultancy
Solihull MBC,Economy and Infrastructure,Planning & Development Services,Atkins Ltd,04/03/2021,,1040,Professional Fees,150000 - Consultancy
Solihull MBC,Economy and Infrastructure,Planning & Development Services,Atkins Ltd,10/03/2021,,6930,Professional Fees,150000 - Consultancy
Solihull MBC,Economy and Infrastructure,Planning & Development Services,Atkins Ltd,16/03/2021,,6487.86,Professional Fees,150000 - Consultancy
Solihull MBC,Economy and Infrastructure,Planning & Development Services,Atkins Ltd,26/03/2021,,1362,Professional Fees,150000 - Consultancy
Solihull MBC,Economy and Infrastructure,Planning & Development Services,Atkins Ltd,31/03/2021,,6383.52,Professional Fees,150000 - Consultancy
Solihull MBC,Economy and Infrastructure,Planning & Development Services,Atkins Ltd,30/03/2021,,1870.67,Professional Fees,150000 - Consultancy
Solihull MBC,Economy and Infrastructure,Planning & Development Services,Atkins Ltd,30/03/2021,,1870.67,Professional Fees,150000 - Consultancy
Solihull MBC,Economy and Infrastructure,Planning & Development Services,Atkins Ltd,30/03/2021,,845.9,Professional Fees,150000 - Consultancy
Solihull MBC,Economy and Infrastructure,Planning & Development Services,Atkins Ltd,30/03/2021,,2239.48,Professional Fees,150000 - Consultancy
Solihull MBC,Economy and Infrastructure,Planning & Development Services,Atkins Ltd,30/03/2021,,2239.48,Professional Fees,150000 - Consultancy
Solihull MBC,Economy and Infrastructure,Planning & Development Services,Atkins Ltd,30/03/2021,,2239.48,Professional Fees,150000 - Consultancy
Solihull MBC,Economy and Infrastructure,Planning & Development Services,Atkins Ltd,30/03/2021,,2239.47,Professional Fees,150000 - Consultancy
Solihull MBC,Economy and Infrastructure,Planning & Development Services,Atkins Ltd,31/03/2021,,2425.54,Professional Fees,150000 - Consultancy
Solihull MBC,Economy and Infrastructure,Planning & Development Services,Atkins Ltd,31/03/2021,,2425.54,Professional Fees,150000 - Consultancy
Solihull MBC,Economy and Infrastructure,Planning & Development Services,Atkins Ltd,31/03/2021,,2425.54,Professional Fees,150000 - Consultancy
Solihull MBC,Economy and Infrastructure,Planning & Development Services,Atkins Ltd,31/03/2021,,2425.54,Professional Fees,150000 - Consultancy
Solihull MBC,Public Health & Commissioning,Central Services to the Public,Atlas Hotels (Birmingham) Limited,04/03/2021,,4714,Grant & Subscription (SCITT),Not Yet Classified
Solihull MBC,Resources,Other Housing Services,Auriga Services Ltd,19/03/2021,,5475.6,Clients Expenses,Not Yet Classified
Solihull MBC,Resources,Other Housing Services,Auriga Services Ltd,19/03/2021,,-2737.8,Clients Expenses,Not Yet Classified
Solihull MBC,Adult Social Care,Adult Social Care,Autism West Midlands,24/03/2021,,6312.88,ASC - Residential Care Permanent,321000 - Social Community Care Supplies & Services - Adult
Solihull MBC,Adult Social Care,Adult Social Care,Autism West Midlands,08/03/2021,,2482.2,ASC - Supported Living Care Costs,321000 - Social Community Care Supplies & Services - Adult
Solihull MBC,Adult Social Care,Adult Social Care,Autism West Midlands,08/03/2021,,13641.6,ASC - Supported Living Care Costs,321000 - Social Community Care Supplies & Services - Adult
Solihull MBC,Adult Social Care,Adult Social Care,Autism West Midlands,24/03/2021,,-6337.52,ASC - Residential Care Permanent,321000 - Social Community Care Supplies & Services - Adult
Solihull MBC,Adult Social Care,Adult Social Care,Autism West Midlands,24/03/2021,,6872,ASC - Residential Care Permanent,321000 - Social Community Care Supplies & Services - Adult
Solihull MBC,Adult Social Care,Adult Social Care,Autism West Midlands,24/03/2021,,-6337.52,ASC - Residential Care Permanent,321000 - Social Community Care Supplies & Services - Adult
Solihull MBC,Adult Social Care,Adult Social Care,Autism West Midlands,24/03/2021,,6872,ASC - Residential Care Permanent,321000 - Social Community Care Supplies & Services - Adult
Solihull MBC,Adult Social Care,Adult Social Care,Autism West Midlands,24/03/2021,,-6337.52,ASC - Residential Care Permanent,321000 - Social Community Care Supplies & Services - Adult
Solihull MBC,Adult Social Care,Adult Social Care,Autism West Midlands,24/03/2021,,6872,ASC - Residential Care Permanent,321000 - Social Community Care Supplies & Services - Adult
Solihull MBC,Adult Social Care,Adult Social Care,Autism West Midlands,24/03/2021,,-6337.52,ASC - Residential Care Permanent,321000 - Social Community Care Supplies & Services - Adult
Solihull MBC,Adult Social Care,Adult Social Care,Autism West Midlands,24/03/2021,,6872,ASC - Residential Care Permanent,321000 - Social Community Care Supplies & Services - Adult
Solihull MBC,Adult Social Care,Adult Social Care,Autism West Midlands,24/03/2021,,-6337.52,ASC - Residential Care Permanent,321000 - Social Community Care Supplies & Services - Adult
Solihull MBC,Adult Social Care,Adult Social Care,Autism West Midlands,24/03/2021,,6872,ASC - Residential Care Permanent,321000 - Social Community Care Supplies & Services - Adult
Solihull MBC,Adult Social Care,Adult Social Care,Autism West Midlands,24/03/2021,,-6337.52,ASC - Residential Care Permanent,321000 - Social Community Care Supplies & Services - Adult
Solihull MBC,Adult Social Care,Adult Social Care,Autism West Midlands,24/03/2021,,6872,ASC - Residential Care Permanent,321000 - Social Community Care Supplies & Services - Adult
Solihull MBC,Adult Social Care,Adult Social Care,Autism West Midlands,24/03/2021,,-6337.52,ASC - Residential Care Permanent,321000 - Social Community Care Supplies & Services - Adult
Solihull MBC,Adult Social Care,Adult Social Care,Autism West Midlands,24/03/2021,,6872,ASC - Residential Care Permanent,321000 - Social Community Care Supplies & Services - Adult
Solihull MBC,Adult Social Care,Adult Social Care,Autism West Midlands,24/03/2021,,-6337.52,ASC - Residential Care Permanent,321000 - Social Community Care Supplies & Services - Adult
Solihull MBC,Adult Social Care,Adult Social Care,Autism West Midlands,24/03/2021,,6872,ASC - Residential Care Permanent,321000 - Social Community Care Supplies & Services - Adult
